{"text_format":"1","workbook":"xlsx","n_sheets":9,"sheets":["Instructions","Boilers (fuel use)","Engines (fuel use)","Engines (hours)","VOC-containing","Eligibility","Sulfur tracking","Boilers unit info","Data validation"],"not_rendered":{"charts":0,"images":1,"macros":0,"external_links":0,"defined_names":11,"comments":0,"pivot_tables":0},"unopened":[],"bounds":{"document_bytes":16777216,"sheet_cells":100000,"rows_first":2000,"rows_last":500,"rows_between":2000,"halvings":0,"cell_chars":16384,"cell_head_chars":4096},"cells_cut":0,"cells_raw":0,"read":"whole","date_system":"1900"}

{"sheet":"Instructions","index":0,"n_rows":36,"n_cols":15,"rows_kept":36,"cut":false,"hidden":false,"merged":[[18,2,18,5],[5,1,6,14],[14,2,14,14],[11,2,11,14],[12,2,12,14],[13,2,13,14],[9,1,9,14],[10,1,10,14],[7,2,7,14],[0,6,1,14],[28,1,28,14],[29,1,29,14],[30,1,30,14],[31,1,31,14],[21,1,21,14],[22,2,22,14],[23,2,23,14],[24,2,24,14],[8,2,8,14],[25,2,25,14],[26,2,26,14],[0,1,3,5],[4,1,4,14],[16,1,17,14],[18,7,18,9],[19,10,19,14],[33,2,33,3],[33,4,33,14],[35,1,35,3],[35,4,35,13],[32,2,32,3],[32,5,32,8],[32,10,32,14]]}
[null,null,null,null,null,null,"Registration Option C Air Permit\nEligibility and recordkeeping"]
[]
[null,null,null,null,null,null,null,null,null,null,null,null,null,null,"Air Emissions Calculator"]
[null,null,null,null,null,null,null,null,null,null,null,null,null,null,"p-sbap5-33  •  6/6/23"]
[null,"Instructions"]
[null,"1) Fill out the blue tabs for any boilers, engines (by fuel type or operation hours), and VOC-containing material purchase or use, whichever was used\n    in your permit application for calculations. Follow the instructions on each blue tab and enter the necessary information."]
[]
[null,"•","Use the 'sulfur tracking' tab to track the actual amount of sulfur in certain fuels."]
[null,"•","Use the 'boilers unit info' tab for the boilers using fuels that require additional recordkeeping of individual emission unit information."]
[null,"2) After monthly amounts are entered in the blue tabs, copy the eligibility values to the green 'Eligibility' tab to calculate your eligibility number."]
[null,"3) Record keeping "]
[null,"•","material safety data sheets (SDS) or any other similar documentation used in calculations"]
[null,"•","purchase or usage records, which ever was used in your permit application, to perform calculations"]
[null,"•","copies of rolling sums and calculations"]
[null,"•","keep all records for at least five years"]
[]
[null,"This spreadsheet is based on the requirements for Registration Option C air permits found in Minnesota Rule 7007.1125 and described in MPCA air quality fact sheet #aq3-05, \"Your Option C Registration Permit\""]
[]
[null,null,"Your Option C Registration Permit",null,null,null,null,"Minnesota Rule 7007.1125"]
[null,"Minnesota Rules are on the Minnesota Legislature's Office of the Revisor Statutes website at:",null,null,null,null,null,null,null,null,"https://www.revisor.mn.gov/rules/"]
[]
[null,"Color key"]
[null,"Blue","Enter information for your facility in the blue boxes."]
[null,"White","Do not change the values or formulas in white boxes. White boxes contain intermediate calculations for determining emissions.  "]
[null,"Green","Your emission totals are in green boxes. These are automatically calculated based on information entered in blue boxes."]
[null,"Yellow","Permit and insignificant activity thresholds"]
[null,"Orange","Orange boxes are filled with standard values. You may change them if you have test results that provide data specific to your site."]
[null,"Blue Text","Important tips"]
[]
[null,"Assistance"]
[null,"This resource was created by the Minnesota Pollution Control Agency's (MPCA) Small Business Environmental Assistance Program (SBEAP)."]
[null,"We provide free, confidential, environmental assistance to small businesses. For more information:"]
[null,"Call:","651/282-6143",null,"Email:","smallbizhelp.pca@state.mn.us"]
[null,null,"800/657-3938"]
[]
[null,"Online at the MPCA website at: ",null,null,"https://www.pca.state.mn.us/smallbizhelp"]

{"sheet":"Boilers (fuel use)","index":1,"n_rows":72,"n_cols":33,"rows_kept":72,"cut":false,"hidden":false,"merged":[[7,29,7,32],[9,27,10,27],[9,28,10,28],[9,29,10,29],[9,30,10,30],[9,31,10,31],[9,32,10,32],[1,27,1,32],[2,27,3,32],[5,28,5,29],[5,30,5,32],[6,30,6,32],[6,23,6,25],[7,22,7,25],[9,20,10,20],[9,21,10,21],[9,22,10,22],[9,23,10,23],[9,24,10,24],[9,25,10,25],[1,1,1,11],[1,20,1,25],[2,20,3,25],[5,21,5,22],[5,23,5,25],[1,13,1,18],[2,13,3,18],[6,2,6,11],[7,3,7,11],[8,4,8,11],[2,1,4,11],[19,4,19,11],[18,4,18,11],[13,5,13,11],[14,3,14,11],[16,2,16,11],[11,5,12,11],[23,2,23,11],[24,3,24,11],[25,3,26,11],[20,4,20,11],[21,3,21,11],[9,13,10,13],[9,14,10,14],[9,15,10,15],[9,4,9,11],[10,4,10,11],[9,18,10,18],[5,14,5,15],[5,16,5,18],[6,16,6,18],[7,15,7,18],[9,16,10,16],[9,17,10,17]]}
[null,null,null,null,null,null,null,null,null,null,null,{"$f":"Instructions!O4","v":"p-sbap5-33  •  6/6/23"}]
[null,"Boilers: by fuel use",null,null,null,null,null,null,null,null,null,null,null,"Boiler fuel 1: monthly and 12-month rolling totals",null,null,null,null,null,null,"Boiler fuel 2: monthly and 12-month rolling totals",null,null,null,null,null,null,"Boiler fuel 3: monthly and 12-month rolling totals"]
[null,"Use this tab to track emissions for boilers, furnaces, space heaters, or other indirect heat exchangers by the type and amount of fuel purchased or used. Do not include fuel burned in boilers, furnaces, or space heaters that are considered insignificant activities under Minn. R. 7007.1300, subp. 2 and 3.",null,null,null,null,null,null,null,null,null,null,null,"Each month fill in the table below. Complete one table for each fuel type. \nAdd the most recent eligibility value across all boiler fuel types and enter in the 'Eligibility' tab.",null,null,null,null,null,null,"Each month fill in the table below. Complete one table for each fuel type. \nAdd the most recent eligibility value across all boiler fuel types and enter in the 'Eligibility' tab.",null,null,null,null,null,null,"Each month fill in the table below. Complete one table for each fuel type. \nAdd the most recent eligibility value across all boiler fuel types and enter in the 'Eligibility' tab."]
[]
[]
[null,null,null,null,null,null,null,null,null,null,null,null,null,"Fuel type","Choose one",null,{"$f":"IF(OR(O6='Data validation'!$B$7,OR(O6='Data validation'!$B$11,OR(O6='Data validation'!$B$10,OR(O6='Data validation'!$B$9,O6='Data validation'!$B$8)))),\" \",\"Record emission unit information for boilers using this fuel.\")","v":" "},null,null,null,"Fuel type","Choose one",null,{"$f":"IF(OR(V6='Data validation'!$B$7,OR(V6='Data validation'!$B$11,OR(V6='Data validation'!$B$10,OR(V6='Data validation'!$B$9,V6='Data validation'!$B$8)))),\" \",\"Record emission unit information for boilers using this fuel.\")","v":" "},null,null,null,"Fuel type","Choose one",null,{"$f":"IF(OR(AC6='Data validation'!$B$7,OR(AC6='Data validation'!$B$11,OR(AC6='Data validation'!$B$10,OR(AC6='Data validation'!$B$9,AC6='Data validation'!$B$8)))),\" \",\"Record emission unit information for boilers using this fuel.\")","v":" "}]
[null,"1)","Select your fuel type from the drop-down list. ",null,null,null,null,null,null,null,null,null,null,"Fuel units",{"$f":"IF(O6='Data validation'!$B$7,'Data validation'!$C$7,IF(OR(O6='Data validation'!$B$19,OR(O6='Data validation'!$B$18,OR(O6='Data validation'!$B$17,OR(O6='Data validation'!$B$16,OR(O6='Data validation'!$B$15,O6='Data validation'!$B$14))))),'Data validation'!$C$19,IF(OR(O6='Data validation'!$B$12,OR(O6='Data validation'!$B$13,OR(O6='Data validation'!$B$11,OR(O6='Data validation'!$B$10,O6='Data validation'!$B$9)))),'Data validation'!$C$12,IF(O6='Data validation'!$B$8,'Data validation'!$C$8))))","v":"--"},null,{"$f":"IF(OR(O6='Data validation'!$B$7,OR(O6='Data validation'!$B$11,OR(O6='Data validation'!$B$10,OR(O6='Data validation'!$B$9,O6='Data validation'!$B$8)))),\" \",\"Go to the 'Boiler unit info' tab.\")","v":" "},null,null,null,"Fuel units",{"$f":"IF(V6='Data validation'!$B$7,'Data validation'!$C$7,IF(OR(V6='Data validation'!$B$19,OR(V6='Data validation'!$B$18,OR(V6='Data validation'!$B$17,OR(V6='Data validation'!$B$16,OR(V6='Data validation'!$B$15,V6='Data validation'!$B$14))))),'Data validation'!$C$19,IF(OR(V6='Data validation'!$B$12,OR(V6='Data validation'!$B$13,OR(V6='Data validation'!$B$11,OR(V6='Data validation'!$B$10,V6='Data validation'!$B$9)))),'Data validation'!$C$12,IF(V6='Data validation'!$B$8,'Data validation'!$C$8))))","v":"--"},null,{"$f":"IF(OR(V6='Data validation'!$B$7,OR(V6='Data validation'!$B$11,OR(V6='Data validation'!$B$10,OR(V6='Data validation'!$B$9,V6='Data validation'!$B$8)))),\" \",\"Go to the 'Boiler unit info' tab.\")","v":" "},null,null,null,"Fuel units",{"$f":"IF(AC6='Data validation'!$B$7,'Data validation'!$C$7,IF(OR(AC6='Data validation'!$B$19,OR(AC6='Data validation'!$B$18,OR(AC6='Data validation'!$B$17,OR(AC6='Data validation'!$B$16,OR(AC6='Data validation'!$B$15,AC6='Data validation'!$B$14))))),'Data validation'!$C$19,IF(OR(AC6='Data validation'!$B$12,OR(AC6='Data validation'!$B$13,OR(AC6='Data validation'!$B$11,OR(AC6='Data validation'!$B$10,AC6='Data validation'!$B$9)))),'Data validation'!$C$12,IF(AC6='Data validation'!$B$8,'Data validation'!$C$8))))","v":"--"},null,{"$f":"IF(OR(AC6='Data validation'!$B$7,OR(AC6='Data validation'!$B$11,OR(AC6='Data validation'!$B$10,OR(AC6='Data validation'!$B$9,AC6='Data validation'!$B$8)))),\" \",\"Go to the 'Boiler unit info' tab.\")","v":" "}]
[null,null,"-","Important information about the fuel type will automatically appear. ",null,null,null,null,null,null,null,null,null,"Sulfur limit",{"$f":"IF(O6='Data validation'!$B$7,'Data validation'!$E$7,IF(O6='Data validation'!$B$19,'Data validation'!$E$19,IF(O6='Data validation'!$B$18,'Data validation'!$E$18,IF(O6='Data validation'!$B$17,'Data validation'!$E$17,IF(O6='Data validation'!$B$16,'Data validation'!$E$16,IF(O6='Data validation'!$B$15,'Data validation'!$E$15,IF(OR(O6='Data validation'!$B$12,O6='Data validation'!$B$13),'Data validation'!$E$12,IF(OR(O6='Data validation'!$B$11,O6='Data validation'!$B$10),'Data validation'!$E$11,IF(OR(O6='Data validation'!$B$14,OR(O6='Data validation'!$B$9,O6='Data validation'!$B$8)),'Data validation'!$E$14)))))))))","v":"--"},{"$f":"IF(OR(O8='Data validation'!$E$14,O8='Data validation'!$E$7),\" \",\"Track the actual sulfur content of fuel. Go to the 'Sulfur tracking' tab.\")","v":" "},null,null,null,null,"Sulfur limit",{"$f":"IF(V6='Data validation'!$B$7,'Data validation'!$E$7,IF(V6='Data validation'!$B$19,'Data validation'!$E$19,IF(V6='Data validation'!$B$18,'Data validation'!$E$18,IF(V6='Data validation'!$B$17,'Data validation'!$E$17,IF(V6='Data validation'!$B$16,'Data validation'!$E$16,IF(V6='Data validation'!$B$15,'Data validation'!$E$15,IF(OR(V6='Data validation'!$B$12,V6='Data validation'!$B$13),'Data validation'!$E$12,IF(OR(V6='Data validation'!$B$11,V6='Data validation'!$B$10),'Data validation'!$E$11,IF(OR(V6='Data validation'!$B$14,OR(V6='Data validation'!$B$9,V6='Data validation'!$B$8)),'Data validation'!$E$14)))))))))","v":"--"},{"$f":"IF(OR(V8='Data validation'!$E$14,V8='Data validation'!$E$7),\" \",\"Track the actual sulfur content of fuel. Go to the 'Sulfur tracking' tab.\")","v":" "},null,null,null,null,"Sulfur limit",{"$f":"IF(AC6='Data validation'!$B$7,'Data validation'!$E$7,IF(AC6='Data validation'!$B$19,'Data validation'!$E$19,IF(AC6='Data validation'!$B$18,'Data validation'!$E$18,IF(AC6='Data validation'!$B$17,'Data validation'!$E$17,IF(AC6='Data validation'!$B$16,'Data validation'!$E$16,IF(AC6='Data validation'!$B$15,'Data validation'!$E$15,IF(OR(AC6='Data validation'!$B$12,AC6='Data validation'!$B$13),'Data validation'!$E$12,IF(OR(AC6='Data validation'!$B$11,AC6='Data validation'!$B$10),'Data validation'!$E$11,IF(OR(AC6='Data validation'!$B$14,OR(AC6='Data validation'!$B$9,AC6='Data validation'!$B$8)),'Data validation'!$E$14)))))))))","v":"--"},{"$f":"IF(OR(AC8='Data validation'!$E$14,AC8='Data validation'!$E$7),\" \",\"Track the actual sulfur content of fuel. Go to the 'Sulfur tracking' tab.\")","v":" "}]
[null,null,null,"•","units that your fuel use must be recorded in"]
[null,null,null,"•","maximum allowable sulfur limit",null,null,null,null,null,null,null,null,"Date recorded","Month and year","Amount Purchased or Used","12-month rolling sum","Multiplication Factor","Eligibility value",null,"Date recorded","Month and year","Amount Purchased or Used","12-month rolling sum","Multiplication Factor","Eligibility value",null,"Date recorded","Month and year","Amount Purchased or Used","12-month rolling sum","Multiplication Factor","Eligibility value"]
[null,null,null,"•","if required, reminders to:"]
[null,null,null,null,"◦","track additional information for boilers using the fuel type (unless you qualify for reduced recordkeeping). See the 'Eligibility' tab for more information on reduced recordkeeping.",null,null,null,null,null,null,null,"when data is entered","fuel purchase or use",{"$f":"O7","v":"--"},{"$f":"O7","v":"--"},null,"For boiler fuel 1",null,"when data is entered","fuel purchase or use",{"$f":"V7","v":"--"},{"$f":"V7","v":"--"},null,"For boiler fuel 2",null,"when data is entered","fuel purchase or use",{"$f":"AC7","v":"--"},{"$f":"AC7","v":"--"},null,"For boiler fuel 3"]
[null,null,null,null,null,null,null,null,null,null,null,null,null,null,null,null,{"$f":"P13","v":0},{"$f":"IF(O$6='Data validation'!$B$7,'Data validation'!$D$7,IF(O$6='Data validation'!$B$19,'Data validation'!$D$19,IF(O$6='Data validation'!$B$18,'Data validation'!$D$18,IF(O$6='Data validation'!$B$17,'Data validation'!$D$17,IF(O$6='Data validation'!$B$16,'Data validation'!$D$16,IF(O$6='Data validation'!$B$15,'Data validation'!$D$15,IF(O$6='Data validation'!$B$14,'Data validation'!$D$14,IF(O$6='Data validation'!$B$12,'Data validation'!$D$12,IF(O$6='Data validation'!$B$13,'Data validation'!$D$13,IF(O$6='Data validation'!$B$11,'Data validation'!$D$11,IF(O$6='Data validation'!$B$10,'Data validation'!$D$10,IF(O$6='Data validation'!$B$9,'Data validation'!$D$9,IF(O$6='Data validation'!$B$8,'Data validation'!$D$8)))))))))))))","v":"--"},{"$f":"IFERROR(Q13*R13,0)","v":0},null,null,null,null,{"$f":"W13","v":0},{"$f":"IF(V$6='Data validation'!$B$7,'Data validation'!$D$7,IF(V$6='Data validation'!$B$19,'Data validation'!$D$19,IF(V$6='Data validation'!$B$18,'Data validation'!$D$18,IF(V$6='Data validation'!$B$17,'Data validation'!$D$17,IF(V$6='Data validation'!$B$16,'Data validation'!$D$16,IF(V$6='Data validation'!$B$15,'Data validation'!$D$15,IF(V$6='Data validation'!$B$14,'Data validation'!$D$14,IF(V$6='Data validation'!$B$12,'Data validation'!$D$12,IF(V$6='Data validation'!$B$13,'Data validation'!$D$13,IF(V$6='Data validation'!$B$11,'Data validation'!$D$11,IF(V$6='Data validation'!$B$10,'Data validation'!$D$10,IF(V$6='Data validation'!$B$9,'Data validation'!$D$9,IF(V$6='Data validation'!$B$8,'Data validation'!$D$8)))))))))))))","v":"--"},{"$f":"IFERROR(X13*Y13,0)","v":0},null,null,null,null,{"$f":"AD13","v":0},{"$f":"IF(AC$6='Data validation'!$B$7,'Data validation'!$D$7,IF(AC$6='Data validation'!$B$19,'Data validation'!$D$19,IF(AC$6='Data validation'!$B$18,'Data validation'!$D$18,IF(AC$6='Data validation'!$B$17,'Data validation'!$D$17,IF(AC$6='Data validation'!$B$16,'Data validation'!$D$16,IF(AC$6='Data validation'!$B$15,'Data validation'!$D$15,IF(AC$6='Data validation'!$B$14,'Data validation'!$D$14,IF(AC$6='Data validation'!$B$12,'Data validation'!$D$12,IF(AC$6='Data validation'!$B$13,'Data validation'!$D$13,IF(AC$6='Data validation'!$B$11,'Data validation'!$D$11,IF(AC$6='Data validation'!$B$10,'Data validation'!$D$10,IF(AC$6='Data validation'!$B$9,'Data validation'!$D$9,IF(AC$6='Data validation'!$B$8,'Data validation'!$D$8)))))))))))))","v":"--"},{"$f":"IFERROR(AE13*AF13,0)","v":0}]
[null,null,null,null,"◦","to track actual sulfur content of each fuel delivery",null,null,null,null,null,null,null,null,null,null,{"$f":"SUM(P13:P14)","v":0},{"$f":"IF(O$6='Data validation'!$B$7,'Data validation'!$D$7,IF(O$6='Data validation'!$B$19,'Data validation'!$D$19,IF(O$6='Data validation'!$B$18,'Data validation'!$D$18,IF(O$6='Data validation'!$B$17,'Data validation'!$D$17,IF(O$6='Data validation'!$B$16,'Data validation'!$D$16,IF(O$6='Data validation'!$B$15,'Data validation'!$D$15,IF(O$6='Data validation'!$B$14,'Data validation'!$D$14,IF(O$6='Data validation'!$B$12,'Data validation'!$D$12,IF(O$6='Data validation'!$B$13,'Data validation'!$D$13,IF(O$6='Data validation'!$B$11,'Data validation'!$D$11,IF(O$6='Data validation'!$B$10,'Data validation'!$D$10,IF(O$6='Data validation'!$B$9,'Data validation'!$D$9,IF(O$6='Data validation'!$B$8,'Data validation'!$D$8)))))))))))))","v":"--"},{"$f":"IFERROR(Q14*R14,0)","v":0},null,null,null,null,{"$f":"SUM(W13:W14)","v":0},{"$f":"IF(V$6='Data validation'!$B$7,'Data validation'!$D$7,IF(V$6='Data validation'!$B$19,'Data validation'!$D$19,IF(V$6='Data validation'!$B$18,'Data validation'!$D$18,IF(V$6='Data validation'!$B$17,'Data validation'!$D$17,IF(V$6='Data validation'!$B$16,'Data validation'!$D$16,IF(V$6='Data validation'!$B$15,'Data validation'!$D$15,IF(V$6='Data validation'!$B$14,'Data validation'!$D$14,IF(V$6='Data validation'!$B$12,'Data validation'!$D$12,IF(V$6='Data validation'!$B$13,'Data validation'!$D$13,IF(V$6='Data validation'!$B$11,'Data validation'!$D$11,IF(V$6='Data validation'!$B$10,'Data validation'!$D$10,IF(V$6='Data validation'!$B$9,'Data validation'!$D$9,IF(V$6='Data validation'!$B$8,'Data validation'!$D$8)))))))))))))","v":"--"},{"$f":"IFERROR(X14*Y14,0)","v":0},null,null,null,null,{"$f":"SUM(AD13:AD14)","v":0},{"$f":"IF(AC$6='Data validation'!$B$7,'Data validation'!$D$7,IF(AC$6='Data validation'!$B$19,'Data validation'!$D$19,IF(AC$6='Data validation'!$B$18,'Data validation'!$D$18,IF(AC$6='Data validation'!$B$17,'Data validation'!$D$17,IF(AC$6='Data validation'!$B$16,'Data validation'!$D$16,IF(AC$6='Data validation'!$B$15,'Data validation'!$D$15,IF(AC$6='Data validation'!$B$14,'Data validation'!$D$14,IF(AC$6='Data validation'!$B$12,'Data validation'!$D$12,IF(AC$6='Data validation'!$B$13,'Data validation'!$D$13,IF(AC$6='Data validation'!$B$11,'Data validation'!$D$11,IF(AC$6='Data validation'!$B$10,'Data validation'!$D$10,IF(AC$6='Data validation'!$B$9,'Data validation'!$D$9,IF(AC$6='Data validation'!$B$8,'Data validation'!$D$8)))))))))))))","v":"--"},{"$f":"IFERROR(AE14*AF14,0)","v":0}]
[null,null,"-","Use additional charts to the right if you use more than one fuel type in your boilers. ",null,null,null,null,null,null,null,null,null,null,null,null,{"$f":"SUM(P13:P15)","v":0},{"$f":"IF(O$6='Data validation'!$B$7,'Data validation'!$D$7,IF(O$6='Data validation'!$B$19,'Data validation'!$D$19,IF(O$6='Data validation'!$B$18,'Data validation'!$D$18,IF(O$6='Data validation'!$B$17,'Data validation'!$D$17,IF(O$6='Data validation'!$B$16,'Data validation'!$D$16,IF(O$6='Data validation'!$B$15,'Data validation'!$D$15,IF(O$6='Data validation'!$B$14,'Data validation'!$D$14,IF(O$6='Data validation'!$B$12,'Data validation'!$D$12,IF(O$6='Data validation'!$B$13,'Data validation'!$D$13,IF(O$6='Data validation'!$B$11,'Data validation'!$D$11,IF(O$6='Data validation'!$B$10,'Data validation'!$D$10,IF(O$6='Data validation'!$B$9,'Data validation'!$D$9,IF(O$6='Data validation'!$B$8,'Data validation'!$D$8)))))))))))))","v":"--"},0,null,null,null,null,{"$f":"SUM(W13:W15)","v":0},{"$f":"IF(V$6='Data validation'!$B$7,'Data validation'!$D$7,IF(V$6='Data validation'!$B$19,'Data validation'!$D$19,IF(V$6='Data validation'!$B$18,'Data validation'!$D$18,IF(V$6='Data validation'!$B$17,'Data validation'!$D$17,IF(V$6='Data validation'!$B$16,'Data validation'!$D$16,IF(V$6='Data validation'!$B$15,'Data validation'!$D$15,IF(V$6='Data validation'!$B$14,'Data validation'!$D$14,IF(V$6='Data validation'!$B$12,'Data validation'!$D$12,IF(V$6='Data validation'!$B$13,'Data validation'!$D$13,IF(V$6='Data validation'!$B$11,'Data validation'!$D$11,IF(V$6='Data validation'!$B$10,'Data validation'!$D$10,IF(V$6='Data validation'!$B$9,'Data validation'!$D$9,IF(V$6='Data validation'!$B$8,'Data validation'!$D$8)))))))))))))","v":"--"},0,null,null,null,null,{"$f":"SUM(AD13:AD15)","v":0},{"$f":"IF(AC$6='Data validation'!$B$7,'Data validation'!$D$7,IF(AC$6='Data validation'!$B$19,'Data validation'!$D$19,IF(AC$6='Data validation'!$B$18,'Data validation'!$D$18,IF(AC$6='Data validation'!$B$17,'Data validation'!$D$17,IF(AC$6='Data validation'!$B$16,'Data validation'!$D$16,IF(AC$6='Data validation'!$B$15,'Data validation'!$D$15,IF(AC$6='Data validation'!$B$14,'Data validation'!$D$14,IF(AC$6='Data validation'!$B$12,'Data validation'!$D$12,IF(AC$6='Data validation'!$B$13,'Data validation'!$D$13,IF(AC$6='Data validation'!$B$11,'Data validation'!$D$11,IF(AC$6='Data validation'!$B$10,'Data validation'!$D$10,IF(AC$6='Data validation'!$B$9,'Data validation'!$D$9,IF(AC$6='Data validation'!$B$8,'Data validation'!$D$8)))))))))))))","v":"--"},0]
[null,null,null,null,null,null,null,null,null,null,null,null,null,null,null,null,{"$f":"SUM(P13:P16)","v":0},{"$f":"IF(O$6='Data validation'!$B$7,'Data validation'!$D$7,IF(O$6='Data validation'!$B$19,'Data validation'!$D$19,IF(O$6='Data validation'!$B$18,'Data validation'!$D$18,IF(O$6='Data validation'!$B$17,'Data validation'!$D$17,IF(O$6='Data validation'!$B$16,'Data validation'!$D$16,IF(O$6='Data validation'!$B$15,'Data validation'!$D$15,IF(O$6='Data validation'!$B$14,'Data validation'!$D$14,IF(O$6='Data validation'!$B$12,'Data validation'!$D$12,IF(O$6='Data validation'!$B$13,'Data validation'!$D$13,IF(O$6='Data validation'!$B$11,'Data validation'!$D$11,IF(O$6='Data validation'!$B$10,'Data validation'!$D$10,IF(O$6='Data validation'!$B$9,'Data validation'!$D$9,IF(O$6='Data validation'!$B$8,'Data validation'!$D$8)))))))))))))","v":"--"},0,null,null,null,null,{"$f":"SUM(W13:W16)","v":0},{"$f":"IF(V$6='Data validation'!$B$7,'Data validation'!$D$7,IF(V$6='Data validation'!$B$19,'Data validation'!$D$19,IF(V$6='Data validation'!$B$18,'Data validation'!$D$18,IF(V$6='Data validation'!$B$17,'Data validation'!$D$17,IF(V$6='Data validation'!$B$16,'Data validation'!$D$16,IF(V$6='Data validation'!$B$15,'Data validation'!$D$15,IF(V$6='Data validation'!$B$14,'Data validation'!$D$14,IF(V$6='Data validation'!$B$12,'Data validation'!$D$12,IF(V$6='Data validation'!$B$13,'Data validation'!$D$13,IF(V$6='Data validation'!$B$11,'Data validation'!$D$11,IF(V$6='Data validation'!$B$10,'Data validation'!$D$10,IF(V$6='Data validation'!$B$9,'Data validation'!$D$9,IF(V$6='Data validation'!$B$8,'Data validation'!$D$8)))))))))))))","v":"--"},0,null,null,null,null,{"$f":"SUM(AD13:AD16)","v":0},{"$f":"IF(AC$6='Data validation'!$B$7,'Data validation'!$D$7,IF(AC$6='Data validation'!$B$19,'Data validation'!$D$19,IF(AC$6='Data validation'!$B$18,'Data validation'!$D$18,IF(AC$6='Data validation'!$B$17,'Data validation'!$D$17,IF(AC$6='Data validation'!$B$16,'Data validation'!$D$16,IF(AC$6='Data validation'!$B$15,'Data validation'!$D$15,IF(AC$6='Data validation'!$B$14,'Data validation'!$D$14,IF(AC$6='Data validation'!$B$12,'Data validation'!$D$12,IF(AC$6='Data validation'!$B$13,'Data validation'!$D$13,IF(AC$6='Data validation'!$B$11,'Data validation'!$D$11,IF(AC$6='Data validation'!$B$10,'Data validation'!$D$10,IF(AC$6='Data validation'!$B$9,'Data validation'!$D$9,IF(AC$6='Data validation'!$B$8,'Data validation'!$D$8)))))))))))))","v":"--"},0]
[null,"2)","By the last day of each month, record your fuel use.",null,null,null,null,null,null,null,null,null,null,null,null,null,{"$f":"SUM(P13:P17)","v":0},{"$f":"IF(O$6='Data validation'!$B$7,'Data validation'!$D$7,IF(O$6='Data validation'!$B$19,'Data validation'!$D$19,IF(O$6='Data validation'!$B$18,'Data validation'!$D$18,IF(O$6='Data validation'!$B$17,'Data validation'!$D$17,IF(O$6='Data validation'!$B$16,'Data validation'!$D$16,IF(O$6='Data validation'!$B$15,'Data validation'!$D$15,IF(O$6='Data validation'!$B$14,'Data validation'!$D$14,IF(O$6='Data validation'!$B$12,'Data validation'!$D$12,IF(O$6='Data validation'!$B$13,'Data validation'!$D$13,IF(O$6='Data validation'!$B$11,'Data validation'!$D$11,IF(O$6='Data validation'!$B$10,'Data validation'!$D$10,IF(O$6='Data validation'!$B$9,'Data validation'!$D$9,IF(O$6='Data validation'!$B$8,'Data validation'!$D$8)))))))))))))","v":"--"},0,null,null,null,null,{"$f":"SUM(W13:W17)","v":0},{"$f":"IF(V$6='Data validation'!$B$7,'Data validation'!$D$7,IF(V$6='Data validation'!$B$19,'Data validation'!$D$19,IF(V$6='Data validation'!$B$18,'Data validation'!$D$18,IF(V$6='Data validation'!$B$17,'Data validation'!$D$17,IF(V$6='Data validation'!$B$16,'Data validation'!$D$16,IF(V$6='Data validation'!$B$15,'Data validation'!$D$15,IF(V$6='Data validation'!$B$14,'Data validation'!$D$14,IF(V$6='Data validation'!$B$12,'Data validation'!$D$12,IF(V$6='Data validation'!$B$13,'Data validation'!$D$13,IF(V$6='Data validation'!$B$11,'Data validation'!$D$11,IF(V$6='Data validation'!$B$10,'Data validation'!$D$10,IF(V$6='Data validation'!$B$9,'Data validation'!$D$9,IF(V$6='Data validation'!$B$8,'Data validation'!$D$8)))))))))))))","v":"--"},0,null,null,null,null,{"$f":"SUM(AD13:AD17)","v":0},{"$f":"IF(AC$6='Data validation'!$B$7,'Data validation'!$D$7,IF(AC$6='Data validation'!$B$19,'Data validation'!$D$19,IF(AC$6='Data validation'!$B$18,'Data validation'!$D$18,IF(AC$6='Data validation'!$B$17,'Data validation'!$D$17,IF(AC$6='Data validation'!$B$16,'Data validation'!$D$16,IF(AC$6='Data validation'!$B$15,'Data validation'!$D$15,IF(AC$6='Data validation'!$B$14,'Data validation'!$D$14,IF(AC$6='Data validation'!$B$12,'Data validation'!$D$12,IF(AC$6='Data validation'!$B$13,'Data validation'!$D$13,IF(AC$6='Data validation'!$B$11,'Data validation'!$D$11,IF(AC$6='Data validation'!$B$10,'Data validation'!$D$10,IF(AC$6='Data validation'!$B$9,'Data validation'!$D$9,IF(AC$6='Data validation'!$B$8,'Data validation'!$D$8)))))))))))))","v":"--"},0]
[null,null,"-","Enter your information in the blue boxes.",null,null,null,null,null,null,null,null,null,null,null,null,{"$f":"SUM(P13:P18)","v":0},{"$f":"IF(O$6='Data validation'!$B$7,'Data validation'!$D$7,IF(O$6='Data validation'!$B$19,'Data validation'!$D$19,IF(O$6='Data validation'!$B$18,'Data validation'!$D$18,IF(O$6='Data validation'!$B$17,'Data validation'!$D$17,IF(O$6='Data validation'!$B$16,'Data validation'!$D$16,IF(O$6='Data validation'!$B$15,'Data validation'!$D$15,IF(O$6='Data validation'!$B$14,'Data validation'!$D$14,IF(O$6='Data validation'!$B$12,'Data validation'!$D$12,IF(O$6='Data validation'!$B$13,'Data validation'!$D$13,IF(O$6='Data validation'!$B$11,'Data validation'!$D$11,IF(O$6='Data validation'!$B$10,'Data validation'!$D$10,IF(O$6='Data validation'!$B$9,'Data validation'!$D$9,IF(O$6='Data validation'!$B$8,'Data validation'!$D$8)))))))))))))","v":"--"},0,null,null,null,null,{"$f":"SUM(W13:W18)","v":0},{"$f":"IF(V$6='Data validation'!$B$7,'Data validation'!$D$7,IF(V$6='Data validation'!$B$19,'Data validation'!$D$19,IF(V$6='Data validation'!$B$18,'Data validation'!$D$18,IF(V$6='Data validation'!$B$17,'Data validation'!$D$17,IF(V$6='Data validation'!$B$16,'Data validation'!$D$16,IF(V$6='Data validation'!$B$15,'Data validation'!$D$15,IF(V$6='Data validation'!$B$14,'Data validation'!$D$14,IF(V$6='Data validation'!$B$12,'Data validation'!$D$12,IF(V$6='Data validation'!$B$13,'Data validation'!$D$13,IF(V$6='Data validation'!$B$11,'Data validation'!$D$11,IF(V$6='Data validation'!$B$10,'Data validation'!$D$10,IF(V$6='Data validation'!$B$9,'Data validation'!$D$9,IF(V$6='Data validation'!$B$8,'Data validation'!$D$8)))))))))))))","v":"--"},0,null,null,null,null,{"$f":"SUM(AD13:AD18)","v":0},{"$f":"IF(AC$6='Data validation'!$B$7,'Data validation'!$D$7,IF(AC$6='Data validation'!$B$19,'Data validation'!$D$19,IF(AC$6='Data validation'!$B$18,'Data validation'!$D$18,IF(AC$6='Data validation'!$B$17,'Data validation'!$D$17,IF(AC$6='Data validation'!$B$16,'Data validation'!$D$16,IF(AC$6='Data validation'!$B$15,'Data validation'!$D$15,IF(AC$6='Data validation'!$B$14,'Data validation'!$D$14,IF(AC$6='Data validation'!$B$12,'Data validation'!$D$12,IF(AC$6='Data validation'!$B$13,'Data validation'!$D$13,IF(AC$6='Data validation'!$B$11,'Data validation'!$D$11,IF(AC$6='Data validation'!$B$10,'Data validation'!$D$10,IF(AC$6='Data validation'!$B$9,'Data validation'!$D$9,IF(AC$6='Data validation'!$B$8,'Data validation'!$D$8)))))))))))))","v":"--"},0]
[null,null,null,"•","date you are entering the information",null,null,null,null,null,null,null,null,null,null,null,{"$f":"SUM(P13:P19)","v":0},{"$f":"IF(O$6='Data validation'!$B$7,'Data validation'!$D$7,IF(O$6='Data validation'!$B$19,'Data validation'!$D$19,IF(O$6='Data validation'!$B$18,'Data validation'!$D$18,IF(O$6='Data validation'!$B$17,'Data validation'!$D$17,IF(O$6='Data validation'!$B$16,'Data validation'!$D$16,IF(O$6='Data validation'!$B$15,'Data validation'!$D$15,IF(O$6='Data validation'!$B$14,'Data validation'!$D$14,IF(O$6='Data validation'!$B$12,'Data validation'!$D$12,IF(O$6='Data validation'!$B$13,'Data validation'!$D$13,IF(O$6='Data validation'!$B$11,'Data validation'!$D$11,IF(O$6='Data validation'!$B$10,'Data validation'!$D$10,IF(O$6='Data validation'!$B$9,'Data validation'!$D$9,IF(O$6='Data validation'!$B$8,'Data validation'!$D$8)))))))))))))","v":"--"},0,null,null,null,null,{"$f":"SUM(W13:W19)","v":0},{"$f":"IF(V$6='Data validation'!$B$7,'Data validation'!$D$7,IF(V$6='Data validation'!$B$19,'Data validation'!$D$19,IF(V$6='Data validation'!$B$18,'Data validation'!$D$18,IF(V$6='Data validation'!$B$17,'Data validation'!$D$17,IF(V$6='Data validation'!$B$16,'Data validation'!$D$16,IF(V$6='Data validation'!$B$15,'Data validation'!$D$15,IF(V$6='Data validation'!$B$14,'Data validation'!$D$14,IF(V$6='Data validation'!$B$12,'Data validation'!$D$12,IF(V$6='Data validation'!$B$13,'Data validation'!$D$13,IF(V$6='Data validation'!$B$11,'Data validation'!$D$11,IF(V$6='Data validation'!$B$10,'Data validation'!$D$10,IF(V$6='Data validation'!$B$9,'Data validation'!$D$9,IF(V$6='Data validation'!$B$8,'Data validation'!$D$8)))))))))))))","v":"--"},0,null,null,null,null,{"$f":"SUM(AD13:AD19)","v":0},{"$f":"IF(AC$6='Data validation'!$B$7,'Data validation'!$D$7,IF(AC$6='Data validation'!$B$19,'Data validation'!$D$19,IF(AC$6='Data validation'!$B$18,'Data validation'!$D$18,IF(AC$6='Data validation'!$B$17,'Data validation'!$D$17,IF(AC$6='Data validation'!$B$16,'Data validation'!$D$16,IF(AC$6='Data validation'!$B$15,'Data validation'!$D$15,IF(AC$6='Data validation'!$B$14,'Data validation'!$D$14,IF(AC$6='Data validation'!$B$12,'Data validation'!$D$12,IF(AC$6='Data validation'!$B$13,'Data validation'!$D$13,IF(AC$6='Data validation'!$B$11,'Data validation'!$D$11,IF(AC$6='Data validation'!$B$10,'Data validation'!$D$10,IF(AC$6='Data validation'!$B$9,'Data validation'!$D$9,IF(AC$6='Data validation'!$B$8,'Data validation'!$D$8)))))))))))))","v":"--"},0]
[null,null,null,"•","month and year that the record is for",null,null,null,null,null,null,null,null,null,null,null,{"$f":"SUM(P13:P20)","v":0},{"$f":"IF(O$6='Data validation'!$B$7,'Data validation'!$D$7,IF(O$6='Data validation'!$B$19,'Data validation'!$D$19,IF(O$6='Data validation'!$B$18,'Data validation'!$D$18,IF(O$6='Data validation'!$B$17,'Data validation'!$D$17,IF(O$6='Data validation'!$B$16,'Data validation'!$D$16,IF(O$6='Data validation'!$B$15,'Data validation'!$D$15,IF(O$6='Data validation'!$B$14,'Data validation'!$D$14,IF(O$6='Data validation'!$B$12,'Data validation'!$D$12,IF(O$6='Data validation'!$B$13,'Data validation'!$D$13,IF(O$6='Data validation'!$B$11,'Data validation'!$D$11,IF(O$6='Data validation'!$B$10,'Data validation'!$D$10,IF(O$6='Data validation'!$B$9,'Data validation'!$D$9,IF(O$6='Data validation'!$B$8,'Data validation'!$D$8)))))))))))))","v":"--"},0,null,null,null,null,{"$f":"SUM(W13:W20)","v":0},{"$f":"IF(V$6='Data validation'!$B$7,'Data validation'!$D$7,IF(V$6='Data validation'!$B$19,'Data validation'!$D$19,IF(V$6='Data validation'!$B$18,'Data validation'!$D$18,IF(V$6='Data validation'!$B$17,'Data validation'!$D$17,IF(V$6='Data validation'!$B$16,'Data validation'!$D$16,IF(V$6='Data validation'!$B$15,'Data validation'!$D$15,IF(V$6='Data validation'!$B$14,'Data validation'!$D$14,IF(V$6='Data validation'!$B$12,'Data validation'!$D$12,IF(V$6='Data validation'!$B$13,'Data validation'!$D$13,IF(V$6='Data validation'!$B$11,'Data validation'!$D$11,IF(V$6='Data validation'!$B$10,'Data validation'!$D$10,IF(V$6='Data validation'!$B$9,'Data validation'!$D$9,IF(V$6='Data validation'!$B$8,'Data validation'!$D$8)))))))))))))","v":"--"},0,null,null,null,null,{"$f":"SUM(AD13:AD20)","v":0},{"$f":"IF(AC$6='Data validation'!$B$7,'Data validation'!$D$7,IF(AC$6='Data validation'!$B$19,'Data validation'!$D$19,IF(AC$6='Data validation'!$B$18,'Data validation'!$D$18,IF(AC$6='Data validation'!$B$17,'Data validation'!$D$17,IF(AC$6='Data validation'!$B$16,'Data validation'!$D$16,IF(AC$6='Data validation'!$B$15,'Data validation'!$D$15,IF(AC$6='Data validation'!$B$14,'Data validation'!$D$14,IF(AC$6='Data validation'!$B$12,'Data validation'!$D$12,IF(AC$6='Data validation'!$B$13,'Data validation'!$D$13,IF(AC$6='Data validation'!$B$11,'Data validation'!$D$11,IF(AC$6='Data validation'!$B$10,'Data validation'!$D$10,IF(AC$6='Data validation'!$B$9,'Data validation'!$D$9,IF(AC$6='Data validation'!$B$8,'Data validation'!$D$8)))))))))))))","v":"--"},0]
[null,null,null,"•","quantity of fuel purchased or used (whichever was stated in your Option C application). ",null,null,null,null,null,null,null,null,null,null,null,{"$f":"SUM(P13:P21)","v":0},{"$f":"IF(O$6='Data validation'!$B$7,'Data validation'!$D$7,IF(O$6='Data validation'!$B$19,'Data validation'!$D$19,IF(O$6='Data validation'!$B$18,'Data validation'!$D$18,IF(O$6='Data validation'!$B$17,'Data validation'!$D$17,IF(O$6='Data validation'!$B$16,'Data validation'!$D$16,IF(O$6='Data validation'!$B$15,'Data validation'!$D$15,IF(O$6='Data validation'!$B$14,'Data validation'!$D$14,IF(O$6='Data validation'!$B$12,'Data validation'!$D$12,IF(O$6='Data validation'!$B$13,'Data validation'!$D$13,IF(O$6='Data validation'!$B$11,'Data validation'!$D$11,IF(O$6='Data validation'!$B$10,'Data validation'!$D$10,IF(O$6='Data validation'!$B$9,'Data validation'!$D$9,IF(O$6='Data validation'!$B$8,'Data validation'!$D$8)))))))))))))","v":"--"},0,null,null,null,null,{"$f":"SUM(W13:W21)","v":0},{"$f":"IF(V$6='Data validation'!$B$7,'Data validation'!$D$7,IF(V$6='Data validation'!$B$19,'Data validation'!$D$19,IF(V$6='Data validation'!$B$18,'Data validation'!$D$18,IF(V$6='Data validation'!$B$17,'Data validation'!$D$17,IF(V$6='Data validation'!$B$16,'Data validation'!$D$16,IF(V$6='Data validation'!$B$15,'Data validation'!$D$15,IF(V$6='Data validation'!$B$14,'Data validation'!$D$14,IF(V$6='Data validation'!$B$12,'Data validation'!$D$12,IF(V$6='Data validation'!$B$13,'Data validation'!$D$13,IF(V$6='Data validation'!$B$11,'Data validation'!$D$11,IF(V$6='Data validation'!$B$10,'Data validation'!$D$10,IF(V$6='Data validation'!$B$9,'Data validation'!$D$9,IF(V$6='Data validation'!$B$8,'Data validation'!$D$8)))))))))))))","v":"--"},0,null,null,null,null,{"$f":"SUM(AD13:AD21)","v":0},{"$f":"IF(AC$6='Data validation'!$B$7,'Data validation'!$D$7,IF(AC$6='Data validation'!$B$19,'Data validation'!$D$19,IF(AC$6='Data validation'!$B$18,'Data validation'!$D$18,IF(AC$6='Data validation'!$B$17,'Data validation'!$D$17,IF(AC$6='Data validation'!$B$16,'Data validation'!$D$16,IF(AC$6='Data validation'!$B$15,'Data validation'!$D$15,IF(AC$6='Data validation'!$B$14,'Data validation'!$D$14,IF(AC$6='Data validation'!$B$12,'Data validation'!$D$12,IF(AC$6='Data validation'!$B$13,'Data validation'!$D$13,IF(AC$6='Data validation'!$B$11,'Data validation'!$D$11,IF(AC$6='Data validation'!$B$10,'Data validation'!$D$10,IF(AC$6='Data validation'!$B$9,'Data validation'!$D$9,IF(AC$6='Data validation'!$B$8,'Data validation'!$D$8)))))))))))))","v":"--"},0]
[null,null,"-","If no fuel is used, enter '0' for amount purchased or used. Do not leave blank.",null,null,null,null,null,null,null,null,null,null,null,null,{"$f":"SUM(P13:P22)","v":0},{"$f":"IF(O$6='Data validation'!$B$7,'Data validation'!$D$7,IF(O$6='Data validation'!$B$19,'Data validation'!$D$19,IF(O$6='Data validation'!$B$18,'Data validation'!$D$18,IF(O$6='Data validation'!$B$17,'Data validation'!$D$17,IF(O$6='Data validation'!$B$16,'Data validation'!$D$16,IF(O$6='Data validation'!$B$15,'Data validation'!$D$15,IF(O$6='Data validation'!$B$14,'Data validation'!$D$14,IF(O$6='Data validation'!$B$12,'Data validation'!$D$12,IF(O$6='Data validation'!$B$13,'Data validation'!$D$13,IF(O$6='Data validation'!$B$11,'Data validation'!$D$11,IF(O$6='Data validation'!$B$10,'Data validation'!$D$10,IF(O$6='Data validation'!$B$9,'Data validation'!$D$9,IF(O$6='Data validation'!$B$8,'Data validation'!$D$8)))))))))))))","v":"--"},0,null,null,null,null,{"$f":"SUM(W13:W22)","v":0},{"$f":"IF(V$6='Data validation'!$B$7,'Data validation'!$D$7,IF(V$6='Data validation'!$B$19,'Data validation'!$D$19,IF(V$6='Data validation'!$B$18,'Data validation'!$D$18,IF(V$6='Data validation'!$B$17,'Data validation'!$D$17,IF(V$6='Data validation'!$B$16,'Data validation'!$D$16,IF(V$6='Data validation'!$B$15,'Data validation'!$D$15,IF(V$6='Data validation'!$B$14,'Data validation'!$D$14,IF(V$6='Data validation'!$B$12,'Data validation'!$D$12,IF(V$6='Data validation'!$B$13,'Data validation'!$D$13,IF(V$6='Data validation'!$B$11,'Data validation'!$D$11,IF(V$6='Data validation'!$B$10,'Data validation'!$D$10,IF(V$6='Data validation'!$B$9,'Data validation'!$D$9,IF(V$6='Data validation'!$B$8,'Data validation'!$D$8)))))))))))))","v":"--"},0,null,null,null,null,{"$f":"SUM(AD13:AD22)","v":0},{"$f":"IF(AC$6='Data validation'!$B$7,'Data validation'!$D$7,IF(AC$6='Data validation'!$B$19,'Data validation'!$D$19,IF(AC$6='Data validation'!$B$18,'Data validation'!$D$18,IF(AC$6='Data validation'!$B$17,'Data validation'!$D$17,IF(AC$6='Data validation'!$B$16,'Data validation'!$D$16,IF(AC$6='Data validation'!$B$15,'Data validation'!$D$15,IF(AC$6='Data validation'!$B$14,'Data validation'!$D$14,IF(AC$6='Data validation'!$B$12,'Data validation'!$D$12,IF(AC$6='Data validation'!$B$13,'Data validation'!$D$13,IF(AC$6='Data validation'!$B$11,'Data validation'!$D$11,IF(AC$6='Data validation'!$B$10,'Data validation'!$D$10,IF(AC$6='Data validation'!$B$9,'Data validation'!$D$9,IF(AC$6='Data validation'!$B$8,'Data validation'!$D$8)))))))))))))","v":"--"},0]
[null,null,null,null,null,null,null,null,null,null,null,null,null,null,null,null,{"$f":"SUM(P13:P23)","v":0},{"$f":"IF(O$6='Data validation'!$B$7,'Data validation'!$D$7,IF(O$6='Data validation'!$B$19,'Data validation'!$D$19,IF(O$6='Data validation'!$B$18,'Data validation'!$D$18,IF(O$6='Data validation'!$B$17,'Data validation'!$D$17,IF(O$6='Data validation'!$B$16,'Data validation'!$D$16,IF(O$6='Data validation'!$B$15,'Data validation'!$D$15,IF(O$6='Data validation'!$B$14,'Data validation'!$D$14,IF(O$6='Data validation'!$B$12,'Data validation'!$D$12,IF(O$6='Data validation'!$B$13,'Data validation'!$D$13,IF(O$6='Data validation'!$B$11,'Data validation'!$D$11,IF(O$6='Data validation'!$B$10,'Data validation'!$D$10,IF(O$6='Data validation'!$B$9,'Data validation'!$D$9,IF(O$6='Data validation'!$B$8,'Data validation'!$D$8)))))))))))))","v":"--"},0,null,null,null,null,{"$f":"SUM(W13:W23)","v":0},{"$f":"IF(V$6='Data validation'!$B$7,'Data validation'!$D$7,IF(V$6='Data validation'!$B$19,'Data validation'!$D$19,IF(V$6='Data validation'!$B$18,'Data validation'!$D$18,IF(V$6='Data validation'!$B$17,'Data validation'!$D$17,IF(V$6='Data validation'!$B$16,'Data validation'!$D$16,IF(V$6='Data validation'!$B$15,'Data validation'!$D$15,IF(V$6='Data validation'!$B$14,'Data validation'!$D$14,IF(V$6='Data validation'!$B$12,'Data validation'!$D$12,IF(V$6='Data validation'!$B$13,'Data validation'!$D$13,IF(V$6='Data validation'!$B$11,'Data validation'!$D$11,IF(V$6='Data validation'!$B$10,'Data validation'!$D$10,IF(V$6='Data validation'!$B$9,'Data validation'!$D$9,IF(V$6='Data validation'!$B$8,'Data validation'!$D$8)))))))))))))","v":"--"},0,null,null,null,null,{"$f":"SUM(AD13:AD23)","v":0},{"$f":"IF(AC$6='Data validation'!$B$7,'Data validation'!$D$7,IF(AC$6='Data validation'!$B$19,'Data validation'!$D$19,IF(AC$6='Data validation'!$B$18,'Data validation'!$D$18,IF(AC$6='Data validation'!$B$17,'Data validation'!$D$17,IF(AC$6='Data validation'!$B$16,'Data validation'!$D$16,IF(AC$6='Data validation'!$B$15,'Data validation'!$D$15,IF(AC$6='Data validation'!$B$14,'Data validation'!$D$14,IF(AC$6='Data validation'!$B$12,'Data validation'!$D$12,IF(AC$6='Data validation'!$B$13,'Data validation'!$D$13,IF(AC$6='Data validation'!$B$11,'Data validation'!$D$11,IF(AC$6='Data validation'!$B$10,'Data validation'!$D$10,IF(AC$6='Data validation'!$B$9,'Data validation'!$D$9,IF(AC$6='Data validation'!$B$8,'Data validation'!$D$8)))))))))))))","v":"--"},0]
[null,"3)","By the last day of each month, enter the most recent eligibility values in the 'Eligibility' tab. ",null,null,null,null,null,null,null,null,null,null,null,null,null,{"$f":"SUM(P13:P24)","v":0},{"$f":"IF(O$6='Data validation'!$B$7,'Data validation'!$D$7,IF(O$6='Data validation'!$B$19,'Data validation'!$D$19,IF(O$6='Data validation'!$B$18,'Data validation'!$D$18,IF(O$6='Data validation'!$B$17,'Data validation'!$D$17,IF(O$6='Data validation'!$B$16,'Data validation'!$D$16,IF(O$6='Data validation'!$B$15,'Data validation'!$D$15,IF(O$6='Data validation'!$B$14,'Data validation'!$D$14,IF(O$6='Data validation'!$B$12,'Data validation'!$D$12,IF(O$6='Data validation'!$B$13,'Data validation'!$D$13,IF(O$6='Data validation'!$B$11,'Data validation'!$D$11,IF(O$6='Data validation'!$B$10,'Data validation'!$D$10,IF(O$6='Data validation'!$B$9,'Data validation'!$D$9,IF(O$6='Data validation'!$B$8,'Data validation'!$D$8)))))))))))))","v":"--"},0,null,null,null,null,{"$f":"SUM(W13:W24)","v":0},{"$f":"IF(V$6='Data validation'!$B$7,'Data validation'!$D$7,IF(V$6='Data validation'!$B$19,'Data validation'!$D$19,IF(V$6='Data validation'!$B$18,'Data validation'!$D$18,IF(V$6='Data validation'!$B$17,'Data validation'!$D$17,IF(V$6='Data validation'!$B$16,'Data validation'!$D$16,IF(V$6='Data validation'!$B$15,'Data validation'!$D$15,IF(V$6='Data validation'!$B$14,'Data validation'!$D$14,IF(V$6='Data validation'!$B$12,'Data validation'!$D$12,IF(V$6='Data validation'!$B$13,'Data validation'!$D$13,IF(V$6='Data validation'!$B$11,'Data validation'!$D$11,IF(V$6='Data validation'!$B$10,'Data validation'!$D$10,IF(V$6='Data validation'!$B$9,'Data validation'!$D$9,IF(V$6='Data validation'!$B$8,'Data validation'!$D$8)))))))))))))","v":"--"},0,null,null,null,null,{"$f":"SUM(AD13:AD24)","v":0},{"$f":"IF(AC$6='Data validation'!$B$7,'Data validation'!$D$7,IF(AC$6='Data validation'!$B$19,'Data validation'!$D$19,IF(AC$6='Data validation'!$B$18,'Data validation'!$D$18,IF(AC$6='Data validation'!$B$17,'Data validation'!$D$17,IF(AC$6='Data validation'!$B$16,'Data validation'!$D$16,IF(AC$6='Data validation'!$B$15,'Data validation'!$D$15,IF(AC$6='Data validation'!$B$14,'Data validation'!$D$14,IF(AC$6='Data validation'!$B$12,'Data validation'!$D$12,IF(AC$6='Data validation'!$B$13,'Data validation'!$D$13,IF(AC$6='Data validation'!$B$11,'Data validation'!$D$11,IF(AC$6='Data validation'!$B$10,'Data validation'!$D$10,IF(AC$6='Data validation'!$B$9,'Data validation'!$D$9,IF(AC$6='Data validation'!$B$8,'Data validation'!$D$8)))))))))))))","v":"--"},0]
[null,null,"-","Sum the eligibility values for all of the boiler fuels and enter on the 'Eligibility' tab.",null,null,null,null,null,null,null,null,null,null,null,null,{"$f":"SUM(P14:P25)","v":0},{"$f":"IF(O$6='Data validation'!$B$7,'Data validation'!$D$7,IF(O$6='Data validation'!$B$19,'Data validation'!$D$19,IF(O$6='Data validation'!$B$18,'Data validation'!$D$18,IF(O$6='Data validation'!$B$17,'Data validation'!$D$17,IF(O$6='Data validation'!$B$16,'Data validation'!$D$16,IF(O$6='Data validation'!$B$15,'Data validation'!$D$15,IF(O$6='Data validation'!$B$14,'Data validation'!$D$14,IF(O$6='Data validation'!$B$12,'Data validation'!$D$12,IF(O$6='Data validation'!$B$13,'Data validation'!$D$13,IF(O$6='Data validation'!$B$11,'Data validation'!$D$11,IF(O$6='Data validation'!$B$10,'Data validation'!$D$10,IF(O$6='Data validation'!$B$9,'Data validation'!$D$9,IF(O$6='Data validation'!$B$8,'Data validation'!$D$8)))))))))))))","v":"--"},0,null,null,null,null,{"$f":"SUM(W14:W25)","v":0},{"$f":"IF(V$6='Data validation'!$B$7,'Data validation'!$D$7,IF(V$6='Data validation'!$B$19,'Data validation'!$D$19,IF(V$6='Data validation'!$B$18,'Data validation'!$D$18,IF(V$6='Data validation'!$B$17,'Data validation'!$D$17,IF(V$6='Data validation'!$B$16,'Data validation'!$D$16,IF(V$6='Data validation'!$B$15,'Data validation'!$D$15,IF(V$6='Data validation'!$B$14,'Data validation'!$D$14,IF(V$6='Data validation'!$B$12,'Data validation'!$D$12,IF(V$6='Data validation'!$B$13,'Data validation'!$D$13,IF(V$6='Data validation'!$B$11,'Data validation'!$D$11,IF(V$6='Data validation'!$B$10,'Data validation'!$D$10,IF(V$6='Data validation'!$B$9,'Data validation'!$D$9,IF(V$6='Data validation'!$B$8,'Data validation'!$D$8)))))))))))))","v":"--"},0,null,null,null,null,{"$f":"SUM(AD14:AD25)","v":0},{"$f":"IF(AC$6='Data validation'!$B$7,'Data validation'!$D$7,IF(AC$6='Data validation'!$B$19,'Data validation'!$D$19,IF(AC$6='Data validation'!$B$18,'Data validation'!$D$18,IF(AC$6='Data validation'!$B$17,'Data validation'!$D$17,IF(AC$6='Data validation'!$B$16,'Data validation'!$D$16,IF(AC$6='Data validation'!$B$15,'Data validation'!$D$15,IF(AC$6='Data validation'!$B$14,'Data validation'!$D$14,IF(AC$6='Data validation'!$B$12,'Data validation'!$D$12,IF(AC$6='Data validation'!$B$13,'Data validation'!$D$13,IF(AC$6='Data validation'!$B$11,'Data validation'!$D$11,IF(AC$6='Data validation'!$B$10,'Data validation'!$D$10,IF(AC$6='Data validation'!$B$9,'Data validation'!$D$9,IF(AC$6='Data validation'!$B$8,'Data validation'!$D$8)))))))))))))","v":"--"},0]
[null,null,"-","If your business qualifies for reduced recordkeeping, the eligibility number may be calculated on an annual basis, no later than April 1st of the following year. See more information on the 'Eligibility' tab.",null,null,null,null,null,null,null,null,null,null,null,null,0,{"$f":"IF(O$6='Data validation'!$B$7,'Data validation'!$D$7,IF(O$6='Data validation'!$B$19,'Data validation'!$D$19,IF(O$6='Data validation'!$B$18,'Data validation'!$D$18,IF(O$6='Data validation'!$B$17,'Data validation'!$D$17,IF(O$6='Data validation'!$B$16,'Data validation'!$D$16,IF(O$6='Data validation'!$B$15,'Data validation'!$D$15,IF(O$6='Data validation'!$B$14,'Data validation'!$D$14,IF(O$6='Data validation'!$B$12,'Data validation'!$D$12,IF(O$6='Data validation'!$B$13,'Data validation'!$D$13,IF(O$6='Data validation'!$B$11,'Data validation'!$D$11,IF(O$6='Data validation'!$B$10,'Data validation'!$D$10,IF(O$6='Data validation'!$B$9,'Data validation'!$D$9,IF(O$6='Data validation'!$B$8,'Data validation'!$D$8)))))))))))))","v":"--"},0,null,null,null,null,0,{"$f":"IF(V$6='Data validation'!$B$7,'Data validation'!$D$7,IF(V$6='Data validation'!$B$19,'Data validation'!$D$19,IF(V$6='Data validation'!$B$18,'Data validation'!$D$18,IF(V$6='Data validation'!$B$17,'Data validation'!$D$17,IF(V$6='Data validation'!$B$16,'Data validation'!$D$16,IF(V$6='Data validation'!$B$15,'Data validation'!$D$15,IF(V$6='Data validation'!$B$14,'Data validation'!$D$14,IF(V$6='Data validation'!$B$12,'Data validation'!$D$12,IF(V$6='Data validation'!$B$13,'Data validation'!$D$13,IF(V$6='Data validation'!$B$11,'Data validation'!$D$11,IF(V$6='Data validation'!$B$10,'Data validation'!$D$10,IF(V$6='Data validation'!$B$9,'Data validation'!$D$9,IF(V$6='Data validation'!$B$8,'Data validation'!$D$8)))))))))))))","v":"--"},0,null,null,null,null,0,{"$f":"IF(AC$6='Data validation'!$B$7,'Data validation'!$D$7,IF(AC$6='Data validation'!$B$19,'Data validation'!$D$19,IF(AC$6='Data validation'!$B$18,'Data validation'!$D$18,IF(AC$6='Data validation'!$B$17,'Data validation'!$D$17,IF(AC$6='Data validation'!$B$16,'Data validation'!$D$16,IF(AC$6='Data validation'!$B$15,'Data validation'!$D$15,IF(AC$6='Data validation'!$B$14,'Data validation'!$D$14,IF(AC$6='Data validation'!$B$12,'Data validation'!$D$12,IF(AC$6='Data validation'!$B$13,'Data validation'!$D$13,IF(AC$6='Data validation'!$B$11,'Data validation'!$D$11,IF(AC$6='Data validation'!$B$10,'Data validation'!$D$10,IF(AC$6='Data validation'!$B$9,'Data validation'!$D$9,IF(AC$6='Data validation'!$B$8,'Data validation'!$D$8)))))))))))))","v":"--"},0]
[null,null,null,null,null,null,null,null,null,null,null,null,null,null,null,null,0,{"$f":"IF(O$6='Data validation'!$B$7,'Data validation'!$D$7,IF(O$6='Data validation'!$B$19,'Data validation'!$D$19,IF(O$6='Data validation'!$B$18,'Data validation'!$D$18,IF(O$6='Data validation'!$B$17,'Data validation'!$D$17,IF(O$6='Data validation'!$B$16,'Data validation'!$D$16,IF(O$6='Data validation'!$B$15,'Data validation'!$D$15,IF(O$6='Data validation'!$B$14,'Data validation'!$D$14,IF(O$6='Data validation'!$B$12,'Data validation'!$D$12,IF(O$6='Data validation'!$B$13,'Data validation'!$D$13,IF(O$6='Data validation'!$B$11,'Data validation'!$D$11,IF(O$6='Data validation'!$B$10,'Data validation'!$D$10,IF(O$6='Data validation'!$B$9,'Data validation'!$D$9,IF(O$6='Data validation'!$B$8,'Data validation'!$D$8)))))))))))))","v":"--"},0,null,null,null,null,0,{"$f":"IF(V$6='Data validation'!$B$7,'Data validation'!$D$7,IF(V$6='Data validation'!$B$19,'Data validation'!$D$19,IF(V$6='Data validation'!$B$18,'Data validation'!$D$18,IF(V$6='Data validation'!$B$17,'Data validation'!$D$17,IF(V$6='Data validation'!$B$16,'Data validation'!$D$16,IF(V$6='Data validation'!$B$15,'Data validation'!$D$15,IF(V$6='Data validation'!$B$14,'Data validation'!$D$14,IF(V$6='Data validation'!$B$12,'Data validation'!$D$12,IF(V$6='Data validation'!$B$13,'Data validation'!$D$13,IF(V$6='Data validation'!$B$11,'Data validation'!$D$11,IF(V$6='Data validation'!$B$10,'Data validation'!$D$10,IF(V$6='Data validation'!$B$9,'Data validation'!$D$9,IF(V$6='Data validation'!$B$8,'Data validation'!$D$8)))))))))))))","v":"--"},0,null,null,null,null,0,{"$f":"IF(AC$6='Data validation'!$B$7,'Data validation'!$D$7,IF(AC$6='Data validation'!$B$19,'Data validation'!$D$19,IF(AC$6='Data validation'!$B$18,'Data validation'!$D$18,IF(AC$6='Data validation'!$B$17,'Data validation'!$D$17,IF(AC$6='Data validation'!$B$16,'Data validation'!$D$16,IF(AC$6='Data validation'!$B$15,'Data validation'!$D$15,IF(AC$6='Data validation'!$B$14,'Data validation'!$D$14,IF(AC$6='Data validation'!$B$12,'Data validation'!$D$12,IF(AC$6='Data validation'!$B$13,'Data validation'!$D$13,IF(AC$6='Data validation'!$B$11,'Data validation'!$D$11,IF(AC$6='Data validation'!$B$10,'Data validation'!$D$10,IF(AC$6='Data validation'!$B$9,'Data validation'!$D$9,IF(AC$6='Data validation'!$B$8,'Data validation'!$D$8)))))))))))))","v":"--"},0]
[null,null,null,null,null,null,null,null,null,null,null,null,null,null,null,null,0,{"$f":"IF(O$6='Data validation'!$B$7,'Data validation'!$D$7,IF(O$6='Data validation'!$B$19,'Data validation'!$D$19,IF(O$6='Data validation'!$B$18,'Data validation'!$D$18,IF(O$6='Data validation'!$B$17,'Data validation'!$D$17,IF(O$6='Data validation'!$B$16,'Data validation'!$D$16,IF(O$6='Data validation'!$B$15,'Data validation'!$D$15,IF(O$6='Data validation'!$B$14,'Data validation'!$D$14,IF(O$6='Data validation'!$B$12,'Data validation'!$D$12,IF(O$6='Data validation'!$B$13,'Data validation'!$D$13,IF(O$6='Data validation'!$B$11,'Data validation'!$D$11,IF(O$6='Data validation'!$B$10,'Data validation'!$D$10,IF(O$6='Data validation'!$B$9,'Data validation'!$D$9,IF(O$6='Data validation'!$B$8,'Data validation'!$D$8)))))))))))))","v":"--"},0,null,null,null,null,0,{"$f":"IF(V$6='Data validation'!$B$7,'Data validation'!$D$7,IF(V$6='Data validation'!$B$19,'Data validation'!$D$19,IF(V$6='Data validation'!$B$18,'Data validation'!$D$18,IF(V$6='Data validation'!$B$17,'Data validation'!$D$17,IF(V$6='Data validation'!$B$16,'Data validation'!$D$16,IF(V$6='Data validation'!$B$15,'Data validation'!$D$15,IF(V$6='Data validation'!$B$14,'Data validation'!$D$14,IF(V$6='Data validation'!$B$12,'Data validation'!$D$12,IF(V$6='Data validation'!$B$13,'Data validation'!$D$13,IF(V$6='Data validation'!$B$11,'Data validation'!$D$11,IF(V$6='Data validation'!$B$10,'Data validation'!$D$10,IF(V$6='Data validation'!$B$9,'Data validation'!$D$9,IF(V$6='Data validation'!$B$8,'Data validation'!$D$8)))))))))))))","v":"--"},0,null,null,null,null,0,{"$f":"IF(AC$6='Data validation'!$B$7,'Data validation'!$D$7,IF(AC$6='Data validation'!$B$19,'Data validation'!$D$19,IF(AC$6='Data validation'!$B$18,'Data validation'!$D$18,IF(AC$6='Data validation'!$B$17,'Data validation'!$D$17,IF(AC$6='Data validation'!$B$16,'Data validation'!$D$16,IF(AC$6='Data validation'!$B$15,'Data validation'!$D$15,IF(AC$6='Data validation'!$B$14,'Data validation'!$D$14,IF(AC$6='Data validation'!$B$12,'Data validation'!$D$12,IF(AC$6='Data validation'!$B$13,'Data validation'!$D$13,IF(AC$6='Data validation'!$B$11,'Data validation'!$D$11,IF(AC$6='Data validation'!$B$10,'Data validation'!$D$10,IF(AC$6='Data validation'!$B$9,'Data validation'!$D$9,IF(AC$6='Data validation'!$B$8,'Data validation'!$D$8)))))))))))))","v":"--"},0]
[null,null,null,null,null,null,null,null,null,null,null,null,null,null,null,null,0,{"$f":"IF(O$6='Data validation'!$B$7,'Data validation'!$D$7,IF(O$6='Data validation'!$B$19,'Data validation'!$D$19,IF(O$6='Data validation'!$B$18,'Data validation'!$D$18,IF(O$6='Data validation'!$B$17,'Data validation'!$D$17,IF(O$6='Data validation'!$B$16,'Data validation'!$D$16,IF(O$6='Data validation'!$B$15,'Data validation'!$D$15,IF(O$6='Data validation'!$B$14,'Data validation'!$D$14,IF(O$6='Data validation'!$B$12,'Data validation'!$D$12,IF(O$6='Data validation'!$B$13,'Data validation'!$D$13,IF(O$6='Data validation'!$B$11,'Data validation'!$D$11,IF(O$6='Data validation'!$B$10,'Data validation'!$D$10,IF(O$6='Data validation'!$B$9,'Data validation'!$D$9,IF(O$6='Data validation'!$B$8,'Data validation'!$D$8)))))))))))))","v":"--"},0,null,null,null,null,0,{"$f":"IF(V$6='Data validation'!$B$7,'Data validation'!$D$7,IF(V$6='Data validation'!$B$19,'Data validation'!$D$19,IF(V$6='Data validation'!$B$18,'Data validation'!$D$18,IF(V$6='Data validation'!$B$17,'Data validation'!$D$17,IF(V$6='Data validation'!$B$16,'Data validation'!$D$16,IF(V$6='Data validation'!$B$15,'Data validation'!$D$15,IF(V$6='Data validation'!$B$14,'Data validation'!$D$14,IF(V$6='Data validation'!$B$12,'Data validation'!$D$12,IF(V$6='Data validation'!$B$13,'Data validation'!$D$13,IF(V$6='Data validation'!$B$11,'Data validation'!$D$11,IF(V$6='Data validation'!$B$10,'Data validation'!$D$10,IF(V$6='Data validation'!$B$9,'Data validation'!$D$9,IF(V$6='Data validation'!$B$8,'Data validation'!$D$8)))))))))))))","v":"--"},0,null,null,null,null,0,{"$f":"IF(AC$6='Data validation'!$B$7,'Data validation'!$D$7,IF(AC$6='Data validation'!$B$19,'Data validation'!$D$19,IF(AC$6='Data validation'!$B$18,'Data validation'!$D$18,IF(AC$6='Data validation'!$B$17,'Data validation'!$D$17,IF(AC$6='Data validation'!$B$16,'Data validation'!$D$16,IF(AC$6='Data validation'!$B$15,'Data validation'!$D$15,IF(AC$6='Data validation'!$B$14,'Data validation'!$D$14,IF(AC$6='Data validation'!$B$12,'Data validation'!$D$12,IF(AC$6='Data validation'!$B$13,'Data validation'!$D$13,IF(AC$6='Data validation'!$B$11,'Data validation'!$D$11,IF(AC$6='Data validation'!$B$10,'Data validation'!$D$10,IF(AC$6='Data validation'!$B$9,'Data validation'!$D$9,IF(AC$6='Data validation'!$B$8,'Data validation'!$D$8)))))))))))))","v":"--"},0]
[null,null,null,null,null,null,null,null,null,null,null,null,null,null,null,null,0,{"$f":"IF(O$6='Data validation'!$B$7,'Data validation'!$D$7,IF(O$6='Data validation'!$B$19,'Data validation'!$D$19,IF(O$6='Data validation'!$B$18,'Data validation'!$D$18,IF(O$6='Data validation'!$B$17,'Data validation'!$D$17,IF(O$6='Data validation'!$B$16,'Data validation'!$D$16,IF(O$6='Data validation'!$B$15,'Data validation'!$D$15,IF(O$6='Data validation'!$B$14,'Data validation'!$D$14,IF(O$6='Data validation'!$B$12,'Data validation'!$D$12,IF(O$6='Data validation'!$B$13,'Data validation'!$D$13,IF(O$6='Data validation'!$B$11,'Data validation'!$D$11,IF(O$6='Data validation'!$B$10,'Data validation'!$D$10,IF(O$6='Data validation'!$B$9,'Data validation'!$D$9,IF(O$6='Data validation'!$B$8,'Data validation'!$D$8)))))))))))))","v":"--"},0,null,null,null,null,0,{"$f":"IF(V$6='Data validation'!$B$7,'Data validation'!$D$7,IF(V$6='Data validation'!$B$19,'Data validation'!$D$19,IF(V$6='Data validation'!$B$18,'Data validation'!$D$18,IF(V$6='Data validation'!$B$17,'Data validation'!$D$17,IF(V$6='Data validation'!$B$16,'Data validation'!$D$16,IF(V$6='Data validation'!$B$15,'Data validation'!$D$15,IF(V$6='Data validation'!$B$14,'Data validation'!$D$14,IF(V$6='Data validation'!$B$12,'Data validation'!$D$12,IF(V$6='Data validation'!$B$13,'Data validation'!$D$13,IF(V$6='Data validation'!$B$11,'Data validation'!$D$11,IF(V$6='Data validation'!$B$10,'Data validation'!$D$10,IF(V$6='Data validation'!$B$9,'Data validation'!$D$9,IF(V$6='Data validation'!$B$8,'Data validation'!$D$8)))))))))))))","v":"--"},0,null,null,null,null,0,{"$f":"IF(AC$6='Data validation'!$B$7,'Data validation'!$D$7,IF(AC$6='Data validation'!$B$19,'Data validation'!$D$19,IF(AC$6='Data validation'!$B$18,'Data validation'!$D$18,IF(AC$6='Data validation'!$B$17,'Data validation'!$D$17,IF(AC$6='Data validation'!$B$16,'Data validation'!$D$16,IF(AC$6='Data validation'!$B$15,'Data validation'!$D$15,IF(AC$6='Data validation'!$B$14,'Data validation'!$D$14,IF(AC$6='Data validation'!$B$12,'Data validation'!$D$12,IF(AC$6='Data validation'!$B$13,'Data validation'!$D$13,IF(AC$6='Data validation'!$B$11,'Data validation'!$D$11,IF(AC$6='Data validation'!$B$10,'Data validation'!$D$10,IF(AC$6='Data validation'!$B$9,'Data validation'!$D$9,IF(AC$6='Data validation'!$B$8,'Data validation'!$D$8)))))))))))))","v":"--"},0]
[null,null,null,null,null,null,null,null,null,null,null,null,null,null,null,null,0,{"$f":"IF(O$6='Data validation'!$B$7,'Data validation'!$D$7,IF(O$6='Data validation'!$B$19,'Data validation'!$D$19,IF(O$6='Data validation'!$B$18,'Data validation'!$D$18,IF(O$6='Data validation'!$B$17,'Data validation'!$D$17,IF(O$6='Data validation'!$B$16,'Data validation'!$D$16,IF(O$6='Data validation'!$B$15,'Data validation'!$D$15,IF(O$6='Data validation'!$B$14,'Data validation'!$D$14,IF(O$6='Data validation'!$B$12,'Data validation'!$D$12,IF(O$6='Data validation'!$B$13,'Data validation'!$D$13,IF(O$6='Data validation'!$B$11,'Data validation'!$D$11,IF(O$6='Data validation'!$B$10,'Data validation'!$D$10,IF(O$6='Data validation'!$B$9,'Data validation'!$D$9,IF(O$6='Data validation'!$B$8,'Data validation'!$D$8)))))))))))))","v":"--"},0,null,null,null,null,0,{"$f":"IF(V$6='Data validation'!$B$7,'Data validation'!$D$7,IF(V$6='Data validation'!$B$19,'Data validation'!$D$19,IF(V$6='Data validation'!$B$18,'Data validation'!$D$18,IF(V$6='Data validation'!$B$17,'Data validation'!$D$17,IF(V$6='Data validation'!$B$16,'Data validation'!$D$16,IF(V$6='Data validation'!$B$15,'Data validation'!$D$15,IF(V$6='Data validation'!$B$14,'Data validation'!$D$14,IF(V$6='Data validation'!$B$12,'Data validation'!$D$12,IF(V$6='Data validation'!$B$13,'Data validation'!$D$13,IF(V$6='Data validation'!$B$11,'Data validation'!$D$11,IF(V$6='Data validation'!$B$10,'Data validation'!$D$10,IF(V$6='Data validation'!$B$9,'Data validation'!$D$9,IF(V$6='Data validation'!$B$8,'Data validation'!$D$8)))))))))))))","v":"--"},0,null,null,null,null,0,{"$f":"IF(AC$6='Data validation'!$B$7,'Data validation'!$D$7,IF(AC$6='Data validation'!$B$19,'Data validation'!$D$19,IF(AC$6='Data validation'!$B$18,'Data validation'!$D$18,IF(AC$6='Data validation'!$B$17,'Data validation'!$D$17,IF(AC$6='Data validation'!$B$16,'Data validation'!$D$16,IF(AC$6='Data validation'!$B$15,'Data validation'!$D$15,IF(AC$6='Data validation'!$B$14,'Data validation'!$D$14,IF(AC$6='Data validation'!$B$12,'Data validation'!$D$12,IF(AC$6='Data validation'!$B$13,'Data validation'!$D$13,IF(AC$6='Data validation'!$B$11,'Data validation'!$D$11,IF(AC$6='Data validation'!$B$10,'Data validation'!$D$10,IF(AC$6='Data validation'!$B$9,'Data validation'!$D$9,IF(AC$6='Data validation'!$B$8,'Data validation'!$D$8)))))))))))))","v":"--"},0]
[null,null,null,null,null,null,null,null,null,null,null,null,null,null,null,null,0,{"$f":"IF(O$6='Data validation'!$B$7,'Data validation'!$D$7,IF(O$6='Data validation'!$B$19,'Data validation'!$D$19,IF(O$6='Data validation'!$B$18,'Data validation'!$D$18,IF(O$6='Data validation'!$B$17,'Data validation'!$D$17,IF(O$6='Data validation'!$B$16,'Data validation'!$D$16,IF(O$6='Data validation'!$B$15,'Data validation'!$D$15,IF(O$6='Data validation'!$B$14,'Data validation'!$D$14,IF(O$6='Data validation'!$B$12,'Data validation'!$D$12,IF(O$6='Data validation'!$B$13,'Data validation'!$D$13,IF(O$6='Data validation'!$B$11,'Data validation'!$D$11,IF(O$6='Data validation'!$B$10,'Data validation'!$D$10,IF(O$6='Data validation'!$B$9,'Data validation'!$D$9,IF(O$6='Data validation'!$B$8,'Data validation'!$D$8)))))))))))))","v":"--"},0,null,null,null,null,0,{"$f":"IF(V$6='Data validation'!$B$7,'Data validation'!$D$7,IF(V$6='Data validation'!$B$19,'Data validation'!$D$19,IF(V$6='Data validation'!$B$18,'Data validation'!$D$18,IF(V$6='Data validation'!$B$17,'Data validation'!$D$17,IF(V$6='Data validation'!$B$16,'Data validation'!$D$16,IF(V$6='Data validation'!$B$15,'Data validation'!$D$15,IF(V$6='Data validation'!$B$14,'Data validation'!$D$14,IF(V$6='Data validation'!$B$12,'Data validation'!$D$12,IF(V$6='Data validation'!$B$13,'Data validation'!$D$13,IF(V$6='Data validation'!$B$11,'Data validation'!$D$11,IF(V$6='Data validation'!$B$10,'Data validation'!$D$10,IF(V$6='Data validation'!$B$9,'Data validation'!$D$9,IF(V$6='Data validation'!$B$8,'Data validation'!$D$8)))))))))))))","v":"--"},0,null,null,null,null,0,{"$f":"IF(AC$6='Data validation'!$B$7,'Data validation'!$D$7,IF(AC$6='Data validation'!$B$19,'Data validation'!$D$19,IF(AC$6='Data validation'!$B$18,'Data validation'!$D$18,IF(AC$6='Data validation'!$B$17,'Data validation'!$D$17,IF(AC$6='Data validation'!$B$16,'Data validation'!$D$16,IF(AC$6='Data validation'!$B$15,'Data validation'!$D$15,IF(AC$6='Data validation'!$B$14,'Data validation'!$D$14,IF(AC$6='Data validation'!$B$12,'Data validation'!$D$12,IF(AC$6='Data validation'!$B$13,'Data validation'!$D$13,IF(AC$6='Data validation'!$B$11,'Data validation'!$D$11,IF(AC$6='Data validation'!$B$10,'Data validation'!$D$10,IF(AC$6='Data validation'!$B$9,'Data validation'!$D$9,IF(AC$6='Data validation'!$B$8,'Data validation'!$D$8)))))))))))))","v":"--"},0]
[null,null,null,null,null,null,null,null,null,null,null,null,null,null,null,null,0,{"$f":"IF(O$6='Data validation'!$B$7,'Data validation'!$D$7,IF(O$6='Data validation'!$B$19,'Data validation'!$D$19,IF(O$6='Data validation'!$B$18,'Data validation'!$D$18,IF(O$6='Data validation'!$B$17,'Data validation'!$D$17,IF(O$6='Data validation'!$B$16,'Data validation'!$D$16,IF(O$6='Data validation'!$B$15,'Data validation'!$D$15,IF(O$6='Data validation'!$B$14,'Data validation'!$D$14,IF(O$6='Data validation'!$B$12,'Data validation'!$D$12,IF(O$6='Data validation'!$B$13,'Data validation'!$D$13,IF(O$6='Data validation'!$B$11,'Data validation'!$D$11,IF(O$6='Data validation'!$B$10,'Data validation'!$D$10,IF(O$6='Data validation'!$B$9,'Data validation'!$D$9,IF(O$6='Data validation'!$B$8,'Data validation'!$D$8)))))))))))))","v":"--"},0,null,null,null,null,0,{"$f":"IF(V$6='Data validation'!$B$7,'Data validation'!$D$7,IF(V$6='Data validation'!$B$19,'Data validation'!$D$19,IF(V$6='Data validation'!$B$18,'Data validation'!$D$18,IF(V$6='Data validation'!$B$17,'Data validation'!$D$17,IF(V$6='Data validation'!$B$16,'Data validation'!$D$16,IF(V$6='Data validation'!$B$15,'Data validation'!$D$15,IF(V$6='Data validation'!$B$14,'Data validation'!$D$14,IF(V$6='Data validation'!$B$12,'Data validation'!$D$12,IF(V$6='Data validation'!$B$13,'Data validation'!$D$13,IF(V$6='Data validation'!$B$11,'Data validation'!$D$11,IF(V$6='Data validation'!$B$10,'Data validation'!$D$10,IF(V$6='Data validation'!$B$9,'Data validation'!$D$9,IF(V$6='Data validation'!$B$8,'Data validation'!$D$8)))))))))))))","v":"--"},0,null,null,null,null,0,{"$f":"IF(AC$6='Data validation'!$B$7,'Data validation'!$D$7,IF(AC$6='Data validation'!$B$19,'Data validation'!$D$19,IF(AC$6='Data validation'!$B$18,'Data validation'!$D$18,IF(AC$6='Data validation'!$B$17,'Data validation'!$D$17,IF(AC$6='Data validation'!$B$16,'Data validation'!$D$16,IF(AC$6='Data validation'!$B$15,'Data validation'!$D$15,IF(AC$6='Data validation'!$B$14,'Data validation'!$D$14,IF(AC$6='Data validation'!$B$12,'Data validation'!$D$12,IF(AC$6='Data validation'!$B$13,'Data validation'!$D$13,IF(AC$6='Data validation'!$B$11,'Data validation'!$D$11,IF(AC$6='Data validation'!$B$10,'Data validation'!$D$10,IF(AC$6='Data validation'!$B$9,'Data validation'!$D$9,IF(AC$6='Data validation'!$B$8,'Data validation'!$D$8)))))))))))))","v":"--"},0]
[null,null,null,null,null,null,null,null,null,null,null,null,null,null,null,null,0,{"$f":"IF(O$6='Data validation'!$B$7,'Data validation'!$D$7,IF(O$6='Data validation'!$B$19,'Data validation'!$D$19,IF(O$6='Data validation'!$B$18,'Data validation'!$D$18,IF(O$6='Data validation'!$B$17,'Data validation'!$D$17,IF(O$6='Data validation'!$B$16,'Data validation'!$D$16,IF(O$6='Data validation'!$B$15,'Data validation'!$D$15,IF(O$6='Data validation'!$B$14,'Data validation'!$D$14,IF(O$6='Data validation'!$B$12,'Data validation'!$D$12,IF(O$6='Data validation'!$B$13,'Data validation'!$D$13,IF(O$6='Data validation'!$B$11,'Data validation'!$D$11,IF(O$6='Data validation'!$B$10,'Data validation'!$D$10,IF(O$6='Data validation'!$B$9,'Data validation'!$D$9,IF(O$6='Data validation'!$B$8,'Data validation'!$D$8)))))))))))))","v":"--"},0,null,null,null,null,0,{"$f":"IF(V$6='Data validation'!$B$7,'Data validation'!$D$7,IF(V$6='Data validation'!$B$19,'Data validation'!$D$19,IF(V$6='Data validation'!$B$18,'Data validation'!$D$18,IF(V$6='Data validation'!$B$17,'Data validation'!$D$17,IF(V$6='Data validation'!$B$16,'Data validation'!$D$16,IF(V$6='Data validation'!$B$15,'Data validation'!$D$15,IF(V$6='Data validation'!$B$14,'Data validation'!$D$14,IF(V$6='Data validation'!$B$12,'Data validation'!$D$12,IF(V$6='Data validation'!$B$13,'Data validation'!$D$13,IF(V$6='Data validation'!$B$11,'Data validation'!$D$11,IF(V$6='Data validation'!$B$10,'Data validation'!$D$10,IF(V$6='Data validation'!$B$9,'Data validation'!$D$9,IF(V$6='Data validation'!$B$8,'Data validation'!$D$8)))))))))))))","v":"--"},0,null,null,null,null,0,{"$f":"IF(AC$6='Data validation'!$B$7,'Data validation'!$D$7,IF(AC$6='Data validation'!$B$19,'Data validation'!$D$19,IF(AC$6='Data validation'!$B$18,'Data validation'!$D$18,IF(AC$6='Data validation'!$B$17,'Data validation'!$D$17,IF(AC$6='Data validation'!$B$16,'Data validation'!$D$16,IF(AC$6='Data validation'!$B$15,'Data validation'!$D$15,IF(AC$6='Data validation'!$B$14,'Data validation'!$D$14,IF(AC$6='Data validation'!$B$12,'Data validation'!$D$12,IF(AC$6='Data validation'!$B$13,'Data validation'!$D$13,IF(AC$6='Data validation'!$B$11,'Data validation'!$D$11,IF(AC$6='Data validation'!$B$10,'Data validation'!$D$10,IF(AC$6='Data validation'!$B$9,'Data validation'!$D$9,IF(AC$6='Data validation'!$B$8,'Data validation'!$D$8)))))))))))))","v":"--"},0]
[null,null,null,null,null,null,null,null,null,null,null,null,null,null,null,null,0,{"$f":"IF(O$6='Data validation'!$B$7,'Data validation'!$D$7,IF(O$6='Data validation'!$B$19,'Data validation'!$D$19,IF(O$6='Data validation'!$B$18,'Data validation'!$D$18,IF(O$6='Data validation'!$B$17,'Data validation'!$D$17,IF(O$6='Data validation'!$B$16,'Data validation'!$D$16,IF(O$6='Data validation'!$B$15,'Data validation'!$D$15,IF(O$6='Data validation'!$B$14,'Data validation'!$D$14,IF(O$6='Data validation'!$B$12,'Data validation'!$D$12,IF(O$6='Data validation'!$B$13,'Data validation'!$D$13,IF(O$6='Data validation'!$B$11,'Data validation'!$D$11,IF(O$6='Data validation'!$B$10,'Data validation'!$D$10,IF(O$6='Data validation'!$B$9,'Data validation'!$D$9,IF(O$6='Data validation'!$B$8,'Data validation'!$D$8)))))))))))))","v":"--"},0,null,null,null,null,0,{"$f":"IF(V$6='Data validation'!$B$7,'Data validation'!$D$7,IF(V$6='Data validation'!$B$19,'Data validation'!$D$19,IF(V$6='Data validation'!$B$18,'Data validation'!$D$18,IF(V$6='Data validation'!$B$17,'Data validation'!$D$17,IF(V$6='Data validation'!$B$16,'Data validation'!$D$16,IF(V$6='Data validation'!$B$15,'Data validation'!$D$15,IF(V$6='Data validation'!$B$14,'Data validation'!$D$14,IF(V$6='Data validation'!$B$12,'Data validation'!$D$12,IF(V$6='Data validation'!$B$13,'Data validation'!$D$13,IF(V$6='Data validation'!$B$11,'Data validation'!$D$11,IF(V$6='Data validation'!$B$10,'Data validation'!$D$10,IF(V$6='Data validation'!$B$9,'Data validation'!$D$9,IF(V$6='Data validation'!$B$8,'Data validation'!$D$8)))))))))))))","v":"--"},0,null,null,null,null,0,{"$f":"IF(AC$6='Data validation'!$B$7,'Data validation'!$D$7,IF(AC$6='Data validation'!$B$19,'Data validation'!$D$19,IF(AC$6='Data validation'!$B$18,'Data validation'!$D$18,IF(AC$6='Data validation'!$B$17,'Data validation'!$D$17,IF(AC$6='Data validation'!$B$16,'Data validation'!$D$16,IF(AC$6='Data validation'!$B$15,'Data validation'!$D$15,IF(AC$6='Data validation'!$B$14,'Data validation'!$D$14,IF(AC$6='Data validation'!$B$12,'Data validation'!$D$12,IF(AC$6='Data validation'!$B$13,'Data validation'!$D$13,IF(AC$6='Data validation'!$B$11,'Data validation'!$D$11,IF(AC$6='Data validation'!$B$10,'Data validation'!$D$10,IF(AC$6='Data validation'!$B$9,'Data validation'!$D$9,IF(AC$6='Data validation'!$B$8,'Data validation'!$D$8)))))))))))))","v":"--"},0]
[null,null,null,null,null,null,null,null,null,null,null,null,null,null,null,null,{"$f":"SUM(P25:P36)","v":0},{"$f":"IF(O$6='Data validation'!$B$7,'Data validation'!$D$7,IF(O$6='Data validation'!$B$19,'Data validation'!$D$19,IF(O$6='Data validation'!$B$18,'Data validation'!$D$18,IF(O$6='Data validation'!$B$17,'Data validation'!$D$17,IF(O$6='Data validation'!$B$16,'Data validation'!$D$16,IF(O$6='Data validation'!$B$15,'Data validation'!$D$15,IF(O$6='Data validation'!$B$14,'Data validation'!$D$14,IF(O$6='Data validation'!$B$12,'Data validation'!$D$12,IF(O$6='Data validation'!$B$13,'Data validation'!$D$13,IF(O$6='Data validation'!$B$11,'Data validation'!$D$11,IF(O$6='Data validation'!$B$10,'Data validation'!$D$10,IF(O$6='Data validation'!$B$9,'Data validation'!$D$9,IF(O$6='Data validation'!$B$8,'Data validation'!$D$8)))))))))))))","v":"--"},0,null,null,null,null,0,{"$f":"IF(V$6='Data validation'!$B$7,'Data validation'!$D$7,IF(V$6='Data validation'!$B$19,'Data validation'!$D$19,IF(V$6='Data validation'!$B$18,'Data validation'!$D$18,IF(V$6='Data validation'!$B$17,'Data validation'!$D$17,IF(V$6='Data validation'!$B$16,'Data validation'!$D$16,IF(V$6='Data validation'!$B$15,'Data validation'!$D$15,IF(V$6='Data validation'!$B$14,'Data validation'!$D$14,IF(V$6='Data validation'!$B$12,'Data validation'!$D$12,IF(V$6='Data validation'!$B$13,'Data validation'!$D$13,IF(V$6='Data validation'!$B$11,'Data validation'!$D$11,IF(V$6='Data validation'!$B$10,'Data validation'!$D$10,IF(V$6='Data validation'!$B$9,'Data validation'!$D$9,IF(V$6='Data validation'!$B$8,'Data validation'!$D$8)))))))))))))","v":"--"},0,null,null,null,null,0,{"$f":"IF(AC$6='Data validation'!$B$7,'Data validation'!$D$7,IF(AC$6='Data validation'!$B$19,'Data validation'!$D$19,IF(AC$6='Data validation'!$B$18,'Data validation'!$D$18,IF(AC$6='Data validation'!$B$17,'Data validation'!$D$17,IF(AC$6='Data validation'!$B$16,'Data validation'!$D$16,IF(AC$6='Data validation'!$B$15,'Data validation'!$D$15,IF(AC$6='Data validation'!$B$14,'Data validation'!$D$14,IF(AC$6='Data validation'!$B$12,'Data validation'!$D$12,IF(AC$6='Data validation'!$B$13,'Data validation'!$D$13,IF(AC$6='Data validation'!$B$11,'Data validation'!$D$11,IF(AC$6='Data validation'!$B$10,'Data validation'!$D$10,IF(AC$6='Data validation'!$B$9,'Data validation'!$D$9,IF(AC$6='Data validation'!$B$8,'Data validation'!$D$8)))))))))))))","v":"--"},0]
[null,null,null,null,null,null,null,null,null,null,null,null,null,null,null,null,0,{"$f":"IF(O$6='Data validation'!$B$7,'Data validation'!$D$7,IF(O$6='Data validation'!$B$19,'Data validation'!$D$19,IF(O$6='Data validation'!$B$18,'Data validation'!$D$18,IF(O$6='Data validation'!$B$17,'Data validation'!$D$17,IF(O$6='Data validation'!$B$16,'Data validation'!$D$16,IF(O$6='Data validation'!$B$15,'Data validation'!$D$15,IF(O$6='Data validation'!$B$14,'Data validation'!$D$14,IF(O$6='Data validation'!$B$12,'Data validation'!$D$12,IF(O$6='Data validation'!$B$13,'Data validation'!$D$13,IF(O$6='Data validation'!$B$11,'Data validation'!$D$11,IF(O$6='Data validation'!$B$10,'Data validation'!$D$10,IF(O$6='Data validation'!$B$9,'Data validation'!$D$9,IF(O$6='Data validation'!$B$8,'Data validation'!$D$8)))))))))))))","v":"--"},0,null,null,null,null,0,{"$f":"IF(V$6='Data validation'!$B$7,'Data validation'!$D$7,IF(V$6='Data validation'!$B$19,'Data validation'!$D$19,IF(V$6='Data validation'!$B$18,'Data validation'!$D$18,IF(V$6='Data validation'!$B$17,'Data validation'!$D$17,IF(V$6='Data validation'!$B$16,'Data validation'!$D$16,IF(V$6='Data validation'!$B$15,'Data validation'!$D$15,IF(V$6='Data validation'!$B$14,'Data validation'!$D$14,IF(V$6='Data validation'!$B$12,'Data validation'!$D$12,IF(V$6='Data validation'!$B$13,'Data validation'!$D$13,IF(V$6='Data validation'!$B$11,'Data validation'!$D$11,IF(V$6='Data validation'!$B$10,'Data validation'!$D$10,IF(V$6='Data validation'!$B$9,'Data validation'!$D$9,IF(V$6='Data validation'!$B$8,'Data validation'!$D$8)))))))))))))","v":"--"},0,null,null,null,null,0,{"$f":"IF(AC$6='Data validation'!$B$7,'Data validation'!$D$7,IF(AC$6='Data validation'!$B$19,'Data validation'!$D$19,IF(AC$6='Data validation'!$B$18,'Data validation'!$D$18,IF(AC$6='Data validation'!$B$17,'Data validation'!$D$17,IF(AC$6='Data validation'!$B$16,'Data validation'!$D$16,IF(AC$6='Data validation'!$B$15,'Data validation'!$D$15,IF(AC$6='Data validation'!$B$14,'Data validation'!$D$14,IF(AC$6='Data validation'!$B$12,'Data validation'!$D$12,IF(AC$6='Data validation'!$B$13,'Data validation'!$D$13,IF(AC$6='Data validation'!$B$11,'Data validation'!$D$11,IF(AC$6='Data validation'!$B$10,'Data validation'!$D$10,IF(AC$6='Data validation'!$B$9,'Data validation'!$D$9,IF(AC$6='Data validation'!$B$8,'Data validation'!$D$8)))))))))))))","v":"--"},0]
[null,null,null,null,null,null,null,null,null,null,null,null,null,null,null,null,0,{"$f":"IF(O$6='Data validation'!$B$7,'Data validation'!$D$7,IF(O$6='Data validation'!$B$19,'Data validation'!$D$19,IF(O$6='Data validation'!$B$18,'Data validation'!$D$18,IF(O$6='Data validation'!$B$17,'Data validation'!$D$17,IF(O$6='Data validation'!$B$16,'Data validation'!$D$16,IF(O$6='Data validation'!$B$15,'Data validation'!$D$15,IF(O$6='Data validation'!$B$14,'Data validation'!$D$14,IF(O$6='Data validation'!$B$12,'Data validation'!$D$12,IF(O$6='Data validation'!$B$13,'Data validation'!$D$13,IF(O$6='Data validation'!$B$11,'Data validation'!$D$11,IF(O$6='Data validation'!$B$10,'Data validation'!$D$10,IF(O$6='Data validation'!$B$9,'Data validation'!$D$9,IF(O$6='Data validation'!$B$8,'Data validation'!$D$8)))))))))))))","v":"--"},0,null,null,null,null,0,{"$f":"IF(V$6='Data validation'!$B$7,'Data validation'!$D$7,IF(V$6='Data validation'!$B$19,'Data validation'!$D$19,IF(V$6='Data validation'!$B$18,'Data validation'!$D$18,IF(V$6='Data validation'!$B$17,'Data validation'!$D$17,IF(V$6='Data validation'!$B$16,'Data validation'!$D$16,IF(V$6='Data validation'!$B$15,'Data validation'!$D$15,IF(V$6='Data validation'!$B$14,'Data validation'!$D$14,IF(V$6='Data validation'!$B$12,'Data validation'!$D$12,IF(V$6='Data validation'!$B$13,'Data validation'!$D$13,IF(V$6='Data validation'!$B$11,'Data validation'!$D$11,IF(V$6='Data validation'!$B$10,'Data validation'!$D$10,IF(V$6='Data validation'!$B$9,'Data validation'!$D$9,IF(V$6='Data validation'!$B$8,'Data validation'!$D$8)))))))))))))","v":"--"},0,null,null,null,null,0,{"$f":"IF(AC$6='Data validation'!$B$7,'Data validation'!$D$7,IF(AC$6='Data validation'!$B$19,'Data validation'!$D$19,IF(AC$6='Data validation'!$B$18,'Data validation'!$D$18,IF(AC$6='Data validation'!$B$17,'Data validation'!$D$17,IF(AC$6='Data validation'!$B$16,'Data validation'!$D$16,IF(AC$6='Data validation'!$B$15,'Data validation'!$D$15,IF(AC$6='Data validation'!$B$14,'Data validation'!$D$14,IF(AC$6='Data validation'!$B$12,'Data validation'!$D$12,IF(AC$6='Data validation'!$B$13,'Data validation'!$D$13,IF(AC$6='Data validation'!$B$11,'Data validation'!$D$11,IF(AC$6='Data validation'!$B$10,'Data validation'!$D$10,IF(AC$6='Data validation'!$B$9,'Data validation'!$D$9,IF(AC$6='Data validation'!$B$8,'Data validation'!$D$8)))))))))))))","v":"--"},0]
[null,null,null,null,null,null,null,null,null,null,null,null,null,null,null,null,0,{"$f":"IF(O$6='Data validation'!$B$7,'Data validation'!$D$7,IF(O$6='Data validation'!$B$19,'Data validation'!$D$19,IF(O$6='Data validation'!$B$18,'Data validation'!$D$18,IF(O$6='Data validation'!$B$17,'Data validation'!$D$17,IF(O$6='Data validation'!$B$16,'Data validation'!$D$16,IF(O$6='Data validation'!$B$15,'Data validation'!$D$15,IF(O$6='Data validation'!$B$14,'Data validation'!$D$14,IF(O$6='Data validation'!$B$12,'Data validation'!$D$12,IF(O$6='Data validation'!$B$13,'Data validation'!$D$13,IF(O$6='Data validation'!$B$11,'Data validation'!$D$11,IF(O$6='Data validation'!$B$10,'Data validation'!$D$10,IF(O$6='Data validation'!$B$9,'Data validation'!$D$9,IF(O$6='Data validation'!$B$8,'Data validation'!$D$8)))))))))))))","v":"--"},0,null,null,null,null,0,{"$f":"IF(V$6='Data validation'!$B$7,'Data validation'!$D$7,IF(V$6='Data validation'!$B$19,'Data validation'!$D$19,IF(V$6='Data validation'!$B$18,'Data validation'!$D$18,IF(V$6='Data validation'!$B$17,'Data validation'!$D$17,IF(V$6='Data validation'!$B$16,'Data validation'!$D$16,IF(V$6='Data validation'!$B$15,'Data validation'!$D$15,IF(V$6='Data validation'!$B$14,'Data validation'!$D$14,IF(V$6='Data validation'!$B$12,'Data validation'!$D$12,IF(V$6='Data validation'!$B$13,'Data validation'!$D$13,IF(V$6='Data validation'!$B$11,'Data validation'!$D$11,IF(V$6='Data validation'!$B$10,'Data validation'!$D$10,IF(V$6='Data validation'!$B$9,'Data validation'!$D$9,IF(V$6='Data validation'!$B$8,'Data validation'!$D$8)))))))))))))","v":"--"},0,null,null,null,null,0,{"$f":"IF(AC$6='Data validation'!$B$7,'Data validation'!$D$7,IF(AC$6='Data validation'!$B$19,'Data validation'!$D$19,IF(AC$6='Data validation'!$B$18,'Data validation'!$D$18,IF(AC$6='Data validation'!$B$17,'Data validation'!$D$17,IF(AC$6='Data validation'!$B$16,'Data validation'!$D$16,IF(AC$6='Data validation'!$B$15,'Data validation'!$D$15,IF(AC$6='Data validation'!$B$14,'Data validation'!$D$14,IF(AC$6='Data validation'!$B$12,'Data validation'!$D$12,IF(AC$6='Data validation'!$B$13,'Data validation'!$D$13,IF(AC$6='Data validation'!$B$11,'Data validation'!$D$11,IF(AC$6='Data validation'!$B$10,'Data validation'!$D$10,IF(AC$6='Data validation'!$B$9,'Data validation'!$D$9,IF(AC$6='Data validation'!$B$8,'Data validation'!$D$8)))))))))))))","v":"--"},0]
[null,null,null,null,null,null,null,null,null,null,null,null,null,null,null,null,0,{"$f":"IF(O$6='Data validation'!$B$7,'Data validation'!$D$7,IF(O$6='Data validation'!$B$19,'Data validation'!$D$19,IF(O$6='Data validation'!$B$18,'Data validation'!$D$18,IF(O$6='Data validation'!$B$17,'Data validation'!$D$17,IF(O$6='Data validation'!$B$16,'Data validation'!$D$16,IF(O$6='Data validation'!$B$15,'Data validation'!$D$15,IF(O$6='Data validation'!$B$14,'Data validation'!$D$14,IF(O$6='Data validation'!$B$12,'Data validation'!$D$12,IF(O$6='Data validation'!$B$13,'Data validation'!$D$13,IF(O$6='Data validation'!$B$11,'Data validation'!$D$11,IF(O$6='Data validation'!$B$10,'Data validation'!$D$10,IF(O$6='Data validation'!$B$9,'Data validation'!$D$9,IF(O$6='Data validation'!$B$8,'Data validation'!$D$8)))))))))))))","v":"--"},0,null,null,null,null,0,{"$f":"IF(V$6='Data validation'!$B$7,'Data validation'!$D$7,IF(V$6='Data validation'!$B$19,'Data validation'!$D$19,IF(V$6='Data validation'!$B$18,'Data validation'!$D$18,IF(V$6='Data validation'!$B$17,'Data validation'!$D$17,IF(V$6='Data validation'!$B$16,'Data validation'!$D$16,IF(V$6='Data validation'!$B$15,'Data validation'!$D$15,IF(V$6='Data validation'!$B$14,'Data validation'!$D$14,IF(V$6='Data validation'!$B$12,'Data validation'!$D$12,IF(V$6='Data validation'!$B$13,'Data validation'!$D$13,IF(V$6='Data validation'!$B$11,'Data validation'!$D$11,IF(V$6='Data validation'!$B$10,'Data validation'!$D$10,IF(V$6='Data validation'!$B$9,'Data validation'!$D$9,IF(V$6='Data validation'!$B$8,'Data validation'!$D$8)))))))))))))","v":"--"},0,null,null,null,null,0,{"$f":"IF(AC$6='Data validation'!$B$7,'Data validation'!$D$7,IF(AC$6='Data validation'!$B$19,'Data validation'!$D$19,IF(AC$6='Data validation'!$B$18,'Data validation'!$D$18,IF(AC$6='Data validation'!$B$17,'Data validation'!$D$17,IF(AC$6='Data validation'!$B$16,'Data validation'!$D$16,IF(AC$6='Data validation'!$B$15,'Data validation'!$D$15,IF(AC$6='Data validation'!$B$14,'Data validation'!$D$14,IF(AC$6='Data validation'!$B$12,'Data validation'!$D$12,IF(AC$6='Data validation'!$B$13,'Data validation'!$D$13,IF(AC$6='Data validation'!$B$11,'Data validation'!$D$11,IF(AC$6='Data validation'!$B$10,'Data validation'!$D$10,IF(AC$6='Data validation'!$B$9,'Data validation'!$D$9,IF(AC$6='Data validation'!$B$8,'Data validation'!$D$8)))))))))))))","v":"--"},0]
[null,null,null,null,null,null,null,null,null,null,null,null,null,null,null,null,0,{"$f":"IF(O$6='Data validation'!$B$7,'Data validation'!$D$7,IF(O$6='Data validation'!$B$19,'Data validation'!$D$19,IF(O$6='Data validation'!$B$18,'Data validation'!$D$18,IF(O$6='Data validation'!$B$17,'Data validation'!$D$17,IF(O$6='Data validation'!$B$16,'Data validation'!$D$16,IF(O$6='Data validation'!$B$15,'Data validation'!$D$15,IF(O$6='Data validation'!$B$14,'Data validation'!$D$14,IF(O$6='Data validation'!$B$12,'Data validation'!$D$12,IF(O$6='Data validation'!$B$13,'Data validation'!$D$13,IF(O$6='Data validation'!$B$11,'Data validation'!$D$11,IF(O$6='Data validation'!$B$10,'Data validation'!$D$10,IF(O$6='Data validation'!$B$9,'Data validation'!$D$9,IF(O$6='Data validation'!$B$8,'Data validation'!$D$8)))))))))))))","v":"--"},0,null,null,null,null,0,{"$f":"IF(V$6='Data validation'!$B$7,'Data validation'!$D$7,IF(V$6='Data validation'!$B$19,'Data validation'!$D$19,IF(V$6='Data validation'!$B$18,'Data validation'!$D$18,IF(V$6='Data validation'!$B$17,'Data validation'!$D$17,IF(V$6='Data validation'!$B$16,'Data validation'!$D$16,IF(V$6='Data validation'!$B$15,'Data validation'!$D$15,IF(V$6='Data validation'!$B$14,'Data validation'!$D$14,IF(V$6='Data validation'!$B$12,'Data validation'!$D$12,IF(V$6='Data validation'!$B$13,'Data validation'!$D$13,IF(V$6='Data validation'!$B$11,'Data validation'!$D$11,IF(V$6='Data validation'!$B$10,'Data validation'!$D$10,IF(V$6='Data validation'!$B$9,'Data validation'!$D$9,IF(V$6='Data validation'!$B$8,'Data validation'!$D$8)))))))))))))","v":"--"},0,null,null,null,null,0,{"$f":"IF(AC$6='Data validation'!$B$7,'Data validation'!$D$7,IF(AC$6='Data validation'!$B$19,'Data validation'!$D$19,IF(AC$6='Data validation'!$B$18,'Data validation'!$D$18,IF(AC$6='Data validation'!$B$17,'Data validation'!$D$17,IF(AC$6='Data validation'!$B$16,'Data validation'!$D$16,IF(AC$6='Data validation'!$B$15,'Data validation'!$D$15,IF(AC$6='Data validation'!$B$14,'Data validation'!$D$14,IF(AC$6='Data validation'!$B$12,'Data validation'!$D$12,IF(AC$6='Data validation'!$B$13,'Data validation'!$D$13,IF(AC$6='Data validation'!$B$11,'Data validation'!$D$11,IF(AC$6='Data validation'!$B$10,'Data validation'!$D$10,IF(AC$6='Data validation'!$B$9,'Data validation'!$D$9,IF(AC$6='Data validation'!$B$8,'Data validation'!$D$8)))))))))))))","v":"--"},0]
[null,null,null,null,null,null,null,null,null,null,null,null,null,null,null,null,0,{"$f":"IF(O$6='Data validation'!$B$7,'Data validation'!$D$7,IF(O$6='Data validation'!$B$19,'Data validation'!$D$19,IF(O$6='Data validation'!$B$18,'Data validation'!$D$18,IF(O$6='Data validation'!$B$17,'Data validation'!$D$17,IF(O$6='Data validation'!$B$16,'Data validation'!$D$16,IF(O$6='Data validation'!$B$15,'Data validation'!$D$15,IF(O$6='Data validation'!$B$14,'Data validation'!$D$14,IF(O$6='Data validation'!$B$12,'Data validation'!$D$12,IF(O$6='Data validation'!$B$13,'Data validation'!$D$13,IF(O$6='Data validation'!$B$11,'Data validation'!$D$11,IF(O$6='Data validation'!$B$10,'Data validation'!$D$10,IF(O$6='Data validation'!$B$9,'Data validation'!$D$9,IF(O$6='Data validation'!$B$8,'Data validation'!$D$8)))))))))))))","v":"--"},0,null,null,null,null,0,{"$f":"IF(V$6='Data validation'!$B$7,'Data validation'!$D$7,IF(V$6='Data validation'!$B$19,'Data validation'!$D$19,IF(V$6='Data validation'!$B$18,'Data validation'!$D$18,IF(V$6='Data validation'!$B$17,'Data validation'!$D$17,IF(V$6='Data validation'!$B$16,'Data validation'!$D$16,IF(V$6='Data validation'!$B$15,'Data validation'!$D$15,IF(V$6='Data validation'!$B$14,'Data validation'!$D$14,IF(V$6='Data validation'!$B$12,'Data validation'!$D$12,IF(V$6='Data validation'!$B$13,'Data validation'!$D$13,IF(V$6='Data validation'!$B$11,'Data validation'!$D$11,IF(V$6='Data validation'!$B$10,'Data validation'!$D$10,IF(V$6='Data validation'!$B$9,'Data validation'!$D$9,IF(V$6='Data validation'!$B$8,'Data validation'!$D$8)))))))))))))","v":"--"},0,null,null,null,null,0,{"$f":"IF(AC$6='Data validation'!$B$7,'Data validation'!$D$7,IF(AC$6='Data validation'!$B$19,'Data validation'!$D$19,IF(AC$6='Data validation'!$B$18,'Data validation'!$D$18,IF(AC$6='Data validation'!$B$17,'Data validation'!$D$17,IF(AC$6='Data validation'!$B$16,'Data validation'!$D$16,IF(AC$6='Data validation'!$B$15,'Data validation'!$D$15,IF(AC$6='Data validation'!$B$14,'Data validation'!$D$14,IF(AC$6='Data validation'!$B$12,'Data validation'!$D$12,IF(AC$6='Data validation'!$B$13,'Data validation'!$D$13,IF(AC$6='Data validation'!$B$11,'Data validation'!$D$11,IF(AC$6='Data validation'!$B$10,'Data validation'!$D$10,IF(AC$6='Data validation'!$B$9,'Data validation'!$D$9,IF(AC$6='Data validation'!$B$8,'Data validation'!$D$8)))))))))))))","v":"--"},0]
[null,null,null,null,null,null,null,null,null,null,null,null,null,null,null,null,0,{"$f":"IF(O$6='Data validation'!$B$7,'Data validation'!$D$7,IF(O$6='Data validation'!$B$19,'Data validation'!$D$19,IF(O$6='Data validation'!$B$18,'Data validation'!$D$18,IF(O$6='Data validation'!$B$17,'Data validation'!$D$17,IF(O$6='Data validation'!$B$16,'Data validation'!$D$16,IF(O$6='Data validation'!$B$15,'Data validation'!$D$15,IF(O$6='Data validation'!$B$14,'Data validation'!$D$14,IF(O$6='Data validation'!$B$12,'Data validation'!$D$12,IF(O$6='Data validation'!$B$13,'Data validation'!$D$13,IF(O$6='Data validation'!$B$11,'Data validation'!$D$11,IF(O$6='Data validation'!$B$10,'Data validation'!$D$10,IF(O$6='Data validation'!$B$9,'Data validation'!$D$9,IF(O$6='Data validation'!$B$8,'Data validation'!$D$8)))))))))))))","v":"--"},0,null,null,null,null,0,{"$f":"IF(V$6='Data validation'!$B$7,'Data validation'!$D$7,IF(V$6='Data validation'!$B$19,'Data validation'!$D$19,IF(V$6='Data validation'!$B$18,'Data validation'!$D$18,IF(V$6='Data validation'!$B$17,'Data validation'!$D$17,IF(V$6='Data validation'!$B$16,'Data validation'!$D$16,IF(V$6='Data validation'!$B$15,'Data validation'!$D$15,IF(V$6='Data validation'!$B$14,'Data validation'!$D$14,IF(V$6='Data validation'!$B$12,'Data validation'!$D$12,IF(V$6='Data validation'!$B$13,'Data validation'!$D$13,IF(V$6='Data validation'!$B$11,'Data validation'!$D$11,IF(V$6='Data validation'!$B$10,'Data validation'!$D$10,IF(V$6='Data validation'!$B$9,'Data validation'!$D$9,IF(V$6='Data validation'!$B$8,'Data validation'!$D$8)))))))))))))","v":"--"},0,null,null,null,null,0,{"$f":"IF(AC$6='Data validation'!$B$7,'Data validation'!$D$7,IF(AC$6='Data validation'!$B$19,'Data validation'!$D$19,IF(AC$6='Data validation'!$B$18,'Data validation'!$D$18,IF(AC$6='Data validation'!$B$17,'Data validation'!$D$17,IF(AC$6='Data validation'!$B$16,'Data validation'!$D$16,IF(AC$6='Data validation'!$B$15,'Data validation'!$D$15,IF(AC$6='Data validation'!$B$14,'Data validation'!$D$14,IF(AC$6='Data validation'!$B$12,'Data validation'!$D$12,IF(AC$6='Data validation'!$B$13,'Data validation'!$D$13,IF(AC$6='Data validation'!$B$11,'Data validation'!$D$11,IF(AC$6='Data validation'!$B$10,'Data validation'!$D$10,IF(AC$6='Data validation'!$B$9,'Data validation'!$D$9,IF(AC$6='Data validation'!$B$8,'Data validation'!$D$8)))))))))))))","v":"--"},0]
[null,null,null,null,null,null,null,null,null,null,null,null,null,null,null,null,0,{"$f":"IF(O$6='Data validation'!$B$7,'Data validation'!$D$7,IF(O$6='Data validation'!$B$19,'Data validation'!$D$19,IF(O$6='Data validation'!$B$18,'Data validation'!$D$18,IF(O$6='Data validation'!$B$17,'Data validation'!$D$17,IF(O$6='Data validation'!$B$16,'Data validation'!$D$16,IF(O$6='Data validation'!$B$15,'Data validation'!$D$15,IF(O$6='Data validation'!$B$14,'Data validation'!$D$14,IF(O$6='Data validation'!$B$12,'Data validation'!$D$12,IF(O$6='Data validation'!$B$13,'Data validation'!$D$13,IF(O$6='Data validation'!$B$11,'Data validation'!$D$11,IF(O$6='Data validation'!$B$10,'Data validation'!$D$10,IF(O$6='Data validation'!$B$9,'Data validation'!$D$9,IF(O$6='Data validation'!$B$8,'Data validation'!$D$8)))))))))))))","v":"--"},0,null,null,null,null,0,{"$f":"IF(V$6='Data validation'!$B$7,'Data validation'!$D$7,IF(V$6='Data validation'!$B$19,'Data validation'!$D$19,IF(V$6='Data validation'!$B$18,'Data validation'!$D$18,IF(V$6='Data validation'!$B$17,'Data validation'!$D$17,IF(V$6='Data validation'!$B$16,'Data validation'!$D$16,IF(V$6='Data validation'!$B$15,'Data validation'!$D$15,IF(V$6='Data validation'!$B$14,'Data validation'!$D$14,IF(V$6='Data validation'!$B$12,'Data validation'!$D$12,IF(V$6='Data validation'!$B$13,'Data validation'!$D$13,IF(V$6='Data validation'!$B$11,'Data validation'!$D$11,IF(V$6='Data validation'!$B$10,'Data validation'!$D$10,IF(V$6='Data validation'!$B$9,'Data validation'!$D$9,IF(V$6='Data validation'!$B$8,'Data validation'!$D$8)))))))))))))","v":"--"},0,null,null,null,null,0,{"$f":"IF(AC$6='Data validation'!$B$7,'Data validation'!$D$7,IF(AC$6='Data validation'!$B$19,'Data validation'!$D$19,IF(AC$6='Data validation'!$B$18,'Data validation'!$D$18,IF(AC$6='Data validation'!$B$17,'Data validation'!$D$17,IF(AC$6='Data validation'!$B$16,'Data validation'!$D$16,IF(AC$6='Data validation'!$B$15,'Data validation'!$D$15,IF(AC$6='Data validation'!$B$14,'Data validation'!$D$14,IF(AC$6='Data validation'!$B$12,'Data validation'!$D$12,IF(AC$6='Data validation'!$B$13,'Data validation'!$D$13,IF(AC$6='Data validation'!$B$11,'Data validation'!$D$11,IF(AC$6='Data validation'!$B$10,'Data validation'!$D$10,IF(AC$6='Data validation'!$B$9,'Data validation'!$D$9,IF(AC$6='Data validation'!$B$8,'Data validation'!$D$8)))))))))))))","v":"--"},0]
[null,null,null,null,null,null,null,null,null,null,null,null,null,null,null,null,0,{"$f":"IF(O$6='Data validation'!$B$7,'Data validation'!$D$7,IF(O$6='Data validation'!$B$19,'Data validation'!$D$19,IF(O$6='Data validation'!$B$18,'Data validation'!$D$18,IF(O$6='Data validation'!$B$17,'Data validation'!$D$17,IF(O$6='Data validation'!$B$16,'Data validation'!$D$16,IF(O$6='Data validation'!$B$15,'Data validation'!$D$15,IF(O$6='Data validation'!$B$14,'Data validation'!$D$14,IF(O$6='Data validation'!$B$12,'Data validation'!$D$12,IF(O$6='Data validation'!$B$13,'Data validation'!$D$13,IF(O$6='Data validation'!$B$11,'Data validation'!$D$11,IF(O$6='Data validation'!$B$10,'Data validation'!$D$10,IF(O$6='Data validation'!$B$9,'Data validation'!$D$9,IF(O$6='Data validation'!$B$8,'Data validation'!$D$8)))))))))))))","v":"--"},0,null,null,null,null,0,{"$f":"IF(V$6='Data validation'!$B$7,'Data validation'!$D$7,IF(V$6='Data validation'!$B$19,'Data validation'!$D$19,IF(V$6='Data validation'!$B$18,'Data validation'!$D$18,IF(V$6='Data validation'!$B$17,'Data validation'!$D$17,IF(V$6='Data validation'!$B$16,'Data validation'!$D$16,IF(V$6='Data validation'!$B$15,'Data validation'!$D$15,IF(V$6='Data validation'!$B$14,'Data validation'!$D$14,IF(V$6='Data validation'!$B$12,'Data validation'!$D$12,IF(V$6='Data validation'!$B$13,'Data validation'!$D$13,IF(V$6='Data validation'!$B$11,'Data validation'!$D$11,IF(V$6='Data validation'!$B$10,'Data validation'!$D$10,IF(V$6='Data validation'!$B$9,'Data validation'!$D$9,IF(V$6='Data validation'!$B$8,'Data validation'!$D$8)))))))))))))","v":"--"},0,null,null,null,null,0,{"$f":"IF(AC$6='Data validation'!$B$7,'Data validation'!$D$7,IF(AC$6='Data validation'!$B$19,'Data validation'!$D$19,IF(AC$6='Data validation'!$B$18,'Data validation'!$D$18,IF(AC$6='Data validation'!$B$17,'Data validation'!$D$17,IF(AC$6='Data validation'!$B$16,'Data validation'!$D$16,IF(AC$6='Data validation'!$B$15,'Data validation'!$D$15,IF(AC$6='Data validation'!$B$14,'Data validation'!$D$14,IF(AC$6='Data validation'!$B$12,'Data validation'!$D$12,IF(AC$6='Data validation'!$B$13,'Data validation'!$D$13,IF(AC$6='Data validation'!$B$11,'Data validation'!$D$11,IF(AC$6='Data validation'!$B$10,'Data validation'!$D$10,IF(AC$6='Data validation'!$B$9,'Data validation'!$D$9,IF(AC$6='Data validation'!$B$8,'Data validation'!$D$8)))))))))))))","v":"--"},0]
[null,null,null,null,null,null,null,null,null,null,null,null,null,null,null,null,0,{"$f":"IF(O$6='Data validation'!$B$7,'Data validation'!$D$7,IF(O$6='Data validation'!$B$19,'Data validation'!$D$19,IF(O$6='Data validation'!$B$18,'Data validation'!$D$18,IF(O$6='Data validation'!$B$17,'Data validation'!$D$17,IF(O$6='Data validation'!$B$16,'Data validation'!$D$16,IF(O$6='Data validation'!$B$15,'Data validation'!$D$15,IF(O$6='Data validation'!$B$14,'Data validation'!$D$14,IF(O$6='Data validation'!$B$12,'Data validation'!$D$12,IF(O$6='Data validation'!$B$13,'Data validation'!$D$13,IF(O$6='Data validation'!$B$11,'Data validation'!$D$11,IF(O$6='Data validation'!$B$10,'Data validation'!$D$10,IF(O$6='Data validation'!$B$9,'Data validation'!$D$9,IF(O$6='Data validation'!$B$8,'Data validation'!$D$8)))))))))))))","v":"--"},0,null,null,null,null,0,{"$f":"IF(V$6='Data validation'!$B$7,'Data validation'!$D$7,IF(V$6='Data validation'!$B$19,'Data validation'!$D$19,IF(V$6='Data validation'!$B$18,'Data validation'!$D$18,IF(V$6='Data validation'!$B$17,'Data validation'!$D$17,IF(V$6='Data validation'!$B$16,'Data validation'!$D$16,IF(V$6='Data validation'!$B$15,'Data validation'!$D$15,IF(V$6='Data validation'!$B$14,'Data validation'!$D$14,IF(V$6='Data validation'!$B$12,'Data validation'!$D$12,IF(V$6='Data validation'!$B$13,'Data validation'!$D$13,IF(V$6='Data validation'!$B$11,'Data validation'!$D$11,IF(V$6='Data validation'!$B$10,'Data validation'!$D$10,IF(V$6='Data validation'!$B$9,'Data validation'!$D$9,IF(V$6='Data validation'!$B$8,'Data validation'!$D$8)))))))))))))","v":"--"},0,null,null,null,null,0,{"$f":"IF(AC$6='Data validation'!$B$7,'Data validation'!$D$7,IF(AC$6='Data validation'!$B$19,'Data validation'!$D$19,IF(AC$6='Data validation'!$B$18,'Data validation'!$D$18,IF(AC$6='Data validation'!$B$17,'Data validation'!$D$17,IF(AC$6='Data validation'!$B$16,'Data validation'!$D$16,IF(AC$6='Data validation'!$B$15,'Data validation'!$D$15,IF(AC$6='Data validation'!$B$14,'Data validation'!$D$14,IF(AC$6='Data validation'!$B$12,'Data validation'!$D$12,IF(AC$6='Data validation'!$B$13,'Data validation'!$D$13,IF(AC$6='Data validation'!$B$11,'Data validation'!$D$11,IF(AC$6='Data validation'!$B$10,'Data validation'!$D$10,IF(AC$6='Data validation'!$B$9,'Data validation'!$D$9,IF(AC$6='Data validation'!$B$8,'Data validation'!$D$8)))))))))))))","v":"--"},0]
[null,null,null,null,null,null,null,null,null,null,null,null,null,null,null,null,0,{"$f":"IF(O$6='Data validation'!$B$7,'Data validation'!$D$7,IF(O$6='Data validation'!$B$19,'Data validation'!$D$19,IF(O$6='Data validation'!$B$18,'Data validation'!$D$18,IF(O$6='Data validation'!$B$17,'Data validation'!$D$17,IF(O$6='Data validation'!$B$16,'Data validation'!$D$16,IF(O$6='Data validation'!$B$15,'Data validation'!$D$15,IF(O$6='Data validation'!$B$14,'Data validation'!$D$14,IF(O$6='Data validation'!$B$12,'Data validation'!$D$12,IF(O$6='Data validation'!$B$13,'Data validation'!$D$13,IF(O$6='Data validation'!$B$11,'Data validation'!$D$11,IF(O$6='Data validation'!$B$10,'Data validation'!$D$10,IF(O$6='Data validation'!$B$9,'Data validation'!$D$9,IF(O$6='Data validation'!$B$8,'Data validation'!$D$8)))))))))))))","v":"--"},0,null,null,null,null,0,{"$f":"IF(V$6='Data validation'!$B$7,'Data validation'!$D$7,IF(V$6='Data validation'!$B$19,'Data validation'!$D$19,IF(V$6='Data validation'!$B$18,'Data validation'!$D$18,IF(V$6='Data validation'!$B$17,'Data validation'!$D$17,IF(V$6='Data validation'!$B$16,'Data validation'!$D$16,IF(V$6='Data validation'!$B$15,'Data validation'!$D$15,IF(V$6='Data validation'!$B$14,'Data validation'!$D$14,IF(V$6='Data validation'!$B$12,'Data validation'!$D$12,IF(V$6='Data validation'!$B$13,'Data validation'!$D$13,IF(V$6='Data validation'!$B$11,'Data validation'!$D$11,IF(V$6='Data validation'!$B$10,'Data validation'!$D$10,IF(V$6='Data validation'!$B$9,'Data validation'!$D$9,IF(V$6='Data validation'!$B$8,'Data validation'!$D$8)))))))))))))","v":"--"},0,null,null,null,null,0,{"$f":"IF(AC$6='Data validation'!$B$7,'Data validation'!$D$7,IF(AC$6='Data validation'!$B$19,'Data validation'!$D$19,IF(AC$6='Data validation'!$B$18,'Data validation'!$D$18,IF(AC$6='Data validation'!$B$17,'Data validation'!$D$17,IF(AC$6='Data validation'!$B$16,'Data validation'!$D$16,IF(AC$6='Data validation'!$B$15,'Data validation'!$D$15,IF(AC$6='Data validation'!$B$14,'Data validation'!$D$14,IF(AC$6='Data validation'!$B$12,'Data validation'!$D$12,IF(AC$6='Data validation'!$B$13,'Data validation'!$D$13,IF(AC$6='Data validation'!$B$11,'Data validation'!$D$11,IF(AC$6='Data validation'!$B$10,'Data validation'!$D$10,IF(AC$6='Data validation'!$B$9,'Data validation'!$D$9,IF(AC$6='Data validation'!$B$8,'Data validation'!$D$8)))))))))))))","v":"--"},0]
[null,null,null,null,null,null,null,null,null,null,null,null,null,null,null,null,0,{"$f":"IF(O$6='Data validation'!$B$7,'Data validation'!$D$7,IF(O$6='Data validation'!$B$19,'Data validation'!$D$19,IF(O$6='Data validation'!$B$18,'Data validation'!$D$18,IF(O$6='Data validation'!$B$17,'Data validation'!$D$17,IF(O$6='Data validation'!$B$16,'Data validation'!$D$16,IF(O$6='Data validation'!$B$15,'Data validation'!$D$15,IF(O$6='Data validation'!$B$14,'Data validation'!$D$14,IF(O$6='Data validation'!$B$12,'Data validation'!$D$12,IF(O$6='Data validation'!$B$13,'Data validation'!$D$13,IF(O$6='Data validation'!$B$11,'Data validation'!$D$11,IF(O$6='Data validation'!$B$10,'Data validation'!$D$10,IF(O$6='Data validation'!$B$9,'Data validation'!$D$9,IF(O$6='Data validation'!$B$8,'Data validation'!$D$8)))))))))))))","v":"--"},0,null,null,null,null,0,{"$f":"IF(V$6='Data validation'!$B$7,'Data validation'!$D$7,IF(V$6='Data validation'!$B$19,'Data validation'!$D$19,IF(V$6='Data validation'!$B$18,'Data validation'!$D$18,IF(V$6='Data validation'!$B$17,'Data validation'!$D$17,IF(V$6='Data validation'!$B$16,'Data validation'!$D$16,IF(V$6='Data validation'!$B$15,'Data validation'!$D$15,IF(V$6='Data validation'!$B$14,'Data validation'!$D$14,IF(V$6='Data validation'!$B$12,'Data validation'!$D$12,IF(V$6='Data validation'!$B$13,'Data validation'!$D$13,IF(V$6='Data validation'!$B$11,'Data validation'!$D$11,IF(V$6='Data validation'!$B$10,'Data validation'!$D$10,IF(V$6='Data validation'!$B$9,'Data validation'!$D$9,IF(V$6='Data validation'!$B$8,'Data validation'!$D$8)))))))))))))","v":"--"},0,null,null,null,null,0,{"$f":"IF(AC$6='Data validation'!$B$7,'Data validation'!$D$7,IF(AC$6='Data validation'!$B$19,'Data validation'!$D$19,IF(AC$6='Data validation'!$B$18,'Data validation'!$D$18,IF(AC$6='Data validation'!$B$17,'Data validation'!$D$17,IF(AC$6='Data validation'!$B$16,'Data validation'!$D$16,IF(AC$6='Data validation'!$B$15,'Data validation'!$D$15,IF(AC$6='Data validation'!$B$14,'Data validation'!$D$14,IF(AC$6='Data validation'!$B$12,'Data validation'!$D$12,IF(AC$6='Data validation'!$B$13,'Data validation'!$D$13,IF(AC$6='Data validation'!$B$11,'Data validation'!$D$11,IF(AC$6='Data validation'!$B$10,'Data validation'!$D$10,IF(AC$6='Data validation'!$B$9,'Data validation'!$D$9,IF(AC$6='Data validation'!$B$8,'Data validation'!$D$8)))))))))))))","v":"--"},0]
[null,null,null,null,null,null,null,null,null,null,null,null,null,null,null,null,0,{"$f":"IF(O$6='Data validation'!$B$7,'Data validation'!$D$7,IF(O$6='Data validation'!$B$19,'Data validation'!$D$19,IF(O$6='Data validation'!$B$18,'Data validation'!$D$18,IF(O$6='Data validation'!$B$17,'Data validation'!$D$17,IF(O$6='Data validation'!$B$16,'Data validation'!$D$16,IF(O$6='Data validation'!$B$15,'Data validation'!$D$15,IF(O$6='Data validation'!$B$14,'Data validation'!$D$14,IF(O$6='Data validation'!$B$12,'Data validation'!$D$12,IF(O$6='Data validation'!$B$13,'Data validation'!$D$13,IF(O$6='Data validation'!$B$11,'Data validation'!$D$11,IF(O$6='Data validation'!$B$10,'Data validation'!$D$10,IF(O$6='Data validation'!$B$9,'Data validation'!$D$9,IF(O$6='Data validation'!$B$8,'Data validation'!$D$8)))))))))))))","v":"--"},0,null,null,null,null,0,{"$f":"IF(V$6='Data validation'!$B$7,'Data validation'!$D$7,IF(V$6='Data validation'!$B$19,'Data validation'!$D$19,IF(V$6='Data validation'!$B$18,'Data validation'!$D$18,IF(V$6='Data validation'!$B$17,'Data validation'!$D$17,IF(V$6='Data validation'!$B$16,'Data validation'!$D$16,IF(V$6='Data validation'!$B$15,'Data validation'!$D$15,IF(V$6='Data validation'!$B$14,'Data validation'!$D$14,IF(V$6='Data validation'!$B$12,'Data validation'!$D$12,IF(V$6='Data validation'!$B$13,'Data validation'!$D$13,IF(V$6='Data validation'!$B$11,'Data validation'!$D$11,IF(V$6='Data validation'!$B$10,'Data validation'!$D$10,IF(V$6='Data validation'!$B$9,'Data validation'!$D$9,IF(V$6='Data validation'!$B$8,'Data validation'!$D$8)))))))))))))","v":"--"},0,null,null,null,null,0,{"$f":"IF(AC$6='Data validation'!$B$7,'Data validation'!$D$7,IF(AC$6='Data validation'!$B$19,'Data validation'!$D$19,IF(AC$6='Data validation'!$B$18,'Data validation'!$D$18,IF(AC$6='Data validation'!$B$17,'Data validation'!$D$17,IF(AC$6='Data validation'!$B$16,'Data validation'!$D$16,IF(AC$6='Data validation'!$B$15,'Data validation'!$D$15,IF(AC$6='Data validation'!$B$14,'Data validation'!$D$14,IF(AC$6='Data validation'!$B$12,'Data validation'!$D$12,IF(AC$6='Data validation'!$B$13,'Data validation'!$D$13,IF(AC$6='Data validation'!$B$11,'Data validation'!$D$11,IF(AC$6='Data validation'!$B$10,'Data validation'!$D$10,IF(AC$6='Data validation'!$B$9,'Data validation'!$D$9,IF(AC$6='Data validation'!$B$8,'Data validation'!$D$8)))))))))))))","v":"--"},0]
[null,null,null,null,null,null,null,null,null,null,null,null,null,null,null,null,0,{"$f":"IF(O$6='Data validation'!$B$7,'Data validation'!$D$7,IF(O$6='Data validation'!$B$19,'Data validation'!$D$19,IF(O$6='Data validation'!$B$18,'Data validation'!$D$18,IF(O$6='Data validation'!$B$17,'Data validation'!$D$17,IF(O$6='Data validation'!$B$16,'Data validation'!$D$16,IF(O$6='Data validation'!$B$15,'Data validation'!$D$15,IF(O$6='Data validation'!$B$14,'Data validation'!$D$14,IF(O$6='Data validation'!$B$12,'Data validation'!$D$12,IF(O$6='Data validation'!$B$13,'Data validation'!$D$13,IF(O$6='Data validation'!$B$11,'Data validation'!$D$11,IF(O$6='Data validation'!$B$10,'Data validation'!$D$10,IF(O$6='Data validation'!$B$9,'Data validation'!$D$9,IF(O$6='Data validation'!$B$8,'Data validation'!$D$8)))))))))))))","v":"--"},0,null,null,null,null,0,{"$f":"IF(V$6='Data validation'!$B$7,'Data validation'!$D$7,IF(V$6='Data validation'!$B$19,'Data validation'!$D$19,IF(V$6='Data validation'!$B$18,'Data validation'!$D$18,IF(V$6='Data validation'!$B$17,'Data validation'!$D$17,IF(V$6='Data validation'!$B$16,'Data validation'!$D$16,IF(V$6='Data validation'!$B$15,'Data validation'!$D$15,IF(V$6='Data validation'!$B$14,'Data validation'!$D$14,IF(V$6='Data validation'!$B$12,'Data validation'!$D$12,IF(V$6='Data validation'!$B$13,'Data validation'!$D$13,IF(V$6='Data validation'!$B$11,'Data validation'!$D$11,IF(V$6='Data validation'!$B$10,'Data validation'!$D$10,IF(V$6='Data validation'!$B$9,'Data validation'!$D$9,IF(V$6='Data validation'!$B$8,'Data validation'!$D$8)))))))))))))","v":"--"},0,null,null,null,null,0,{"$f":"IF(AC$6='Data validation'!$B$7,'Data validation'!$D$7,IF(AC$6='Data validation'!$B$19,'Data validation'!$D$19,IF(AC$6='Data validation'!$B$18,'Data validation'!$D$18,IF(AC$6='Data validation'!$B$17,'Data validation'!$D$17,IF(AC$6='Data validation'!$B$16,'Data validation'!$D$16,IF(AC$6='Data validation'!$B$15,'Data validation'!$D$15,IF(AC$6='Data validation'!$B$14,'Data validation'!$D$14,IF(AC$6='Data validation'!$B$12,'Data validation'!$D$12,IF(AC$6='Data validation'!$B$13,'Data validation'!$D$13,IF(AC$6='Data validation'!$B$11,'Data validation'!$D$11,IF(AC$6='Data validation'!$B$10,'Data validation'!$D$10,IF(AC$6='Data validation'!$B$9,'Data validation'!$D$9,IF(AC$6='Data validation'!$B$8,'Data validation'!$D$8)))))))))))))","v":"--"},0]
[null,null,null,null,null,null,null,null,null,null,null,null,null,null,null,null,0,{"$f":"IF(O$6='Data validation'!$B$7,'Data validation'!$D$7,IF(O$6='Data validation'!$B$19,'Data validation'!$D$19,IF(O$6='Data validation'!$B$18,'Data validation'!$D$18,IF(O$6='Data validation'!$B$17,'Data validation'!$D$17,IF(O$6='Data validation'!$B$16,'Data validation'!$D$16,IF(O$6='Data validation'!$B$15,'Data validation'!$D$15,IF(O$6='Data validation'!$B$14,'Data validation'!$D$14,IF(O$6='Data validation'!$B$12,'Data validation'!$D$12,IF(O$6='Data validation'!$B$13,'Data validation'!$D$13,IF(O$6='Data validation'!$B$11,'Data validation'!$D$11,IF(O$6='Data validation'!$B$10,'Data validation'!$D$10,IF(O$6='Data validation'!$B$9,'Data validation'!$D$9,IF(O$6='Data validation'!$B$8,'Data validation'!$D$8)))))))))))))","v":"--"},0,null,null,null,null,0,{"$f":"IF(V$6='Data validation'!$B$7,'Data validation'!$D$7,IF(V$6='Data validation'!$B$19,'Data validation'!$D$19,IF(V$6='Data validation'!$B$18,'Data validation'!$D$18,IF(V$6='Data validation'!$B$17,'Data validation'!$D$17,IF(V$6='Data validation'!$B$16,'Data validation'!$D$16,IF(V$6='Data validation'!$B$15,'Data validation'!$D$15,IF(V$6='Data validation'!$B$14,'Data validation'!$D$14,IF(V$6='Data validation'!$B$12,'Data validation'!$D$12,IF(V$6='Data validation'!$B$13,'Data validation'!$D$13,IF(V$6='Data validation'!$B$11,'Data validation'!$D$11,IF(V$6='Data validation'!$B$10,'Data validation'!$D$10,IF(V$6='Data validation'!$B$9,'Data validation'!$D$9,IF(V$6='Data validation'!$B$8,'Data validation'!$D$8)))))))))))))","v":"--"},0,null,null,null,null,0,{"$f":"IF(AC$6='Data validation'!$B$7,'Data validation'!$D$7,IF(AC$6='Data validation'!$B$19,'Data validation'!$D$19,IF(AC$6='Data validation'!$B$18,'Data validation'!$D$18,IF(AC$6='Data validation'!$B$17,'Data validation'!$D$17,IF(AC$6='Data validation'!$B$16,'Data validation'!$D$16,IF(AC$6='Data validation'!$B$15,'Data validation'!$D$15,IF(AC$6='Data validation'!$B$14,'Data validation'!$D$14,IF(AC$6='Data validation'!$B$12,'Data validation'!$D$12,IF(AC$6='Data validation'!$B$13,'Data validation'!$D$13,IF(AC$6='Data validation'!$B$11,'Data validation'!$D$11,IF(AC$6='Data validation'!$B$10,'Data validation'!$D$10,IF(AC$6='Data validation'!$B$9,'Data validation'!$D$9,IF(AC$6='Data validation'!$B$8,'Data validation'!$D$8)))))))))))))","v":"--"},0]
[null,null,null,null,null,null,null,null,null,null,null,null,null,null,null,null,0,{"$f":"IF(O$6='Data validation'!$B$7,'Data validation'!$D$7,IF(O$6='Data validation'!$B$19,'Data validation'!$D$19,IF(O$6='Data validation'!$B$18,'Data validation'!$D$18,IF(O$6='Data validation'!$B$17,'Data validation'!$D$17,IF(O$6='Data validation'!$B$16,'Data validation'!$D$16,IF(O$6='Data validation'!$B$15,'Data validation'!$D$15,IF(O$6='Data validation'!$B$14,'Data validation'!$D$14,IF(O$6='Data validation'!$B$12,'Data validation'!$D$12,IF(O$6='Data validation'!$B$13,'Data validation'!$D$13,IF(O$6='Data validation'!$B$11,'Data validation'!$D$11,IF(O$6='Data validation'!$B$10,'Data validation'!$D$10,IF(O$6='Data validation'!$B$9,'Data validation'!$D$9,IF(O$6='Data validation'!$B$8,'Data validation'!$D$8)))))))))))))","v":"--"},0,null,null,null,null,0,{"$f":"IF(V$6='Data validation'!$B$7,'Data validation'!$D$7,IF(V$6='Data validation'!$B$19,'Data validation'!$D$19,IF(V$6='Data validation'!$B$18,'Data validation'!$D$18,IF(V$6='Data validation'!$B$17,'Data validation'!$D$17,IF(V$6='Data validation'!$B$16,'Data validation'!$D$16,IF(V$6='Data validation'!$B$15,'Data validation'!$D$15,IF(V$6='Data validation'!$B$14,'Data validation'!$D$14,IF(V$6='Data validation'!$B$12,'Data validation'!$D$12,IF(V$6='Data validation'!$B$13,'Data validation'!$D$13,IF(V$6='Data validation'!$B$11,'Data validation'!$D$11,IF(V$6='Data validation'!$B$10,'Data validation'!$D$10,IF(V$6='Data validation'!$B$9,'Data validation'!$D$9,IF(V$6='Data validation'!$B$8,'Data validation'!$D$8)))))))))))))","v":"--"},0,null,null,null,null,0,{"$f":"IF(AC$6='Data validation'!$B$7,'Data validation'!$D$7,IF(AC$6='Data validation'!$B$19,'Data validation'!$D$19,IF(AC$6='Data validation'!$B$18,'Data validation'!$D$18,IF(AC$6='Data validation'!$B$17,'Data validation'!$D$17,IF(AC$6='Data validation'!$B$16,'Data validation'!$D$16,IF(AC$6='Data validation'!$B$15,'Data validation'!$D$15,IF(AC$6='Data validation'!$B$14,'Data validation'!$D$14,IF(AC$6='Data validation'!$B$12,'Data validation'!$D$12,IF(AC$6='Data validation'!$B$13,'Data validation'!$D$13,IF(AC$6='Data validation'!$B$11,'Data validation'!$D$11,IF(AC$6='Data validation'!$B$10,'Data validation'!$D$10,IF(AC$6='Data validation'!$B$9,'Data validation'!$D$9,IF(AC$6='Data validation'!$B$8,'Data validation'!$D$8)))))))))))))","v":"--"},0]
[null,null,null,null,null,null,null,null,null,null,null,null,null,null,null,null,0,{"$f":"IF(O$6='Data validation'!$B$7,'Data validation'!$D$7,IF(O$6='Data validation'!$B$19,'Data validation'!$D$19,IF(O$6='Data validation'!$B$18,'Data validation'!$D$18,IF(O$6='Data validation'!$B$17,'Data validation'!$D$17,IF(O$6='Data validation'!$B$16,'Data validation'!$D$16,IF(O$6='Data validation'!$B$15,'Data validation'!$D$15,IF(O$6='Data validation'!$B$14,'Data validation'!$D$14,IF(O$6='Data validation'!$B$12,'Data validation'!$D$12,IF(O$6='Data validation'!$B$13,'Data validation'!$D$13,IF(O$6='Data validation'!$B$11,'Data validation'!$D$11,IF(O$6='Data validation'!$B$10,'Data validation'!$D$10,IF(O$6='Data validation'!$B$9,'Data validation'!$D$9,IF(O$6='Data validation'!$B$8,'Data validation'!$D$8)))))))))))))","v":"--"},0,null,null,null,null,0,{"$f":"IF(V$6='Data validation'!$B$7,'Data validation'!$D$7,IF(V$6='Data validation'!$B$19,'Data validation'!$D$19,IF(V$6='Data validation'!$B$18,'Data validation'!$D$18,IF(V$6='Data validation'!$B$17,'Data validation'!$D$17,IF(V$6='Data validation'!$B$16,'Data validation'!$D$16,IF(V$6='Data validation'!$B$15,'Data validation'!$D$15,IF(V$6='Data validation'!$B$14,'Data validation'!$D$14,IF(V$6='Data validation'!$B$12,'Data validation'!$D$12,IF(V$6='Data validation'!$B$13,'Data validation'!$D$13,IF(V$6='Data validation'!$B$11,'Data validation'!$D$11,IF(V$6='Data validation'!$B$10,'Data validation'!$D$10,IF(V$6='Data validation'!$B$9,'Data validation'!$D$9,IF(V$6='Data validation'!$B$8,'Data validation'!$D$8)))))))))))))","v":"--"},0,null,null,null,null,0,{"$f":"IF(AC$6='Data validation'!$B$7,'Data validation'!$D$7,IF(AC$6='Data validation'!$B$19,'Data validation'!$D$19,IF(AC$6='Data validation'!$B$18,'Data validation'!$D$18,IF(AC$6='Data validation'!$B$17,'Data validation'!$D$17,IF(AC$6='Data validation'!$B$16,'Data validation'!$D$16,IF(AC$6='Data validation'!$B$15,'Data validation'!$D$15,IF(AC$6='Data validation'!$B$14,'Data validation'!$D$14,IF(AC$6='Data validation'!$B$12,'Data validation'!$D$12,IF(AC$6='Data validation'!$B$13,'Data validation'!$D$13,IF(AC$6='Data validation'!$B$11,'Data validation'!$D$11,IF(AC$6='Data validation'!$B$10,'Data validation'!$D$10,IF(AC$6='Data validation'!$B$9,'Data validation'!$D$9,IF(AC$6='Data validation'!$B$8,'Data validation'!$D$8)))))))))))))","v":"--"},0]
[null,null,null,null,null,null,null,null,null,null,null,null,null,null,null,null,0,{"$f":"IF(O$6='Data validation'!$B$7,'Data validation'!$D$7,IF(O$6='Data validation'!$B$19,'Data validation'!$D$19,IF(O$6='Data validation'!$B$18,'Data validation'!$D$18,IF(O$6='Data validation'!$B$17,'Data validation'!$D$17,IF(O$6='Data validation'!$B$16,'Data validation'!$D$16,IF(O$6='Data validation'!$B$15,'Data validation'!$D$15,IF(O$6='Data validation'!$B$14,'Data validation'!$D$14,IF(O$6='Data validation'!$B$12,'Data validation'!$D$12,IF(O$6='Data validation'!$B$13,'Data validation'!$D$13,IF(O$6='Data validation'!$B$11,'Data validation'!$D$11,IF(O$6='Data validation'!$B$10,'Data validation'!$D$10,IF(O$6='Data validation'!$B$9,'Data validation'!$D$9,IF(O$6='Data validation'!$B$8,'Data validation'!$D$8)))))))))))))","v":"--"},0,null,null,null,null,0,{"$f":"IF(V$6='Data validation'!$B$7,'Data validation'!$D$7,IF(V$6='Data validation'!$B$19,'Data validation'!$D$19,IF(V$6='Data validation'!$B$18,'Data validation'!$D$18,IF(V$6='Data validation'!$B$17,'Data validation'!$D$17,IF(V$6='Data validation'!$B$16,'Data validation'!$D$16,IF(V$6='Data validation'!$B$15,'Data validation'!$D$15,IF(V$6='Data validation'!$B$14,'Data validation'!$D$14,IF(V$6='Data validation'!$B$12,'Data validation'!$D$12,IF(V$6='Data validation'!$B$13,'Data validation'!$D$13,IF(V$6='Data validation'!$B$11,'Data validation'!$D$11,IF(V$6='Data validation'!$B$10,'Data validation'!$D$10,IF(V$6='Data validation'!$B$9,'Data validation'!$D$9,IF(V$6='Data validation'!$B$8,'Data validation'!$D$8)))))))))))))","v":"--"},0,null,null,null,null,0,{"$f":"IF(AC$6='Data validation'!$B$7,'Data validation'!$D$7,IF(AC$6='Data validation'!$B$19,'Data validation'!$D$19,IF(AC$6='Data validation'!$B$18,'Data validation'!$D$18,IF(AC$6='Data validation'!$B$17,'Data validation'!$D$17,IF(AC$6='Data validation'!$B$16,'Data validation'!$D$16,IF(AC$6='Data validation'!$B$15,'Data validation'!$D$15,IF(AC$6='Data validation'!$B$14,'Data validation'!$D$14,IF(AC$6='Data validation'!$B$12,'Data validation'!$D$12,IF(AC$6='Data validation'!$B$13,'Data validation'!$D$13,IF(AC$6='Data validation'!$B$11,'Data validation'!$D$11,IF(AC$6='Data validation'!$B$10,'Data validation'!$D$10,IF(AC$6='Data validation'!$B$9,'Data validation'!$D$9,IF(AC$6='Data validation'!$B$8,'Data validation'!$D$8)))))))))))))","v":"--"},0]
[null,null,null,null,null,null,null,null,null,null,null,null,null,null,null,null,0,{"$f":"IF(O$6='Data validation'!$B$7,'Data validation'!$D$7,IF(O$6='Data validation'!$B$19,'Data validation'!$D$19,IF(O$6='Data validation'!$B$18,'Data validation'!$D$18,IF(O$6='Data validation'!$B$17,'Data validation'!$D$17,IF(O$6='Data validation'!$B$16,'Data validation'!$D$16,IF(O$6='Data validation'!$B$15,'Data validation'!$D$15,IF(O$6='Data validation'!$B$14,'Data validation'!$D$14,IF(O$6='Data validation'!$B$12,'Data validation'!$D$12,IF(O$6='Data validation'!$B$13,'Data validation'!$D$13,IF(O$6='Data validation'!$B$11,'Data validation'!$D$11,IF(O$6='Data validation'!$B$10,'Data validation'!$D$10,IF(O$6='Data validation'!$B$9,'Data validation'!$D$9,IF(O$6='Data validation'!$B$8,'Data validation'!$D$8)))))))))))))","v":"--"},0,null,null,null,null,0,{"$f":"IF(V$6='Data validation'!$B$7,'Data validation'!$D$7,IF(V$6='Data validation'!$B$19,'Data validation'!$D$19,IF(V$6='Data validation'!$B$18,'Data validation'!$D$18,IF(V$6='Data validation'!$B$17,'Data validation'!$D$17,IF(V$6='Data validation'!$B$16,'Data validation'!$D$16,IF(V$6='Data validation'!$B$15,'Data validation'!$D$15,IF(V$6='Data validation'!$B$14,'Data validation'!$D$14,IF(V$6='Data validation'!$B$12,'Data validation'!$D$12,IF(V$6='Data validation'!$B$13,'Data validation'!$D$13,IF(V$6='Data validation'!$B$11,'Data validation'!$D$11,IF(V$6='Data validation'!$B$10,'Data validation'!$D$10,IF(V$6='Data validation'!$B$9,'Data validation'!$D$9,IF(V$6='Data validation'!$B$8,'Data validation'!$D$8)))))))))))))","v":"--"},0,null,null,null,null,0,{"$f":"IF(AC$6='Data validation'!$B$7,'Data validation'!$D$7,IF(AC$6='Data validation'!$B$19,'Data validation'!$D$19,IF(AC$6='Data validation'!$B$18,'Data validation'!$D$18,IF(AC$6='Data validation'!$B$17,'Data validation'!$D$17,IF(AC$6='Data validation'!$B$16,'Data validation'!$D$16,IF(AC$6='Data validation'!$B$15,'Data validation'!$D$15,IF(AC$6='Data validation'!$B$14,'Data validation'!$D$14,IF(AC$6='Data validation'!$B$12,'Data validation'!$D$12,IF(AC$6='Data validation'!$B$13,'Data validation'!$D$13,IF(AC$6='Data validation'!$B$11,'Data validation'!$D$11,IF(AC$6='Data validation'!$B$10,'Data validation'!$D$10,IF(AC$6='Data validation'!$B$9,'Data validation'!$D$9,IF(AC$6='Data validation'!$B$8,'Data validation'!$D$8)))))))))))))","v":"--"},0]
[null,null,null,null,null,null,null,null,null,null,null,null,null,null,null,null,0,{"$f":"IF(O$6='Data validation'!$B$7,'Data validation'!$D$7,IF(O$6='Data validation'!$B$19,'Data validation'!$D$19,IF(O$6='Data validation'!$B$18,'Data validation'!$D$18,IF(O$6='Data validation'!$B$17,'Data validation'!$D$17,IF(O$6='Data validation'!$B$16,'Data validation'!$D$16,IF(O$6='Data validation'!$B$15,'Data validation'!$D$15,IF(O$6='Data validation'!$B$14,'Data validation'!$D$14,IF(O$6='Data validation'!$B$12,'Data validation'!$D$12,IF(O$6='Data validation'!$B$13,'Data validation'!$D$13,IF(O$6='Data validation'!$B$11,'Data validation'!$D$11,IF(O$6='Data validation'!$B$10,'Data validation'!$D$10,IF(O$6='Data validation'!$B$9,'Data validation'!$D$9,IF(O$6='Data validation'!$B$8,'Data validation'!$D$8)))))))))))))","v":"--"},0,null,null,null,null,0,{"$f":"IF(V$6='Data validation'!$B$7,'Data validation'!$D$7,IF(V$6='Data validation'!$B$19,'Data validation'!$D$19,IF(V$6='Data validation'!$B$18,'Data validation'!$D$18,IF(V$6='Data validation'!$B$17,'Data validation'!$D$17,IF(V$6='Data validation'!$B$16,'Data validation'!$D$16,IF(V$6='Data validation'!$B$15,'Data validation'!$D$15,IF(V$6='Data validation'!$B$14,'Data validation'!$D$14,IF(V$6='Data validation'!$B$12,'Data validation'!$D$12,IF(V$6='Data validation'!$B$13,'Data validation'!$D$13,IF(V$6='Data validation'!$B$11,'Data validation'!$D$11,IF(V$6='Data validation'!$B$10,'Data validation'!$D$10,IF(V$6='Data validation'!$B$9,'Data validation'!$D$9,IF(V$6='Data validation'!$B$8,'Data validation'!$D$8)))))))))))))","v":"--"},0,null,null,null,null,0,{"$f":"IF(AC$6='Data validation'!$B$7,'Data validation'!$D$7,IF(AC$6='Data validation'!$B$19,'Data validation'!$D$19,IF(AC$6='Data validation'!$B$18,'Data validation'!$D$18,IF(AC$6='Data validation'!$B$17,'Data validation'!$D$17,IF(AC$6='Data validation'!$B$16,'Data validation'!$D$16,IF(AC$6='Data validation'!$B$15,'Data validation'!$D$15,IF(AC$6='Data validation'!$B$14,'Data validation'!$D$14,IF(AC$6='Data validation'!$B$12,'Data validation'!$D$12,IF(AC$6='Data validation'!$B$13,'Data validation'!$D$13,IF(AC$6='Data validation'!$B$11,'Data validation'!$D$11,IF(AC$6='Data validation'!$B$10,'Data validation'!$D$10,IF(AC$6='Data validation'!$B$9,'Data validation'!$D$9,IF(AC$6='Data validation'!$B$8,'Data validation'!$D$8)))))))))))))","v":"--"},0]
[null,null,null,null,null,null,null,null,null,null,null,null,null,null,null,null,0,{"$f":"IF(O$6='Data validation'!$B$7,'Data validation'!$D$7,IF(O$6='Data validation'!$B$19,'Data validation'!$D$19,IF(O$6='Data validation'!$B$18,'Data validation'!$D$18,IF(O$6='Data validation'!$B$17,'Data validation'!$D$17,IF(O$6='Data validation'!$B$16,'Data validation'!$D$16,IF(O$6='Data validation'!$B$15,'Data validation'!$D$15,IF(O$6='Data validation'!$B$14,'Data validation'!$D$14,IF(O$6='Data validation'!$B$12,'Data validation'!$D$12,IF(O$6='Data validation'!$B$13,'Data validation'!$D$13,IF(O$6='Data validation'!$B$11,'Data validation'!$D$11,IF(O$6='Data validation'!$B$10,'Data validation'!$D$10,IF(O$6='Data validation'!$B$9,'Data validation'!$D$9,IF(O$6='Data validation'!$B$8,'Data validation'!$D$8)))))))))))))","v":"--"},0,null,null,null,null,0,{"$f":"IF(V$6='Data validation'!$B$7,'Data validation'!$D$7,IF(V$6='Data validation'!$B$19,'Data validation'!$D$19,IF(V$6='Data validation'!$B$18,'Data validation'!$D$18,IF(V$6='Data validation'!$B$17,'Data validation'!$D$17,IF(V$6='Data validation'!$B$16,'Data validation'!$D$16,IF(V$6='Data validation'!$B$15,'Data validation'!$D$15,IF(V$6='Data validation'!$B$14,'Data validation'!$D$14,IF(V$6='Data validation'!$B$12,'Data validation'!$D$12,IF(V$6='Data validation'!$B$13,'Data validation'!$D$13,IF(V$6='Data validation'!$B$11,'Data validation'!$D$11,IF(V$6='Data validation'!$B$10,'Data validation'!$D$10,IF(V$6='Data validation'!$B$9,'Data validation'!$D$9,IF(V$6='Data validation'!$B$8,'Data validation'!$D$8)))))))))))))","v":"--"},0,null,null,null,null,0,{"$f":"IF(AC$6='Data validation'!$B$7,'Data validation'!$D$7,IF(AC$6='Data validation'!$B$19,'Data validation'!$D$19,IF(AC$6='Data validation'!$B$18,'Data validation'!$D$18,IF(AC$6='Data validation'!$B$17,'Data validation'!$D$17,IF(AC$6='Data validation'!$B$16,'Data validation'!$D$16,IF(AC$6='Data validation'!$B$15,'Data validation'!$D$15,IF(AC$6='Data validation'!$B$14,'Data validation'!$D$14,IF(AC$6='Data validation'!$B$12,'Data validation'!$D$12,IF(AC$6='Data validation'!$B$13,'Data validation'!$D$13,IF(AC$6='Data validation'!$B$11,'Data validation'!$D$11,IF(AC$6='Data validation'!$B$10,'Data validation'!$D$10,IF(AC$6='Data validation'!$B$9,'Data validation'!$D$9,IF(AC$6='Data validation'!$B$8,'Data validation'!$D$8)))))))))))))","v":"--"},0]
[null,null,null,null,null,null,null,null,null,null,null,null,null,null,null,null,0,{"$f":"IF(O$6='Data validation'!$B$7,'Data validation'!$D$7,IF(O$6='Data validation'!$B$19,'Data validation'!$D$19,IF(O$6='Data validation'!$B$18,'Data validation'!$D$18,IF(O$6='Data validation'!$B$17,'Data validation'!$D$17,IF(O$6='Data validation'!$B$16,'Data validation'!$D$16,IF(O$6='Data validation'!$B$15,'Data validation'!$D$15,IF(O$6='Data validation'!$B$14,'Data validation'!$D$14,IF(O$6='Data validation'!$B$12,'Data validation'!$D$12,IF(O$6='Data validation'!$B$13,'Data validation'!$D$13,IF(O$6='Data validation'!$B$11,'Data validation'!$D$11,IF(O$6='Data validation'!$B$10,'Data validation'!$D$10,IF(O$6='Data validation'!$B$9,'Data validation'!$D$9,IF(O$6='Data validation'!$B$8,'Data validation'!$D$8)))))))))))))","v":"--"},0,null,null,null,null,0,{"$f":"IF(V$6='Data validation'!$B$7,'Data validation'!$D$7,IF(V$6='Data validation'!$B$19,'Data validation'!$D$19,IF(V$6='Data validation'!$B$18,'Data validation'!$D$18,IF(V$6='Data validation'!$B$17,'Data validation'!$D$17,IF(V$6='Data validation'!$B$16,'Data validation'!$D$16,IF(V$6='Data validation'!$B$15,'Data validation'!$D$15,IF(V$6='Data validation'!$B$14,'Data validation'!$D$14,IF(V$6='Data validation'!$B$12,'Data validation'!$D$12,IF(V$6='Data validation'!$B$13,'Data validation'!$D$13,IF(V$6='Data validation'!$B$11,'Data validation'!$D$11,IF(V$6='Data validation'!$B$10,'Data validation'!$D$10,IF(V$6='Data validation'!$B$9,'Data validation'!$D$9,IF(V$6='Data validation'!$B$8,'Data validation'!$D$8)))))))))))))","v":"--"},0,null,null,null,null,0,{"$f":"IF(AC$6='Data validation'!$B$7,'Data validation'!$D$7,IF(AC$6='Data validation'!$B$19,'Data validation'!$D$19,IF(AC$6='Data validation'!$B$18,'Data validation'!$D$18,IF(AC$6='Data validation'!$B$17,'Data validation'!$D$17,IF(AC$6='Data validation'!$B$16,'Data validation'!$D$16,IF(AC$6='Data validation'!$B$15,'Data validation'!$D$15,IF(AC$6='Data validation'!$B$14,'Data validation'!$D$14,IF(AC$6='Data validation'!$B$12,'Data validation'!$D$12,IF(AC$6='Data validation'!$B$13,'Data validation'!$D$13,IF(AC$6='Data validation'!$B$11,'Data validation'!$D$11,IF(AC$6='Data validation'!$B$10,'Data validation'!$D$10,IF(AC$6='Data validation'!$B$9,'Data validation'!$D$9,IF(AC$6='Data validation'!$B$8,'Data validation'!$D$8)))))))))))))","v":"--"},0]
[null,null,null,null,null,null,null,null,null,null,null,null,null,null,null,null,{"$f":"SUM(P48:P59)","v":0},{"$f":"IF(O$6='Data validation'!$B$7,'Data validation'!$D$7,IF(O$6='Data validation'!$B$19,'Data validation'!$D$19,IF(O$6='Data validation'!$B$18,'Data validation'!$D$18,IF(O$6='Data validation'!$B$17,'Data validation'!$D$17,IF(O$6='Data validation'!$B$16,'Data validation'!$D$16,IF(O$6='Data validation'!$B$15,'Data validation'!$D$15,IF(O$6='Data validation'!$B$14,'Data validation'!$D$14,IF(O$6='Data validation'!$B$12,'Data validation'!$D$12,IF(O$6='Data validation'!$B$13,'Data validation'!$D$13,IF(O$6='Data validation'!$B$11,'Data validation'!$D$11,IF(O$6='Data validation'!$B$10,'Data validation'!$D$10,IF(O$6='Data validation'!$B$9,'Data validation'!$D$9,IF(O$6='Data validation'!$B$8,'Data validation'!$D$8)))))))))))))","v":"--"},{"$f":"IFERROR(Q59*R59,0)","v":0},null,null,null,null,{"$f":"SUM(W48:W59)","v":0},{"$f":"IF(V$6='Data validation'!$B$7,'Data validation'!$D$7,IF(V$6='Data validation'!$B$19,'Data validation'!$D$19,IF(V$6='Data validation'!$B$18,'Data validation'!$D$18,IF(V$6='Data validation'!$B$17,'Data validation'!$D$17,IF(V$6='Data validation'!$B$16,'Data validation'!$D$16,IF(V$6='Data validation'!$B$15,'Data validation'!$D$15,IF(V$6='Data validation'!$B$14,'Data validation'!$D$14,IF(V$6='Data validation'!$B$12,'Data validation'!$D$12,IF(V$6='Data validation'!$B$13,'Data validation'!$D$13,IF(V$6='Data validation'!$B$11,'Data validation'!$D$11,IF(V$6='Data validation'!$B$10,'Data validation'!$D$10,IF(V$6='Data validation'!$B$9,'Data validation'!$D$9,IF(V$6='Data validation'!$B$8,'Data validation'!$D$8)))))))))))))","v":"--"},{"$f":"IFERROR(X59*Y59,0)","v":0},null,null,null,null,{"$f":"SUM(AD48:AD59)","v":0},{"$f":"IF(AC$6='Data validation'!$B$7,'Data validation'!$D$7,IF(AC$6='Data validation'!$B$19,'Data validation'!$D$19,IF(AC$6='Data validation'!$B$18,'Data validation'!$D$18,IF(AC$6='Data validation'!$B$17,'Data validation'!$D$17,IF(AC$6='Data validation'!$B$16,'Data validation'!$D$16,IF(AC$6='Data validation'!$B$15,'Data validation'!$D$15,IF(AC$6='Data validation'!$B$14,'Data validation'!$D$14,IF(AC$6='Data validation'!$B$12,'Data validation'!$D$12,IF(AC$6='Data validation'!$B$13,'Data validation'!$D$13,IF(AC$6='Data validation'!$B$11,'Data validation'!$D$11,IF(AC$6='Data validation'!$B$10,'Data validation'!$D$10,IF(AC$6='Data validation'!$B$9,'Data validation'!$D$9,IF(AC$6='Data validation'!$B$8,'Data validation'!$D$8)))))))))))))","v":"--"},{"$f":"IFERROR(AE59*AF59,0)","v":0}]
[null,null,null,null,null,null,null,null,null,null,null,null,null,null,null,null,0,{"$f":"IF(O$6='Data validation'!$B$7,'Data validation'!$D$7,IF(O$6='Data validation'!$B$19,'Data validation'!$D$19,IF(O$6='Data validation'!$B$18,'Data validation'!$D$18,IF(O$6='Data validation'!$B$17,'Data validation'!$D$17,IF(O$6='Data validation'!$B$16,'Data validation'!$D$16,IF(O$6='Data validation'!$B$15,'Data validation'!$D$15,IF(O$6='Data validation'!$B$14,'Data validation'!$D$14,IF(O$6='Data validation'!$B$12,'Data validation'!$D$12,IF(O$6='Data validation'!$B$13,'Data validation'!$D$13,IF(O$6='Data validation'!$B$11,'Data validation'!$D$11,IF(O$6='Data validation'!$B$10,'Data validation'!$D$10,IF(O$6='Data validation'!$B$9,'Data validation'!$D$9,IF(O$6='Data validation'!$B$8,'Data validation'!$D$8)))))))))))))","v":"--"},0,null,null,null,null,0,{"$f":"IF(V$6='Data validation'!$B$7,'Data validation'!$D$7,IF(V$6='Data validation'!$B$19,'Data validation'!$D$19,IF(V$6='Data validation'!$B$18,'Data validation'!$D$18,IF(V$6='Data validation'!$B$17,'Data validation'!$D$17,IF(V$6='Data validation'!$B$16,'Data validation'!$D$16,IF(V$6='Data validation'!$B$15,'Data validation'!$D$15,IF(V$6='Data validation'!$B$14,'Data validation'!$D$14,IF(V$6='Data validation'!$B$12,'Data validation'!$D$12,IF(V$6='Data validation'!$B$13,'Data validation'!$D$13,IF(V$6='Data validation'!$B$11,'Data validation'!$D$11,IF(V$6='Data validation'!$B$10,'Data validation'!$D$10,IF(V$6='Data validation'!$B$9,'Data validation'!$D$9,IF(V$6='Data validation'!$B$8,'Data validation'!$D$8)))))))))))))","v":"--"},0,null,null,null,null,0,{"$f":"IF(AC$6='Data validation'!$B$7,'Data validation'!$D$7,IF(AC$6='Data validation'!$B$19,'Data validation'!$D$19,IF(AC$6='Data validation'!$B$18,'Data validation'!$D$18,IF(AC$6='Data validation'!$B$17,'Data validation'!$D$17,IF(AC$6='Data validation'!$B$16,'Data validation'!$D$16,IF(AC$6='Data validation'!$B$15,'Data validation'!$D$15,IF(AC$6='Data validation'!$B$14,'Data validation'!$D$14,IF(AC$6='Data validation'!$B$12,'Data validation'!$D$12,IF(AC$6='Data validation'!$B$13,'Data validation'!$D$13,IF(AC$6='Data validation'!$B$11,'Data validation'!$D$11,IF(AC$6='Data validation'!$B$10,'Data validation'!$D$10,IF(AC$6='Data validation'!$B$9,'Data validation'!$D$9,IF(AC$6='Data validation'!$B$8,'Data validation'!$D$8)))))))))))))","v":"--"},0]
[null,null,null,null,null,null,null,null,null,null,null,null,null,null,null,null,0,{"$f":"IF(O$6='Data validation'!$B$7,'Data validation'!$D$7,IF(O$6='Data validation'!$B$19,'Data validation'!$D$19,IF(O$6='Data validation'!$B$18,'Data validation'!$D$18,IF(O$6='Data validation'!$B$17,'Data validation'!$D$17,IF(O$6='Data validation'!$B$16,'Data validation'!$D$16,IF(O$6='Data validation'!$B$15,'Data validation'!$D$15,IF(O$6='Data validation'!$B$14,'Data validation'!$D$14,IF(O$6='Data validation'!$B$12,'Data validation'!$D$12,IF(O$6='Data validation'!$B$13,'Data validation'!$D$13,IF(O$6='Data validation'!$B$11,'Data validation'!$D$11,IF(O$6='Data validation'!$B$10,'Data validation'!$D$10,IF(O$6='Data validation'!$B$9,'Data validation'!$D$9,IF(O$6='Data validation'!$B$8,'Data validation'!$D$8)))))))))))))","v":"--"},0,null,null,null,null,0,{"$f":"IF(V$6='Data validation'!$B$7,'Data validation'!$D$7,IF(V$6='Data validation'!$B$19,'Data validation'!$D$19,IF(V$6='Data validation'!$B$18,'Data validation'!$D$18,IF(V$6='Data validation'!$B$17,'Data validation'!$D$17,IF(V$6='Data validation'!$B$16,'Data validation'!$D$16,IF(V$6='Data validation'!$B$15,'Data validation'!$D$15,IF(V$6='Data validation'!$B$14,'Data validation'!$D$14,IF(V$6='Data validation'!$B$12,'Data validation'!$D$12,IF(V$6='Data validation'!$B$13,'Data validation'!$D$13,IF(V$6='Data validation'!$B$11,'Data validation'!$D$11,IF(V$6='Data validation'!$B$10,'Data validation'!$D$10,IF(V$6='Data validation'!$B$9,'Data validation'!$D$9,IF(V$6='Data validation'!$B$8,'Data validation'!$D$8)))))))))))))","v":"--"},0,null,null,null,null,0,{"$f":"IF(AC$6='Data validation'!$B$7,'Data validation'!$D$7,IF(AC$6='Data validation'!$B$19,'Data validation'!$D$19,IF(AC$6='Data validation'!$B$18,'Data validation'!$D$18,IF(AC$6='Data validation'!$B$17,'Data validation'!$D$17,IF(AC$6='Data validation'!$B$16,'Data validation'!$D$16,IF(AC$6='Data validation'!$B$15,'Data validation'!$D$15,IF(AC$6='Data validation'!$B$14,'Data validation'!$D$14,IF(AC$6='Data validation'!$B$12,'Data validation'!$D$12,IF(AC$6='Data validation'!$B$13,'Data validation'!$D$13,IF(AC$6='Data validation'!$B$11,'Data validation'!$D$11,IF(AC$6='Data validation'!$B$10,'Data validation'!$D$10,IF(AC$6='Data validation'!$B$9,'Data validation'!$D$9,IF(AC$6='Data validation'!$B$8,'Data validation'!$D$8)))))))))))))","v":"--"},0]
[null,null,null,null,null,null,null,null,null,null,null,null,null,null,null,null,0,{"$f":"IF(O$6='Data validation'!$B$7,'Data validation'!$D$7,IF(O$6='Data validation'!$B$19,'Data validation'!$D$19,IF(O$6='Data validation'!$B$18,'Data validation'!$D$18,IF(O$6='Data validation'!$B$17,'Data validation'!$D$17,IF(O$6='Data validation'!$B$16,'Data validation'!$D$16,IF(O$6='Data validation'!$B$15,'Data validation'!$D$15,IF(O$6='Data validation'!$B$14,'Data validation'!$D$14,IF(O$6='Data validation'!$B$12,'Data validation'!$D$12,IF(O$6='Data validation'!$B$13,'Data validation'!$D$13,IF(O$6='Data validation'!$B$11,'Data validation'!$D$11,IF(O$6='Data validation'!$B$10,'Data validation'!$D$10,IF(O$6='Data validation'!$B$9,'Data validation'!$D$9,IF(O$6='Data validation'!$B$8,'Data validation'!$D$8)))))))))))))","v":"--"},0,null,null,null,null,0,{"$f":"IF(V$6='Data validation'!$B$7,'Data validation'!$D$7,IF(V$6='Data validation'!$B$19,'Data validation'!$D$19,IF(V$6='Data validation'!$B$18,'Data validation'!$D$18,IF(V$6='Data validation'!$B$17,'Data validation'!$D$17,IF(V$6='Data validation'!$B$16,'Data validation'!$D$16,IF(V$6='Data validation'!$B$15,'Data validation'!$D$15,IF(V$6='Data validation'!$B$14,'Data validation'!$D$14,IF(V$6='Data validation'!$B$12,'Data validation'!$D$12,IF(V$6='Data validation'!$B$13,'Data validation'!$D$13,IF(V$6='Data validation'!$B$11,'Data validation'!$D$11,IF(V$6='Data validation'!$B$10,'Data validation'!$D$10,IF(V$6='Data validation'!$B$9,'Data validation'!$D$9,IF(V$6='Data validation'!$B$8,'Data validation'!$D$8)))))))))))))","v":"--"},0,null,null,null,null,0,{"$f":"IF(AC$6='Data validation'!$B$7,'Data validation'!$D$7,IF(AC$6='Data validation'!$B$19,'Data validation'!$D$19,IF(AC$6='Data validation'!$B$18,'Data validation'!$D$18,IF(AC$6='Data validation'!$B$17,'Data validation'!$D$17,IF(AC$6='Data validation'!$B$16,'Data validation'!$D$16,IF(AC$6='Data validation'!$B$15,'Data validation'!$D$15,IF(AC$6='Data validation'!$B$14,'Data validation'!$D$14,IF(AC$6='Data validation'!$B$12,'Data validation'!$D$12,IF(AC$6='Data validation'!$B$13,'Data validation'!$D$13,IF(AC$6='Data validation'!$B$11,'Data validation'!$D$11,IF(AC$6='Data validation'!$B$10,'Data validation'!$D$10,IF(AC$6='Data validation'!$B$9,'Data validation'!$D$9,IF(AC$6='Data validation'!$B$8,'Data validation'!$D$8)))))))))))))","v":"--"},0]
[null,null,null,null,null,null,null,null,null,null,null,null,null,null,null,null,0,{"$f":"IF(O$6='Data validation'!$B$7,'Data validation'!$D$7,IF(O$6='Data validation'!$B$19,'Data validation'!$D$19,IF(O$6='Data validation'!$B$18,'Data validation'!$D$18,IF(O$6='Data validation'!$B$17,'Data validation'!$D$17,IF(O$6='Data validation'!$B$16,'Data validation'!$D$16,IF(O$6='Data validation'!$B$15,'Data validation'!$D$15,IF(O$6='Data validation'!$B$14,'Data validation'!$D$14,IF(O$6='Data validation'!$B$12,'Data validation'!$D$12,IF(O$6='Data validation'!$B$13,'Data validation'!$D$13,IF(O$6='Data validation'!$B$11,'Data validation'!$D$11,IF(O$6='Data validation'!$B$10,'Data validation'!$D$10,IF(O$6='Data validation'!$B$9,'Data validation'!$D$9,IF(O$6='Data validation'!$B$8,'Data validation'!$D$8)))))))))))))","v":"--"},0,null,null,null,null,0,{"$f":"IF(V$6='Data validation'!$B$7,'Data validation'!$D$7,IF(V$6='Data validation'!$B$19,'Data validation'!$D$19,IF(V$6='Data validation'!$B$18,'Data validation'!$D$18,IF(V$6='Data validation'!$B$17,'Data validation'!$D$17,IF(V$6='Data validation'!$B$16,'Data validation'!$D$16,IF(V$6='Data validation'!$B$15,'Data validation'!$D$15,IF(V$6='Data validation'!$B$14,'Data validation'!$D$14,IF(V$6='Data validation'!$B$12,'Data validation'!$D$12,IF(V$6='Data validation'!$B$13,'Data validation'!$D$13,IF(V$6='Data validation'!$B$11,'Data validation'!$D$11,IF(V$6='Data validation'!$B$10,'Data validation'!$D$10,IF(V$6='Data validation'!$B$9,'Data validation'!$D$9,IF(V$6='Data validation'!$B$8,'Data validation'!$D$8)))))))))))))","v":"--"},0,null,null,null,null,0,{"$f":"IF(AC$6='Data validation'!$B$7,'Data validation'!$D$7,IF(AC$6='Data validation'!$B$19,'Data validation'!$D$19,IF(AC$6='Data validation'!$B$18,'Data validation'!$D$18,IF(AC$6='Data validation'!$B$17,'Data validation'!$D$17,IF(AC$6='Data validation'!$B$16,'Data validation'!$D$16,IF(AC$6='Data validation'!$B$15,'Data validation'!$D$15,IF(AC$6='Data validation'!$B$14,'Data validation'!$D$14,IF(AC$6='Data validation'!$B$12,'Data validation'!$D$12,IF(AC$6='Data validation'!$B$13,'Data validation'!$D$13,IF(AC$6='Data validation'!$B$11,'Data validation'!$D$11,IF(AC$6='Data validation'!$B$10,'Data validation'!$D$10,IF(AC$6='Data validation'!$B$9,'Data validation'!$D$9,IF(AC$6='Data validation'!$B$8,'Data validation'!$D$8)))))))))))))","v":"--"},0]
[null,null,null,null,null,null,null,null,null,null,null,null,null,null,null,null,0,{"$f":"IF(O$6='Data validation'!$B$7,'Data validation'!$D$7,IF(O$6='Data validation'!$B$19,'Data validation'!$D$19,IF(O$6='Data validation'!$B$18,'Data validation'!$D$18,IF(O$6='Data validation'!$B$17,'Data validation'!$D$17,IF(O$6='Data validation'!$B$16,'Data validation'!$D$16,IF(O$6='Data validation'!$B$15,'Data validation'!$D$15,IF(O$6='Data validation'!$B$14,'Data validation'!$D$14,IF(O$6='Data validation'!$B$12,'Data validation'!$D$12,IF(O$6='Data validation'!$B$13,'Data validation'!$D$13,IF(O$6='Data validation'!$B$11,'Data validation'!$D$11,IF(O$6='Data validation'!$B$10,'Data validation'!$D$10,IF(O$6='Data validation'!$B$9,'Data validation'!$D$9,IF(O$6='Data validation'!$B$8,'Data validation'!$D$8)))))))))))))","v":"--"},0,null,null,null,null,0,{"$f":"IF(V$6='Data validation'!$B$7,'Data validation'!$D$7,IF(V$6='Data validation'!$B$19,'Data validation'!$D$19,IF(V$6='Data validation'!$B$18,'Data validation'!$D$18,IF(V$6='Data validation'!$B$17,'Data validation'!$D$17,IF(V$6='Data validation'!$B$16,'Data validation'!$D$16,IF(V$6='Data validation'!$B$15,'Data validation'!$D$15,IF(V$6='Data validation'!$B$14,'Data validation'!$D$14,IF(V$6='Data validation'!$B$12,'Data validation'!$D$12,IF(V$6='Data validation'!$B$13,'Data validation'!$D$13,IF(V$6='Data validation'!$B$11,'Data validation'!$D$11,IF(V$6='Data validation'!$B$10,'Data validation'!$D$10,IF(V$6='Data validation'!$B$9,'Data validation'!$D$9,IF(V$6='Data validation'!$B$8,'Data validation'!$D$8)))))))))))))","v":"--"},0,null,null,null,null,0,{"$f":"IF(AC$6='Data validation'!$B$7,'Data validation'!$D$7,IF(AC$6='Data validation'!$B$19,'Data validation'!$D$19,IF(AC$6='Data validation'!$B$18,'Data validation'!$D$18,IF(AC$6='Data validation'!$B$17,'Data validation'!$D$17,IF(AC$6='Data validation'!$B$16,'Data validation'!$D$16,IF(AC$6='Data validation'!$B$15,'Data validation'!$D$15,IF(AC$6='Data validation'!$B$14,'Data validation'!$D$14,IF(AC$6='Data validation'!$B$12,'Data validation'!$D$12,IF(AC$6='Data validation'!$B$13,'Data validation'!$D$13,IF(AC$6='Data validation'!$B$11,'Data validation'!$D$11,IF(AC$6='Data validation'!$B$10,'Data validation'!$D$10,IF(AC$6='Data validation'!$B$9,'Data validation'!$D$9,IF(AC$6='Data validation'!$B$8,'Data validation'!$D$8)))))))))))))","v":"--"},0]
[null,null,null,null,null,null,null,null,null,null,null,null,null,null,null,null,0,{"$f":"IF(O$6='Data validation'!$B$7,'Data validation'!$D$7,IF(O$6='Data validation'!$B$19,'Data validation'!$D$19,IF(O$6='Data validation'!$B$18,'Data validation'!$D$18,IF(O$6='Data validation'!$B$17,'Data validation'!$D$17,IF(O$6='Data validation'!$B$16,'Data validation'!$D$16,IF(O$6='Data validation'!$B$15,'Data validation'!$D$15,IF(O$6='Data validation'!$B$14,'Data validation'!$D$14,IF(O$6='Data validation'!$B$12,'Data validation'!$D$12,IF(O$6='Data validation'!$B$13,'Data validation'!$D$13,IF(O$6='Data validation'!$B$11,'Data validation'!$D$11,IF(O$6='Data validation'!$B$10,'Data validation'!$D$10,IF(O$6='Data validation'!$B$9,'Data validation'!$D$9,IF(O$6='Data validation'!$B$8,'Data validation'!$D$8)))))))))))))","v":"--"},0,null,null,null,null,0,{"$f":"IF(V$6='Data validation'!$B$7,'Data validation'!$D$7,IF(V$6='Data validation'!$B$19,'Data validation'!$D$19,IF(V$6='Data validation'!$B$18,'Data validation'!$D$18,IF(V$6='Data validation'!$B$17,'Data validation'!$D$17,IF(V$6='Data validation'!$B$16,'Data validation'!$D$16,IF(V$6='Data validation'!$B$15,'Data validation'!$D$15,IF(V$6='Data validation'!$B$14,'Data validation'!$D$14,IF(V$6='Data validation'!$B$12,'Data validation'!$D$12,IF(V$6='Data validation'!$B$13,'Data validation'!$D$13,IF(V$6='Data validation'!$B$11,'Data validation'!$D$11,IF(V$6='Data validation'!$B$10,'Data validation'!$D$10,IF(V$6='Data validation'!$B$9,'Data validation'!$D$9,IF(V$6='Data validation'!$B$8,'Data validation'!$D$8)))))))))))))","v":"--"},0,null,null,null,null,0,{"$f":"IF(AC$6='Data validation'!$B$7,'Data validation'!$D$7,IF(AC$6='Data validation'!$B$19,'Data validation'!$D$19,IF(AC$6='Data validation'!$B$18,'Data validation'!$D$18,IF(AC$6='Data validation'!$B$17,'Data validation'!$D$17,IF(AC$6='Data validation'!$B$16,'Data validation'!$D$16,IF(AC$6='Data validation'!$B$15,'Data validation'!$D$15,IF(AC$6='Data validation'!$B$14,'Data validation'!$D$14,IF(AC$6='Data validation'!$B$12,'Data validation'!$D$12,IF(AC$6='Data validation'!$B$13,'Data validation'!$D$13,IF(AC$6='Data validation'!$B$11,'Data validation'!$D$11,IF(AC$6='Data validation'!$B$10,'Data validation'!$D$10,IF(AC$6='Data validation'!$B$9,'Data validation'!$D$9,IF(AC$6='Data validation'!$B$8,'Data validation'!$D$8)))))))))))))","v":"--"},0]
[null,null,null,null,null,null,null,null,null,null,null,null,null,null,null,null,0,{"$f":"IF(O$6='Data validation'!$B$7,'Data validation'!$D$7,IF(O$6='Data validation'!$B$19,'Data validation'!$D$19,IF(O$6='Data validation'!$B$18,'Data validation'!$D$18,IF(O$6='Data validation'!$B$17,'Data validation'!$D$17,IF(O$6='Data validation'!$B$16,'Data validation'!$D$16,IF(O$6='Data validation'!$B$15,'Data validation'!$D$15,IF(O$6='Data validation'!$B$14,'Data validation'!$D$14,IF(O$6='Data validation'!$B$12,'Data validation'!$D$12,IF(O$6='Data validation'!$B$13,'Data validation'!$D$13,IF(O$6='Data validation'!$B$11,'Data validation'!$D$11,IF(O$6='Data validation'!$B$10,'Data validation'!$D$10,IF(O$6='Data validation'!$B$9,'Data validation'!$D$9,IF(O$6='Data validation'!$B$8,'Data validation'!$D$8)))))))))))))","v":"--"},0,null,null,null,null,0,{"$f":"IF(V$6='Data validation'!$B$7,'Data validation'!$D$7,IF(V$6='Data validation'!$B$19,'Data validation'!$D$19,IF(V$6='Data validation'!$B$18,'Data validation'!$D$18,IF(V$6='Data validation'!$B$17,'Data validation'!$D$17,IF(V$6='Data validation'!$B$16,'Data validation'!$D$16,IF(V$6='Data validation'!$B$15,'Data validation'!$D$15,IF(V$6='Data validation'!$B$14,'Data validation'!$D$14,IF(V$6='Data validation'!$B$12,'Data validation'!$D$12,IF(V$6='Data validation'!$B$13,'Data validation'!$D$13,IF(V$6='Data validation'!$B$11,'Data validation'!$D$11,IF(V$6='Data validation'!$B$10,'Data validation'!$D$10,IF(V$6='Data validation'!$B$9,'Data validation'!$D$9,IF(V$6='Data validation'!$B$8,'Data validation'!$D$8)))))))))))))","v":"--"},0,null,null,null,null,0,{"$f":"IF(AC$6='Data validation'!$B$7,'Data validation'!$D$7,IF(AC$6='Data validation'!$B$19,'Data validation'!$D$19,IF(AC$6='Data validation'!$B$18,'Data validation'!$D$18,IF(AC$6='Data validation'!$B$17,'Data validation'!$D$17,IF(AC$6='Data validation'!$B$16,'Data validation'!$D$16,IF(AC$6='Data validation'!$B$15,'Data validation'!$D$15,IF(AC$6='Data validation'!$B$14,'Data validation'!$D$14,IF(AC$6='Data validation'!$B$12,'Data validation'!$D$12,IF(AC$6='Data validation'!$B$13,'Data validation'!$D$13,IF(AC$6='Data validation'!$B$11,'Data validation'!$D$11,IF(AC$6='Data validation'!$B$10,'Data validation'!$D$10,IF(AC$6='Data validation'!$B$9,'Data validation'!$D$9,IF(AC$6='Data validation'!$B$8,'Data validation'!$D$8)))))))))))))","v":"--"},0]
[null,null,null,null,null,null,null,null,null,null,null,null,null,null,null,null,0,{"$f":"IF(O$6='Data validation'!$B$7,'Data validation'!$D$7,IF(O$6='Data validation'!$B$19,'Data validation'!$D$19,IF(O$6='Data validation'!$B$18,'Data validation'!$D$18,IF(O$6='Data validation'!$B$17,'Data validation'!$D$17,IF(O$6='Data validation'!$B$16,'Data validation'!$D$16,IF(O$6='Data validation'!$B$15,'Data validation'!$D$15,IF(O$6='Data validation'!$B$14,'Data validation'!$D$14,IF(O$6='Data validation'!$B$12,'Data validation'!$D$12,IF(O$6='Data validation'!$B$13,'Data validation'!$D$13,IF(O$6='Data validation'!$B$11,'Data validation'!$D$11,IF(O$6='Data validation'!$B$10,'Data validation'!$D$10,IF(O$6='Data validation'!$B$9,'Data validation'!$D$9,IF(O$6='Data validation'!$B$8,'Data validation'!$D$8)))))))))))))","v":"--"},0,null,null,null,null,0,{"$f":"IF(V$6='Data validation'!$B$7,'Data validation'!$D$7,IF(V$6='Data validation'!$B$19,'Data validation'!$D$19,IF(V$6='Data validation'!$B$18,'Data validation'!$D$18,IF(V$6='Data validation'!$B$17,'Data validation'!$D$17,IF(V$6='Data validation'!$B$16,'Data validation'!$D$16,IF(V$6='Data validation'!$B$15,'Data validation'!$D$15,IF(V$6='Data validation'!$B$14,'Data validation'!$D$14,IF(V$6='Data validation'!$B$12,'Data validation'!$D$12,IF(V$6='Data validation'!$B$13,'Data validation'!$D$13,IF(V$6='Data validation'!$B$11,'Data validation'!$D$11,IF(V$6='Data validation'!$B$10,'Data validation'!$D$10,IF(V$6='Data validation'!$B$9,'Data validation'!$D$9,IF(V$6='Data validation'!$B$8,'Data validation'!$D$8)))))))))))))","v":"--"},0,null,null,null,null,0,{"$f":"IF(AC$6='Data validation'!$B$7,'Data validation'!$D$7,IF(AC$6='Data validation'!$B$19,'Data validation'!$D$19,IF(AC$6='Data validation'!$B$18,'Data validation'!$D$18,IF(AC$6='Data validation'!$B$17,'Data validation'!$D$17,IF(AC$6='Data validation'!$B$16,'Data validation'!$D$16,IF(AC$6='Data validation'!$B$15,'Data validation'!$D$15,IF(AC$6='Data validation'!$B$14,'Data validation'!$D$14,IF(AC$6='Data validation'!$B$12,'Data validation'!$D$12,IF(AC$6='Data validation'!$B$13,'Data validation'!$D$13,IF(AC$6='Data validation'!$B$11,'Data validation'!$D$11,IF(AC$6='Data validation'!$B$10,'Data validation'!$D$10,IF(AC$6='Data validation'!$B$9,'Data validation'!$D$9,IF(AC$6='Data validation'!$B$8,'Data validation'!$D$8)))))))))))))","v":"--"},0]
[null,null,null,null,null,null,null,null,null,null,null,null,null,null,null,null,0,{"$f":"IF(O$6='Data validation'!$B$7,'Data validation'!$D$7,IF(O$6='Data validation'!$B$19,'Data validation'!$D$19,IF(O$6='Data validation'!$B$18,'Data validation'!$D$18,IF(O$6='Data validation'!$B$17,'Data validation'!$D$17,IF(O$6='Data validation'!$B$16,'Data validation'!$D$16,IF(O$6='Data validation'!$B$15,'Data validation'!$D$15,IF(O$6='Data validation'!$B$14,'Data validation'!$D$14,IF(O$6='Data validation'!$B$12,'Data validation'!$D$12,IF(O$6='Data validation'!$B$13,'Data validation'!$D$13,IF(O$6='Data validation'!$B$11,'Data validation'!$D$11,IF(O$6='Data validation'!$B$10,'Data validation'!$D$10,IF(O$6='Data validation'!$B$9,'Data validation'!$D$9,IF(O$6='Data validation'!$B$8,'Data validation'!$D$8)))))))))))))","v":"--"},0,null,null,null,null,0,{"$f":"IF(V$6='Data validation'!$B$7,'Data validation'!$D$7,IF(V$6='Data validation'!$B$19,'Data validation'!$D$19,IF(V$6='Data validation'!$B$18,'Data validation'!$D$18,IF(V$6='Data validation'!$B$17,'Data validation'!$D$17,IF(V$6='Data validation'!$B$16,'Data validation'!$D$16,IF(V$6='Data validation'!$B$15,'Data validation'!$D$15,IF(V$6='Data validation'!$B$14,'Data validation'!$D$14,IF(V$6='Data validation'!$B$12,'Data validation'!$D$12,IF(V$6='Data validation'!$B$13,'Data validation'!$D$13,IF(V$6='Data validation'!$B$11,'Data validation'!$D$11,IF(V$6='Data validation'!$B$10,'Data validation'!$D$10,IF(V$6='Data validation'!$B$9,'Data validation'!$D$9,IF(V$6='Data validation'!$B$8,'Data validation'!$D$8)))))))))))))","v":"--"},0,null,null,null,null,0,{"$f":"IF(AC$6='Data validation'!$B$7,'Data validation'!$D$7,IF(AC$6='Data validation'!$B$19,'Data validation'!$D$19,IF(AC$6='Data validation'!$B$18,'Data validation'!$D$18,IF(AC$6='Data validation'!$B$17,'Data validation'!$D$17,IF(AC$6='Data validation'!$B$16,'Data validation'!$D$16,IF(AC$6='Data validation'!$B$15,'Data validation'!$D$15,IF(AC$6='Data validation'!$B$14,'Data validation'!$D$14,IF(AC$6='Data validation'!$B$12,'Data validation'!$D$12,IF(AC$6='Data validation'!$B$13,'Data validation'!$D$13,IF(AC$6='Data validation'!$B$11,'Data validation'!$D$11,IF(AC$6='Data validation'!$B$10,'Data validation'!$D$10,IF(AC$6='Data validation'!$B$9,'Data validation'!$D$9,IF(AC$6='Data validation'!$B$8,'Data validation'!$D$8)))))))))))))","v":"--"},0]
[null,null,null,null,null,null,null,null,null,null,null,null,null,null,null,null,0,{"$f":"IF(O$6='Data validation'!$B$7,'Data validation'!$D$7,IF(O$6='Data validation'!$B$19,'Data validation'!$D$19,IF(O$6='Data validation'!$B$18,'Data validation'!$D$18,IF(O$6='Data validation'!$B$17,'Data validation'!$D$17,IF(O$6='Data validation'!$B$16,'Data validation'!$D$16,IF(O$6='Data validation'!$B$15,'Data validation'!$D$15,IF(O$6='Data validation'!$B$14,'Data validation'!$D$14,IF(O$6='Data validation'!$B$12,'Data validation'!$D$12,IF(O$6='Data validation'!$B$13,'Data validation'!$D$13,IF(O$6='Data validation'!$B$11,'Data validation'!$D$11,IF(O$6='Data validation'!$B$10,'Data validation'!$D$10,IF(O$6='Data validation'!$B$9,'Data validation'!$D$9,IF(O$6='Data validation'!$B$8,'Data validation'!$D$8)))))))))))))","v":"--"},0,null,null,null,null,0,{"$f":"IF(V$6='Data validation'!$B$7,'Data validation'!$D$7,IF(V$6='Data validation'!$B$19,'Data validation'!$D$19,IF(V$6='Data validation'!$B$18,'Data validation'!$D$18,IF(V$6='Data validation'!$B$17,'Data validation'!$D$17,IF(V$6='Data validation'!$B$16,'Data validation'!$D$16,IF(V$6='Data validation'!$B$15,'Data validation'!$D$15,IF(V$6='Data validation'!$B$14,'Data validation'!$D$14,IF(V$6='Data validation'!$B$12,'Data validation'!$D$12,IF(V$6='Data validation'!$B$13,'Data validation'!$D$13,IF(V$6='Data validation'!$B$11,'Data validation'!$D$11,IF(V$6='Data validation'!$B$10,'Data validation'!$D$10,IF(V$6='Data validation'!$B$9,'Data validation'!$D$9,IF(V$6='Data validation'!$B$8,'Data validation'!$D$8)))))))))))))","v":"--"},0,null,null,null,null,0,{"$f":"IF(AC$6='Data validation'!$B$7,'Data validation'!$D$7,IF(AC$6='Data validation'!$B$19,'Data validation'!$D$19,IF(AC$6='Data validation'!$B$18,'Data validation'!$D$18,IF(AC$6='Data validation'!$B$17,'Data validation'!$D$17,IF(AC$6='Data validation'!$B$16,'Data validation'!$D$16,IF(AC$6='Data validation'!$B$15,'Data validation'!$D$15,IF(AC$6='Data validation'!$B$14,'Data validation'!$D$14,IF(AC$6='Data validation'!$B$12,'Data validation'!$D$12,IF(AC$6='Data validation'!$B$13,'Data validation'!$D$13,IF(AC$6='Data validation'!$B$11,'Data validation'!$D$11,IF(AC$6='Data validation'!$B$10,'Data validation'!$D$10,IF(AC$6='Data validation'!$B$9,'Data validation'!$D$9,IF(AC$6='Data validation'!$B$8,'Data validation'!$D$8)))))))))))))","v":"--"},0]
[null,null,null,null,null,null,null,null,null,null,null,null,null,null,null,null,0,{"$f":"IF(O$6='Data validation'!$B$7,'Data validation'!$D$7,IF(O$6='Data validation'!$B$19,'Data validation'!$D$19,IF(O$6='Data validation'!$B$18,'Data validation'!$D$18,IF(O$6='Data validation'!$B$17,'Data validation'!$D$17,IF(O$6='Data validation'!$B$16,'Data validation'!$D$16,IF(O$6='Data validation'!$B$15,'Data validation'!$D$15,IF(O$6='Data validation'!$B$14,'Data validation'!$D$14,IF(O$6='Data validation'!$B$12,'Data validation'!$D$12,IF(O$6='Data validation'!$B$13,'Data validation'!$D$13,IF(O$6='Data validation'!$B$11,'Data validation'!$D$11,IF(O$6='Data validation'!$B$10,'Data validation'!$D$10,IF(O$6='Data validation'!$B$9,'Data validation'!$D$9,IF(O$6='Data validation'!$B$8,'Data validation'!$D$8)))))))))))))","v":"--"},0,null,null,null,null,0,{"$f":"IF(V$6='Data validation'!$B$7,'Data validation'!$D$7,IF(V$6='Data validation'!$B$19,'Data validation'!$D$19,IF(V$6='Data validation'!$B$18,'Data validation'!$D$18,IF(V$6='Data validation'!$B$17,'Data validation'!$D$17,IF(V$6='Data validation'!$B$16,'Data validation'!$D$16,IF(V$6='Data validation'!$B$15,'Data validation'!$D$15,IF(V$6='Data validation'!$B$14,'Data validation'!$D$14,IF(V$6='Data validation'!$B$12,'Data validation'!$D$12,IF(V$6='Data validation'!$B$13,'Data validation'!$D$13,IF(V$6='Data validation'!$B$11,'Data validation'!$D$11,IF(V$6='Data validation'!$B$10,'Data validation'!$D$10,IF(V$6='Data validation'!$B$9,'Data validation'!$D$9,IF(V$6='Data validation'!$B$8,'Data validation'!$D$8)))))))))))))","v":"--"},0,null,null,null,null,0,{"$f":"IF(AC$6='Data validation'!$B$7,'Data validation'!$D$7,IF(AC$6='Data validation'!$B$19,'Data validation'!$D$19,IF(AC$6='Data validation'!$B$18,'Data validation'!$D$18,IF(AC$6='Data validation'!$B$17,'Data validation'!$D$17,IF(AC$6='Data validation'!$B$16,'Data validation'!$D$16,IF(AC$6='Data validation'!$B$15,'Data validation'!$D$15,IF(AC$6='Data validation'!$B$14,'Data validation'!$D$14,IF(AC$6='Data validation'!$B$12,'Data validation'!$D$12,IF(AC$6='Data validation'!$B$13,'Data validation'!$D$13,IF(AC$6='Data validation'!$B$11,'Data validation'!$D$11,IF(AC$6='Data validation'!$B$10,'Data validation'!$D$10,IF(AC$6='Data validation'!$B$9,'Data validation'!$D$9,IF(AC$6='Data validation'!$B$8,'Data validation'!$D$8)))))))))))))","v":"--"},0]
[null,null,null,null,null,null,null,null,null,null,null,null,null,null,null,null,0,{"$f":"IF(O$6='Data validation'!$B$7,'Data validation'!$D$7,IF(O$6='Data validation'!$B$19,'Data validation'!$D$19,IF(O$6='Data validation'!$B$18,'Data validation'!$D$18,IF(O$6='Data validation'!$B$17,'Data validation'!$D$17,IF(O$6='Data validation'!$B$16,'Data validation'!$D$16,IF(O$6='Data validation'!$B$15,'Data validation'!$D$15,IF(O$6='Data validation'!$B$14,'Data validation'!$D$14,IF(O$6='Data validation'!$B$12,'Data validation'!$D$12,IF(O$6='Data validation'!$B$13,'Data validation'!$D$13,IF(O$6='Data validation'!$B$11,'Data validation'!$D$11,IF(O$6='Data validation'!$B$10,'Data validation'!$D$10,IF(O$6='Data validation'!$B$9,'Data validation'!$D$9,IF(O$6='Data validation'!$B$8,'Data validation'!$D$8)))))))))))))","v":"--"},0,null,null,null,null,0,{"$f":"IF(V$6='Data validation'!$B$7,'Data validation'!$D$7,IF(V$6='Data validation'!$B$19,'Data validation'!$D$19,IF(V$6='Data validation'!$B$18,'Data validation'!$D$18,IF(V$6='Data validation'!$B$17,'Data validation'!$D$17,IF(V$6='Data validation'!$B$16,'Data validation'!$D$16,IF(V$6='Data validation'!$B$15,'Data validation'!$D$15,IF(V$6='Data validation'!$B$14,'Data validation'!$D$14,IF(V$6='Data validation'!$B$12,'Data validation'!$D$12,IF(V$6='Data validation'!$B$13,'Data validation'!$D$13,IF(V$6='Data validation'!$B$11,'Data validation'!$D$11,IF(V$6='Data validation'!$B$10,'Data validation'!$D$10,IF(V$6='Data validation'!$B$9,'Data validation'!$D$9,IF(V$6='Data validation'!$B$8,'Data validation'!$D$8)))))))))))))","v":"--"},0,null,null,null,null,0,{"$f":"IF(AC$6='Data validation'!$B$7,'Data validation'!$D$7,IF(AC$6='Data validation'!$B$19,'Data validation'!$D$19,IF(AC$6='Data validation'!$B$18,'Data validation'!$D$18,IF(AC$6='Data validation'!$B$17,'Data validation'!$D$17,IF(AC$6='Data validation'!$B$16,'Data validation'!$D$16,IF(AC$6='Data validation'!$B$15,'Data validation'!$D$15,IF(AC$6='Data validation'!$B$14,'Data validation'!$D$14,IF(AC$6='Data validation'!$B$12,'Data validation'!$D$12,IF(AC$6='Data validation'!$B$13,'Data validation'!$D$13,IF(AC$6='Data validation'!$B$11,'Data validation'!$D$11,IF(AC$6='Data validation'!$B$10,'Data validation'!$D$10,IF(AC$6='Data validation'!$B$9,'Data validation'!$D$9,IF(AC$6='Data validation'!$B$8,'Data validation'!$D$8)))))))))))))","v":"--"},0]
[null,null,null,null,null,null,null,null,null,null,null,null,null,null,null,null,0,{"$f":"IF(O$6='Data validation'!$B$7,'Data validation'!$D$7,IF(O$6='Data validation'!$B$19,'Data validation'!$D$19,IF(O$6='Data validation'!$B$18,'Data validation'!$D$18,IF(O$6='Data validation'!$B$17,'Data validation'!$D$17,IF(O$6='Data validation'!$B$16,'Data validation'!$D$16,IF(O$6='Data validation'!$B$15,'Data validation'!$D$15,IF(O$6='Data validation'!$B$14,'Data validation'!$D$14,IF(O$6='Data validation'!$B$12,'Data validation'!$D$12,IF(O$6='Data validation'!$B$13,'Data validation'!$D$13,IF(O$6='Data validation'!$B$11,'Data validation'!$D$11,IF(O$6='Data validation'!$B$10,'Data validation'!$D$10,IF(O$6='Data validation'!$B$9,'Data validation'!$D$9,IF(O$6='Data validation'!$B$8,'Data validation'!$D$8)))))))))))))","v":"--"},0,null,null,null,null,0,{"$f":"IF(V$6='Data validation'!$B$7,'Data validation'!$D$7,IF(V$6='Data validation'!$B$19,'Data validation'!$D$19,IF(V$6='Data validation'!$B$18,'Data validation'!$D$18,IF(V$6='Data validation'!$B$17,'Data validation'!$D$17,IF(V$6='Data validation'!$B$16,'Data validation'!$D$16,IF(V$6='Data validation'!$B$15,'Data validation'!$D$15,IF(V$6='Data validation'!$B$14,'Data validation'!$D$14,IF(V$6='Data validation'!$B$12,'Data validation'!$D$12,IF(V$6='Data validation'!$B$13,'Data validation'!$D$13,IF(V$6='Data validation'!$B$11,'Data validation'!$D$11,IF(V$6='Data validation'!$B$10,'Data validation'!$D$10,IF(V$6='Data validation'!$B$9,'Data validation'!$D$9,IF(V$6='Data validation'!$B$8,'Data validation'!$D$8)))))))))))))","v":"--"},0,null,null,null,null,0,{"$f":"IF(AC$6='Data validation'!$B$7,'Data validation'!$D$7,IF(AC$6='Data validation'!$B$19,'Data validation'!$D$19,IF(AC$6='Data validation'!$B$18,'Data validation'!$D$18,IF(AC$6='Data validation'!$B$17,'Data validation'!$D$17,IF(AC$6='Data validation'!$B$16,'Data validation'!$D$16,IF(AC$6='Data validation'!$B$15,'Data validation'!$D$15,IF(AC$6='Data validation'!$B$14,'Data validation'!$D$14,IF(AC$6='Data validation'!$B$12,'Data validation'!$D$12,IF(AC$6='Data validation'!$B$13,'Data validation'!$D$13,IF(AC$6='Data validation'!$B$11,'Data validation'!$D$11,IF(AC$6='Data validation'!$B$10,'Data validation'!$D$10,IF(AC$6='Data validation'!$B$9,'Data validation'!$D$9,IF(AC$6='Data validation'!$B$8,'Data validation'!$D$8)))))))))))))","v":"--"},0]

{"sheet":"Engines (fuel use)","index":2,"n_rows":72,"n_cols":33,"rows_kept":72,"cut":false,"hidden":false,"merged":[[7,29,7,32],[16,4,16,11],[17,4,17,11],[18,3,18,11],[20,2,20,11],[9,31,10,31],[11,3,11,11],[13,2,13,11],[15,4,15,11],[9,24,10,24],[9,25,10,25],[9,27,10,27],[9,28,10,28],[9,29,10,29],[9,30,10,30],[9,17,10,17],[9,21,10,21],[10,4,10,11],[7,15,7,18],[7,22,7,25],[22,3,23,11],[21,3,21,11],[9,18,10,18],[9,20,10,20],[9,13,10,13],[9,14,10,14],[9,15,10,15],[9,16,10,16],[5,28,5,29],[5,30,5,32],[9,4,9,11],[6,16,6,18],[6,23,6,25],[6,30,6,32],[5,23,5,25],[7,3,7,11],[8,4,8,11],[5,14,5,15],[5,16,5,18],[5,21,5,22],[6,2,6,11],[9,22,10,22],[9,23,10,23],[9,32,10,32],[1,1,1,11],[1,13,1,18],[1,20,1,25],[1,27,1,32],[2,13,3,18],[2,20,3,25],[2,27,3,32],[2,1,2,11],[3,2,4,11]]}
[null,null,null,null,null,null,null,null,null,null,null,{"$f":"Instructions!O4","v":"p-sbap5-33  •  6/6/23"}]
[null,"Engines: by fuel use",null,null,null,null,null,null,null,null,null,null,null,"Engine fuel 1: monthly and 12-month rolling totals",null,null,null,null,null,null,"Engine fuel 2: monthly and 12-month rolling totals",null,null,null,null,null,null,"Engine fuel 3: monthly and 12-month rolling totals"]
[null,"Use this tab to track emissions for engines by the type and amount of fuel purchased or used. ",null,null,null,null,null,null,null,null,null,null,null,"Each month fill in the table below. Complete one table for each fuel type. \nAdd the most recent eligibility value across all engine fuel types and enter in the 'Eligibility' tab.",null,null,null,null,null,null,"Each month fill in the table below. Complete one table for each fuel type. \nAdd the most recent eligibility value across all engine fuel types and enter in the 'Eligibility' tab.",null,null,null,null,null,null,"Each month fill in the table below. Complete one table for each fuel type. \nAdd the most recent eligibility value across all engine fuel types and enter in the 'Eligibility' tab."]
[null,null,"If you enter the amount of fuel purchased or used for an engine this tab, do not enter the hours of operation for the same engine in the 'Engines (hours)' tab. Entering information in both tabs will double count your emissions."]
[]
[null,null,null,null,null,null,null,null,null,null,null,null,null,"Fuel type","Choose one",null,null,null,null,null,"Fuel type","Choose one",null,null,null,null,null,"Fuel type","Choose one"]
[null,"1)","Select your fuel type from the drop-down list. ",null,null,null,null,null,null,null,null,null,null,"Fuel units",{"$f":"IF(O6='Data validation'!$B$25,'Data validation'!$C$25,IF(OR(O6='Data validation'!$B$28,O6='Data validation'!$B$27),'Data validation'!$C$28,IF(O6='Data validation'!$B$26,'Data validation'!$C$26)))","v":"--"},null,null,null,null,null,"Fuel units",{"$f":"IF(V6='Data validation'!$B$25,'Data validation'!$C$25,IF(OR(V6='Data validation'!$B$28,V6='Data validation'!$B$27),'Data validation'!$C$28,IF(V6='Data validation'!$B$26,'Data validation'!$C$26)))","v":"--"},null,null,null,null,null,"Fuel units",{"$f":"IF(AC6='Data validation'!$B$25,'Data validation'!$C$25,IF(OR(AC6='Data validation'!$B$28,AC6='Data validation'!$B$27),'Data validation'!$C$28,IF(AC6='Data validation'!$B$26,'Data validation'!$C$26)))","v":"--"}]
[null,null,"-","Important information about the fuel type will automatically appear. ",null,null,null,null,null,null,null,null,null,"Sulfur limit",{"$f":"IF(O6='Data validation'!$B$25,'Data validation'!$E$25,IF(O6='Data validation'!$B$28,'Data validation'!$E$28,IF(OR(O6='Data validation'!$B$27,O6='Data validation'!$B$26),'Data validation'!$E$27)))","v":"--"},{"$f":"IF(OR(O8='Data validation'!$E$25,O8='Data validation'!$E$27),\" \",\"Track the actual sulfur content of fuel. Go to the 'Sulfur tracking' tab.\")","v":" "},null,null,null,null,"Sulfur limit",{"$f":"IF(V6='Data validation'!$B$25,'Data validation'!$E$25,IF(V6='Data validation'!$B$28,'Data validation'!$E$28,IF(OR(V6='Data validation'!$B$27,V6='Data validation'!$B$26),'Data validation'!$E$27)))","v":"--"},{"$f":"IF(OR(V8='Data validation'!$E$25,V8='Data validation'!$E$27),\" \",\"Track the actual sulfur content of fuel. Go to the 'Sulfur tracking' tab.\")","v":" "},null,null,null,null,"Sulfur limit",{"$f":"IF(AC6='Data validation'!$B$25,'Data validation'!$E$25,IF(AC6='Data validation'!$B$28,'Data validation'!$E$28,IF(OR(AC6='Data validation'!$B$27,AC6='Data validation'!$B$26),'Data validation'!$E$27)))","v":"--"},{"$f":"IF(OR(AC8='Data validation'!$E$25,AC8='Data validation'!$E$27),\" \",\"Track the actual sulfur content of fuel. Go to the 'Sulfur tracking' tab.\")","v":" "}]
[null,null,null,"•","units that your fuel use must be recorded in"]
[null,null,null,"•","maximum allowable sulfur limit",null,null,null,null,null,null,null,null,"Date recorded","Month and year","Amount Purchased or Used","12-month rolling sum","Multiplication Factor","Eligibility value",null,"Date recorded","Month and year","Amount Purchased or Used","12-month rolling sum","Multiplication Factor","Eligibility value",null,"Date recorded","Month and year","Amount Purchased or Used","12-month rolling sum","Multiplication Factor","Eligibility value"]
[null,null,null,"•","if required, reminders to track actual sulfur content of each fuel delivery"]
[null,null,"-","Use additional charts to the right if you use more than one fuel type in your engines. ",null,null,null,null,null,null,null,null,null,"when data is entered","fuel purchase or use",{"$f":"O7","v":"--"},{"$f":"O7","v":"--"},null,"For engine fuel 1",null,"when data is entered","fuel purchase or use",{"$f":"V7","v":"--"},{"$f":"V7","v":"--"},null,"For engine fuel 2",null,"when data is entered","fuel purchase or use",{"$f":"AC7","v":"--"},{"$f":"AC7","v":"--"},null,"For engine fuel 3"]
[null,null,null,null,null,null,null,null,null,null,null,null,null,null,null,null,{"$f":"P13","v":0},{"$f":"IF(O$6='Data validation'!$B$25,'Data validation'!$D$25,IF(O$6='Data validation'!$B$28,'Data validation'!$D$28,IF(O$6='Data validation'!$B$27,'Data validation'!$D$27,IF(O$6='Data validation'!$B$26,'Data validation'!$D$26))))","v":"--"},{"$f":"IFERROR(Q13*R13,0)","v":0},null,null,null,null,{"$f":"W13","v":0},{"$f":"IF(V$6='Data validation'!$B$25,'Data validation'!$D$25,IF(V$6='Data validation'!$B$28,'Data validation'!$D$28,IF(V$6='Data validation'!$B$27,'Data validation'!$D$27,IF(V$6='Data validation'!$B$26,'Data validation'!$D$26))))","v":"--"},{"$f":"IFERROR(X13*Y13,0)","v":0},null,null,null,null,{"$f":"AD13","v":0},{"$f":"IF(AC$6='Data validation'!$B$25,'Data validation'!$D$25,IF(AC$6='Data validation'!$B$28,'Data validation'!$D$28,IF(AC$6='Data validation'!$B$27,'Data validation'!$D$27,IF(AC$6='Data validation'!$B$26,'Data validation'!$D$26))))","v":"--"},{"$f":"IFERROR(AE13*AF13,0)","v":0}]
[null,"2)","By the last day of each month, record your fuel use.",null,null,null,null,null,null,null,null,null,null,null,null,null,{"$f":"SUM(P13:P14)","v":0},{"$f":"IF(O$6='Data validation'!$B$25,'Data validation'!$D$25,IF(O$6='Data validation'!$B$28,'Data validation'!$D$28,IF(O$6='Data validation'!$B$27,'Data validation'!$D$27,IF(O$6='Data validation'!$B$26,'Data validation'!$D$26))))","v":"--"},{"$f":"IFERROR(Q14*R14,0)","v":0},null,null,null,null,{"$f":"SUM(W13:W14)","v":0},{"$f":"IF(V$6='Data validation'!$B$25,'Data validation'!$D$25,IF(V$6='Data validation'!$B$28,'Data validation'!$D$28,IF(V$6='Data validation'!$B$27,'Data validation'!$D$27,IF(V$6='Data validation'!$B$26,'Data validation'!$D$26))))","v":"--"},{"$f":"IFERROR(X14*Y14,0)","v":0},null,null,null,null,{"$f":"SUM(AD13:AD14)","v":0},{"$f":"IF(AC$6='Data validation'!$B$25,'Data validation'!$D$25,IF(AC$6='Data validation'!$B$28,'Data validation'!$D$28,IF(AC$6='Data validation'!$B$27,'Data validation'!$D$27,IF(AC$6='Data validation'!$B$26,'Data validation'!$D$26))))","v":"--"},{"$f":"IFERROR(AE14*AF14,0)","v":0}]
[null,null,"-","Enter your information in the blue boxes.",null,null,null,null,null,null,null,null,null,null,null,null,{"$f":"SUM(P13:P15)","v":0},{"$f":"IF(O$6='Data validation'!$B$25,'Data validation'!$D$25,IF(O$6='Data validation'!$B$28,'Data validation'!$D$28,IF(O$6='Data validation'!$B$27,'Data validation'!$D$27,IF(O$6='Data validation'!$B$26,'Data validation'!$D$26))))","v":"--"},0,null,null,null,null,{"$f":"SUM(W13:W15)","v":0},{"$f":"IF(V$6='Data validation'!$B$25,'Data validation'!$D$25,IF(V$6='Data validation'!$B$28,'Data validation'!$D$28,IF(V$6='Data validation'!$B$27,'Data validation'!$D$27,IF(V$6='Data validation'!$B$26,'Data validation'!$D$26))))","v":"--"},0,null,null,null,null,{"$f":"SUM(AD13:AD15)","v":0},{"$f":"IF(AC$6='Data validation'!$B$25,'Data validation'!$D$25,IF(AC$6='Data validation'!$B$28,'Data validation'!$D$28,IF(AC$6='Data validation'!$B$27,'Data validation'!$D$27,IF(AC$6='Data validation'!$B$26,'Data validation'!$D$26))))","v":"--"},0]
[null,null,null,"•","date you are entering the information",null,null,null,null,null,null,null,null,null,null,null,{"$f":"SUM(P13:P16)","v":0},{"$f":"IF(O$6='Data validation'!$B$25,'Data validation'!$D$25,IF(O$6='Data validation'!$B$28,'Data validation'!$D$28,IF(O$6='Data validation'!$B$27,'Data validation'!$D$27,IF(O$6='Data validation'!$B$26,'Data validation'!$D$26))))","v":"--"},0,null,null,null,null,{"$f":"SUM(W13:W16)","v":0},{"$f":"IF(V$6='Data validation'!$B$25,'Data validation'!$D$25,IF(V$6='Data validation'!$B$28,'Data validation'!$D$28,IF(V$6='Data validation'!$B$27,'Data validation'!$D$27,IF(V$6='Data validation'!$B$26,'Data validation'!$D$26))))","v":"--"},0,null,null,null,null,{"$f":"SUM(AD13:AD16)","v":0},{"$f":"IF(AC$6='Data validation'!$B$25,'Data validation'!$D$25,IF(AC$6='Data validation'!$B$28,'Data validation'!$D$28,IF(AC$6='Data validation'!$B$27,'Data validation'!$D$27,IF(AC$6='Data validation'!$B$26,'Data validation'!$D$26))))","v":"--"},0]
[null,null,null,"•","month and year that the record is for",null,null,null,null,null,null,null,null,null,null,null,{"$f":"SUM(P13:P17)","v":0},{"$f":"IF(O$6='Data validation'!$B$25,'Data validation'!$D$25,IF(O$6='Data validation'!$B$28,'Data validation'!$D$28,IF(O$6='Data validation'!$B$27,'Data validation'!$D$27,IF(O$6='Data validation'!$B$26,'Data validation'!$D$26))))","v":"--"},0,null,null,null,null,{"$f":"SUM(W13:W17)","v":0},{"$f":"IF(V$6='Data validation'!$B$25,'Data validation'!$D$25,IF(V$6='Data validation'!$B$28,'Data validation'!$D$28,IF(V$6='Data validation'!$B$27,'Data validation'!$D$27,IF(V$6='Data validation'!$B$26,'Data validation'!$D$26))))","v":"--"},0,null,null,null,null,{"$f":"SUM(AD13:AD17)","v":0},{"$f":"IF(AC$6='Data validation'!$B$25,'Data validation'!$D$25,IF(AC$6='Data validation'!$B$28,'Data validation'!$D$28,IF(AC$6='Data validation'!$B$27,'Data validation'!$D$27,IF(AC$6='Data validation'!$B$26,'Data validation'!$D$26))))","v":"--"},0]
[null,null,null,"•","quantity of fuel purchased or used (whichever was stated in your Option C application). ",null,null,null,null,null,null,null,null,null,null,null,{"$f":"SUM(P13:P18)","v":0},{"$f":"IF(O$6='Data validation'!$B$25,'Data validation'!$D$25,IF(O$6='Data validation'!$B$28,'Data validation'!$D$28,IF(O$6='Data validation'!$B$27,'Data validation'!$D$27,IF(O$6='Data validation'!$B$26,'Data validation'!$D$26))))","v":"--"},0,null,null,null,null,{"$f":"SUM(W13:W18)","v":0},{"$f":"IF(V$6='Data validation'!$B$25,'Data validation'!$D$25,IF(V$6='Data validation'!$B$28,'Data validation'!$D$28,IF(V$6='Data validation'!$B$27,'Data validation'!$D$27,IF(V$6='Data validation'!$B$26,'Data validation'!$D$26))))","v":"--"},0,null,null,null,null,{"$f":"SUM(AD13:AD18)","v":0},{"$f":"IF(AC$6='Data validation'!$B$25,'Data validation'!$D$25,IF(AC$6='Data validation'!$B$28,'Data validation'!$D$28,IF(AC$6='Data validation'!$B$27,'Data validation'!$D$27,IF(AC$6='Data validation'!$B$26,'Data validation'!$D$26))))","v":"--"},0]
[null,null,"-","If no fuel is used, enter '0' for amount purchased or used. Do not leave blank.",null,null,null,null,null,null,null,null,null,null,null,null,{"$f":"SUM(P13:P19)","v":0},{"$f":"IF(O$6='Data validation'!$B$25,'Data validation'!$D$25,IF(O$6='Data validation'!$B$28,'Data validation'!$D$28,IF(O$6='Data validation'!$B$27,'Data validation'!$D$27,IF(O$6='Data validation'!$B$26,'Data validation'!$D$26))))","v":"--"},0,null,null,null,null,{"$f":"SUM(W13:W19)","v":0},{"$f":"IF(V$6='Data validation'!$B$25,'Data validation'!$D$25,IF(V$6='Data validation'!$B$28,'Data validation'!$D$28,IF(V$6='Data validation'!$B$27,'Data validation'!$D$27,IF(V$6='Data validation'!$B$26,'Data validation'!$D$26))))","v":"--"},0,null,null,null,null,{"$f":"SUM(AD13:AD19)","v":0},{"$f":"IF(AC$6='Data validation'!$B$25,'Data validation'!$D$25,IF(AC$6='Data validation'!$B$28,'Data validation'!$D$28,IF(AC$6='Data validation'!$B$27,'Data validation'!$D$27,IF(AC$6='Data validation'!$B$26,'Data validation'!$D$26))))","v":"--"},0]
[null,null,null,null,null,null,null,null,null,null,null,null,null,null,null,null,{"$f":"SUM(P13:P20)","v":0},{"$f":"IF(O$6='Data validation'!$B$25,'Data validation'!$D$25,IF(O$6='Data validation'!$B$28,'Data validation'!$D$28,IF(O$6='Data validation'!$B$27,'Data validation'!$D$27,IF(O$6='Data validation'!$B$26,'Data validation'!$D$26))))","v":"--"},0,null,null,null,null,{"$f":"SUM(W13:W20)","v":0},{"$f":"IF(V$6='Data validation'!$B$25,'Data validation'!$D$25,IF(V$6='Data validation'!$B$28,'Data validation'!$D$28,IF(V$6='Data validation'!$B$27,'Data validation'!$D$27,IF(V$6='Data validation'!$B$26,'Data validation'!$D$26))))","v":"--"},0,null,null,null,null,{"$f":"SUM(AD13:AD20)","v":0},{"$f":"IF(AC$6='Data validation'!$B$25,'Data validation'!$D$25,IF(AC$6='Data validation'!$B$28,'Data validation'!$D$28,IF(AC$6='Data validation'!$B$27,'Data validation'!$D$27,IF(AC$6='Data validation'!$B$26,'Data validation'!$D$26))))","v":"--"},0]
[null,"3)","By the last day of each month, enter the most recent eligibility value in the 'Eligibility' tab. ",null,null,null,null,null,null,null,null,null,null,null,null,null,{"$f":"SUM(P13:P21)","v":0},{"$f":"IF(O$6='Data validation'!$B$25,'Data validation'!$D$25,IF(O$6='Data validation'!$B$28,'Data validation'!$D$28,IF(O$6='Data validation'!$B$27,'Data validation'!$D$27,IF(O$6='Data validation'!$B$26,'Data validation'!$D$26))))","v":"--"},0,null,null,null,null,{"$f":"SUM(W13:W21)","v":0},{"$f":"IF(V$6='Data validation'!$B$25,'Data validation'!$D$25,IF(V$6='Data validation'!$B$28,'Data validation'!$D$28,IF(V$6='Data validation'!$B$27,'Data validation'!$D$27,IF(V$6='Data validation'!$B$26,'Data validation'!$D$26))))","v":"--"},0,null,null,null,null,{"$f":"SUM(AD13:AD21)","v":0},{"$f":"IF(AC$6='Data validation'!$B$25,'Data validation'!$D$25,IF(AC$6='Data validation'!$B$28,'Data validation'!$D$28,IF(AC$6='Data validation'!$B$27,'Data validation'!$D$27,IF(AC$6='Data validation'!$B$26,'Data validation'!$D$26))))","v":"--"},0]
[null,null,"-","Sum the eligibility values for all of the engine fuels and enter on the 'Eligibility' tab.",null,null,null,null,null,null,null,null,null,null,null,null,{"$f":"SUM(P13:P22)","v":0},{"$f":"IF(O$6='Data validation'!$B$25,'Data validation'!$D$25,IF(O$6='Data validation'!$B$28,'Data validation'!$D$28,IF(O$6='Data validation'!$B$27,'Data validation'!$D$27,IF(O$6='Data validation'!$B$26,'Data validation'!$D$26))))","v":"--"},0,null,null,null,null,{"$f":"SUM(W13:W22)","v":0},{"$f":"IF(V$6='Data validation'!$B$25,'Data validation'!$D$25,IF(V$6='Data validation'!$B$28,'Data validation'!$D$28,IF(V$6='Data validation'!$B$27,'Data validation'!$D$27,IF(V$6='Data validation'!$B$26,'Data validation'!$D$26))))","v":"--"},0,null,null,null,null,{"$f":"SUM(AD13:AD22)","v":0},{"$f":"IF(AC$6='Data validation'!$B$25,'Data validation'!$D$25,IF(AC$6='Data validation'!$B$28,'Data validation'!$D$28,IF(AC$6='Data validation'!$B$27,'Data validation'!$D$27,IF(AC$6='Data validation'!$B$26,'Data validation'!$D$26))))","v":"--"},0]
[null,null,"-","If your business qualifies for reduced recordkeeping, the eligibility number may be calculated on an annual basis, no later than April 1st of the following year. See more information on the 'Eligibility' tab.",null,null,null,null,null,null,null,null,null,null,null,null,{"$f":"SUM(P13:P23)","v":0},{"$f":"IF(O$6='Data validation'!$B$25,'Data validation'!$D$25,IF(O$6='Data validation'!$B$28,'Data validation'!$D$28,IF(O$6='Data validation'!$B$27,'Data validation'!$D$27,IF(O$6='Data validation'!$B$26,'Data validation'!$D$26))))","v":"--"},0,null,null,null,null,{"$f":"SUM(W13:W23)","v":0},{"$f":"IF(V$6='Data validation'!$B$25,'Data validation'!$D$25,IF(V$6='Data validation'!$B$28,'Data validation'!$D$28,IF(V$6='Data validation'!$B$27,'Data validation'!$D$27,IF(V$6='Data validation'!$B$26,'Data validation'!$D$26))))","v":"--"},0,null,null,null,null,{"$f":"SUM(AD13:AD23)","v":0},{"$f":"IF(AC$6='Data validation'!$B$25,'Data validation'!$D$25,IF(AC$6='Data validation'!$B$28,'Data validation'!$D$28,IF(AC$6='Data validation'!$B$27,'Data validation'!$D$27,IF(AC$6='Data validation'!$B$26,'Data validation'!$D$26))))","v":"--"},0]
[null,null,null,null,null,null,null,null,null,null,null,null,null,null,null,null,{"$f":"SUM(P13:P24)","v":0},{"$f":"IF(O$6='Data validation'!$B$25,'Data validation'!$D$25,IF(O$6='Data validation'!$B$28,'Data validation'!$D$28,IF(O$6='Data validation'!$B$27,'Data validation'!$D$27,IF(O$6='Data validation'!$B$26,'Data validation'!$D$26))))","v":"--"},0,null,null,null,null,{"$f":"SUM(W13:W24)","v":0},{"$f":"IF(V$6='Data validation'!$B$25,'Data validation'!$D$25,IF(V$6='Data validation'!$B$28,'Data validation'!$D$28,IF(V$6='Data validation'!$B$27,'Data validation'!$D$27,IF(V$6='Data validation'!$B$26,'Data validation'!$D$26))))","v":"--"},0,null,null,null,null,{"$f":"SUM(AD13:AD24)","v":0},{"$f":"IF(AC$6='Data validation'!$B$25,'Data validation'!$D$25,IF(AC$6='Data validation'!$B$28,'Data validation'!$D$28,IF(AC$6='Data validation'!$B$27,'Data validation'!$D$27,IF(AC$6='Data validation'!$B$26,'Data validation'!$D$26))))","v":"--"},0]
[null,null,null,null,null,null,null,null,null,null,null,null,null,null,null,null,{"$f":"SUM(P14:P25)","v":0},{"$f":"IF(O$6='Data validation'!$B$25,'Data validation'!$D$25,IF(O$6='Data validation'!$B$28,'Data validation'!$D$28,IF(O$6='Data validation'!$B$27,'Data validation'!$D$27,IF(O$6='Data validation'!$B$26,'Data validation'!$D$26))))","v":"--"},0,null,null,null,null,{"$f":"SUM(W14:W25)","v":0},{"$f":"IF(V$6='Data validation'!$B$25,'Data validation'!$D$25,IF(V$6='Data validation'!$B$28,'Data validation'!$D$28,IF(V$6='Data validation'!$B$27,'Data validation'!$D$27,IF(V$6='Data validation'!$B$26,'Data validation'!$D$26))))","v":"--"},0,null,null,null,null,{"$f":"SUM(AD14:AD25)","v":0},{"$f":"IF(AC$6='Data validation'!$B$25,'Data validation'!$D$25,IF(AC$6='Data validation'!$B$28,'Data validation'!$D$28,IF(AC$6='Data validation'!$B$27,'Data validation'!$D$27,IF(AC$6='Data validation'!$B$26,'Data validation'!$D$26))))","v":"--"},0]
[null,null,null,null,null,null,null,null,null,null,null,null,null,null,null,null,0,{"$f":"IF(O$6='Data validation'!$B$25,'Data validation'!$D$25,IF(O$6='Data validation'!$B$28,'Data validation'!$D$28,IF(O$6='Data validation'!$B$27,'Data validation'!$D$27,IF(O$6='Data validation'!$B$26,'Data validation'!$D$26))))","v":"--"},0,null,null,null,null,0,{"$f":"IF(V$6='Data validation'!$B$25,'Data validation'!$D$25,IF(V$6='Data validation'!$B$28,'Data validation'!$D$28,IF(V$6='Data validation'!$B$27,'Data validation'!$D$27,IF(V$6='Data validation'!$B$26,'Data validation'!$D$26))))","v":"--"},0,null,null,null,null,0,{"$f":"IF(AC$6='Data validation'!$B$25,'Data validation'!$D$25,IF(AC$6='Data validation'!$B$28,'Data validation'!$D$28,IF(AC$6='Data validation'!$B$27,'Data validation'!$D$27,IF(AC$6='Data validation'!$B$26,'Data validation'!$D$26))))","v":"--"},0]
[null,null,null,null,null,null,null,null,null,null,null,null,null,null,null,null,0,{"$f":"IF(O$6='Data validation'!$B$25,'Data validation'!$D$25,IF(O$6='Data validation'!$B$28,'Data validation'!$D$28,IF(O$6='Data validation'!$B$27,'Data validation'!$D$27,IF(O$6='Data validation'!$B$26,'Data validation'!$D$26))))","v":"--"},0,null,null,null,null,0,{"$f":"IF(V$6='Data validation'!$B$25,'Data validation'!$D$25,IF(V$6='Data validation'!$B$28,'Data validation'!$D$28,IF(V$6='Data validation'!$B$27,'Data validation'!$D$27,IF(V$6='Data validation'!$B$26,'Data validation'!$D$26))))","v":"--"},0,null,null,null,null,0,{"$f":"IF(AC$6='Data validation'!$B$25,'Data validation'!$D$25,IF(AC$6='Data validation'!$B$28,'Data validation'!$D$28,IF(AC$6='Data validation'!$B$27,'Data validation'!$D$27,IF(AC$6='Data validation'!$B$26,'Data validation'!$D$26))))","v":"--"},0]
[null,null,null,null,null,null,null,null,null,null,null,null,null,null,null,null,0,{"$f":"IF(O$6='Data validation'!$B$25,'Data validation'!$D$25,IF(O$6='Data validation'!$B$28,'Data validation'!$D$28,IF(O$6='Data validation'!$B$27,'Data validation'!$D$27,IF(O$6='Data validation'!$B$26,'Data validation'!$D$26))))","v":"--"},0,null,null,null,null,0,{"$f":"IF(V$6='Data validation'!$B$25,'Data validation'!$D$25,IF(V$6='Data validation'!$B$28,'Data validation'!$D$28,IF(V$6='Data validation'!$B$27,'Data validation'!$D$27,IF(V$6='Data validation'!$B$26,'Data validation'!$D$26))))","v":"--"},0,null,null,null,null,0,{"$f":"IF(AC$6='Data validation'!$B$25,'Data validation'!$D$25,IF(AC$6='Data validation'!$B$28,'Data validation'!$D$28,IF(AC$6='Data validation'!$B$27,'Data validation'!$D$27,IF(AC$6='Data validation'!$B$26,'Data validation'!$D$26))))","v":"--"},0]
[null,null,null,null,null,null,null,null,null,null,null,null,null,null,null,null,0,{"$f":"IF(O$6='Data validation'!$B$25,'Data validation'!$D$25,IF(O$6='Data validation'!$B$28,'Data validation'!$D$28,IF(O$6='Data validation'!$B$27,'Data validation'!$D$27,IF(O$6='Data validation'!$B$26,'Data validation'!$D$26))))","v":"--"},0,null,null,null,null,0,{"$f":"IF(V$6='Data validation'!$B$25,'Data validation'!$D$25,IF(V$6='Data validation'!$B$28,'Data validation'!$D$28,IF(V$6='Data validation'!$B$27,'Data validation'!$D$27,IF(V$6='Data validation'!$B$26,'Data validation'!$D$26))))","v":"--"},0,null,null,null,null,0,{"$f":"IF(AC$6='Data validation'!$B$25,'Data validation'!$D$25,IF(AC$6='Data validation'!$B$28,'Data validation'!$D$28,IF(AC$6='Data validation'!$B$27,'Data validation'!$D$27,IF(AC$6='Data validation'!$B$26,'Data validation'!$D$26))))","v":"--"},0]
[null,null,null,null,null,null,null,null,null,null,null,null,null,null,null,null,0,{"$f":"IF(O$6='Data validation'!$B$25,'Data validation'!$D$25,IF(O$6='Data validation'!$B$28,'Data validation'!$D$28,IF(O$6='Data validation'!$B$27,'Data validation'!$D$27,IF(O$6='Data validation'!$B$26,'Data validation'!$D$26))))","v":"--"},0,null,null,null,null,0,{"$f":"IF(V$6='Data validation'!$B$25,'Data validation'!$D$25,IF(V$6='Data validation'!$B$28,'Data validation'!$D$28,IF(V$6='Data validation'!$B$27,'Data validation'!$D$27,IF(V$6='Data validation'!$B$26,'Data validation'!$D$26))))","v":"--"},0,null,null,null,null,0,{"$f":"IF(AC$6='Data validation'!$B$25,'Data validation'!$D$25,IF(AC$6='Data validation'!$B$28,'Data validation'!$D$28,IF(AC$6='Data validation'!$B$27,'Data validation'!$D$27,IF(AC$6='Data validation'!$B$26,'Data validation'!$D$26))))","v":"--"},0]
[null,null,null,null,null,null,null,null,null,null,null,null,null,null,null,null,0,{"$f":"IF(O$6='Data validation'!$B$25,'Data validation'!$D$25,IF(O$6='Data validation'!$B$28,'Data validation'!$D$28,IF(O$6='Data validation'!$B$27,'Data validation'!$D$27,IF(O$6='Data validation'!$B$26,'Data validation'!$D$26))))","v":"--"},0,null,null,null,null,0,{"$f":"IF(V$6='Data validation'!$B$25,'Data validation'!$D$25,IF(V$6='Data validation'!$B$28,'Data validation'!$D$28,IF(V$6='Data validation'!$B$27,'Data validation'!$D$27,IF(V$6='Data validation'!$B$26,'Data validation'!$D$26))))","v":"--"},0,null,null,null,null,0,{"$f":"IF(AC$6='Data validation'!$B$25,'Data validation'!$D$25,IF(AC$6='Data validation'!$B$28,'Data validation'!$D$28,IF(AC$6='Data validation'!$B$27,'Data validation'!$D$27,IF(AC$6='Data validation'!$B$26,'Data validation'!$D$26))))","v":"--"},0]
[null,null,null,null,null,null,null,null,null,null,null,null,null,null,null,null,0,{"$f":"IF(O$6='Data validation'!$B$25,'Data validation'!$D$25,IF(O$6='Data validation'!$B$28,'Data validation'!$D$28,IF(O$6='Data validation'!$B$27,'Data validation'!$D$27,IF(O$6='Data validation'!$B$26,'Data validation'!$D$26))))","v":"--"},0,null,null,null,null,0,{"$f":"IF(V$6='Data validation'!$B$25,'Data validation'!$D$25,IF(V$6='Data validation'!$B$28,'Data validation'!$D$28,IF(V$6='Data validation'!$B$27,'Data validation'!$D$27,IF(V$6='Data validation'!$B$26,'Data validation'!$D$26))))","v":"--"},0,null,null,null,null,0,{"$f":"IF(AC$6='Data validation'!$B$25,'Data validation'!$D$25,IF(AC$6='Data validation'!$B$28,'Data validation'!$D$28,IF(AC$6='Data validation'!$B$27,'Data validation'!$D$27,IF(AC$6='Data validation'!$B$26,'Data validation'!$D$26))))","v":"--"},0]
[null,null,null,null,null,null,null,null,null,null,null,null,null,null,null,null,0,{"$f":"IF(O$6='Data validation'!$B$25,'Data validation'!$D$25,IF(O$6='Data validation'!$B$28,'Data validation'!$D$28,IF(O$6='Data validation'!$B$27,'Data validation'!$D$27,IF(O$6='Data validation'!$B$26,'Data validation'!$D$26))))","v":"--"},0,null,null,null,null,0,{"$f":"IF(V$6='Data validation'!$B$25,'Data validation'!$D$25,IF(V$6='Data validation'!$B$28,'Data validation'!$D$28,IF(V$6='Data validation'!$B$27,'Data validation'!$D$27,IF(V$6='Data validation'!$B$26,'Data validation'!$D$26))))","v":"--"},0,null,null,null,null,0,{"$f":"IF(AC$6='Data validation'!$B$25,'Data validation'!$D$25,IF(AC$6='Data validation'!$B$28,'Data validation'!$D$28,IF(AC$6='Data validation'!$B$27,'Data validation'!$D$27,IF(AC$6='Data validation'!$B$26,'Data validation'!$D$26))))","v":"--"},0]
[null,null,null,null,null,null,null,null,null,null,null,null,null,null,null,null,0,{"$f":"IF(O$6='Data validation'!$B$25,'Data validation'!$D$25,IF(O$6='Data validation'!$B$28,'Data validation'!$D$28,IF(O$6='Data validation'!$B$27,'Data validation'!$D$27,IF(O$6='Data validation'!$B$26,'Data validation'!$D$26))))","v":"--"},0,null,null,null,null,0,{"$f":"IF(V$6='Data validation'!$B$25,'Data validation'!$D$25,IF(V$6='Data validation'!$B$28,'Data validation'!$D$28,IF(V$6='Data validation'!$B$27,'Data validation'!$D$27,IF(V$6='Data validation'!$B$26,'Data validation'!$D$26))))","v":"--"},0,null,null,null,null,0,{"$f":"IF(AC$6='Data validation'!$B$25,'Data validation'!$D$25,IF(AC$6='Data validation'!$B$28,'Data validation'!$D$28,IF(AC$6='Data validation'!$B$27,'Data validation'!$D$27,IF(AC$6='Data validation'!$B$26,'Data validation'!$D$26))))","v":"--"},0]
[null,null,null,null,null,null,null,null,null,null,null,null,null,null,null,null,0,{"$f":"IF(O$6='Data validation'!$B$25,'Data validation'!$D$25,IF(O$6='Data validation'!$B$28,'Data validation'!$D$28,IF(O$6='Data validation'!$B$27,'Data validation'!$D$27,IF(O$6='Data validation'!$B$26,'Data validation'!$D$26))))","v":"--"},0,null,null,null,null,0,{"$f":"IF(V$6='Data validation'!$B$25,'Data validation'!$D$25,IF(V$6='Data validation'!$B$28,'Data validation'!$D$28,IF(V$6='Data validation'!$B$27,'Data validation'!$D$27,IF(V$6='Data validation'!$B$26,'Data validation'!$D$26))))","v":"--"},0,null,null,null,null,0,{"$f":"IF(AC$6='Data validation'!$B$25,'Data validation'!$D$25,IF(AC$6='Data validation'!$B$28,'Data validation'!$D$28,IF(AC$6='Data validation'!$B$27,'Data validation'!$D$27,IF(AC$6='Data validation'!$B$26,'Data validation'!$D$26))))","v":"--"},0]
[null,null,null,null,null,null,null,null,null,null,null,null,null,null,null,null,0,{"$f":"IF(O$6='Data validation'!$B$25,'Data validation'!$D$25,IF(O$6='Data validation'!$B$28,'Data validation'!$D$28,IF(O$6='Data validation'!$B$27,'Data validation'!$D$27,IF(O$6='Data validation'!$B$26,'Data validation'!$D$26))))","v":"--"},0,null,null,null,null,0,{"$f":"IF(V$6='Data validation'!$B$25,'Data validation'!$D$25,IF(V$6='Data validation'!$B$28,'Data validation'!$D$28,IF(V$6='Data validation'!$B$27,'Data validation'!$D$27,IF(V$6='Data validation'!$B$26,'Data validation'!$D$26))))","v":"--"},0,null,null,null,null,0,{"$f":"IF(AC$6='Data validation'!$B$25,'Data validation'!$D$25,IF(AC$6='Data validation'!$B$28,'Data validation'!$D$28,IF(AC$6='Data validation'!$B$27,'Data validation'!$D$27,IF(AC$6='Data validation'!$B$26,'Data validation'!$D$26))))","v":"--"},0]
[null,null,null,null,null,null,null,null,null,null,null,null,null,null,null,null,0,{"$f":"IF(O$6='Data validation'!$B$25,'Data validation'!$D$25,IF(O$6='Data validation'!$B$28,'Data validation'!$D$28,IF(O$6='Data validation'!$B$27,'Data validation'!$D$27,IF(O$6='Data validation'!$B$26,'Data validation'!$D$26))))","v":"--"},0,null,null,null,null,0,{"$f":"IF(V$6='Data validation'!$B$25,'Data validation'!$D$25,IF(V$6='Data validation'!$B$28,'Data validation'!$D$28,IF(V$6='Data validation'!$B$27,'Data validation'!$D$27,IF(V$6='Data validation'!$B$26,'Data validation'!$D$26))))","v":"--"},0,null,null,null,null,0,{"$f":"IF(AC$6='Data validation'!$B$25,'Data validation'!$D$25,IF(AC$6='Data validation'!$B$28,'Data validation'!$D$28,IF(AC$6='Data validation'!$B$27,'Data validation'!$D$27,IF(AC$6='Data validation'!$B$26,'Data validation'!$D$26))))","v":"--"},0]
[null,null,null,null,null,null,null,null,null,null,null,null,null,null,null,null,0,{"$f":"IF(O$6='Data validation'!$B$25,'Data validation'!$D$25,IF(O$6='Data validation'!$B$28,'Data validation'!$D$28,IF(O$6='Data validation'!$B$27,'Data validation'!$D$27,IF(O$6='Data validation'!$B$26,'Data validation'!$D$26))))","v":"--"},0,null,null,null,null,0,{"$f":"IF(V$6='Data validation'!$B$25,'Data validation'!$D$25,IF(V$6='Data validation'!$B$28,'Data validation'!$D$28,IF(V$6='Data validation'!$B$27,'Data validation'!$D$27,IF(V$6='Data validation'!$B$26,'Data validation'!$D$26))))","v":"--"},0,null,null,null,null,0,{"$f":"IF(AC$6='Data validation'!$B$25,'Data validation'!$D$25,IF(AC$6='Data validation'!$B$28,'Data validation'!$D$28,IF(AC$6='Data validation'!$B$27,'Data validation'!$D$27,IF(AC$6='Data validation'!$B$26,'Data validation'!$D$26))))","v":"--"},0]
[null,null,null,null,null,null,null,null,null,null,null,null,null,null,null,null,0,{"$f":"IF(O$6='Data validation'!$B$25,'Data validation'!$D$25,IF(O$6='Data validation'!$B$28,'Data validation'!$D$28,IF(O$6='Data validation'!$B$27,'Data validation'!$D$27,IF(O$6='Data validation'!$B$26,'Data validation'!$D$26))))","v":"--"},0,null,null,null,null,0,{"$f":"IF(V$6='Data validation'!$B$25,'Data validation'!$D$25,IF(V$6='Data validation'!$B$28,'Data validation'!$D$28,IF(V$6='Data validation'!$B$27,'Data validation'!$D$27,IF(V$6='Data validation'!$B$26,'Data validation'!$D$26))))","v":"--"},0,null,null,null,null,0,{"$f":"IF(AC$6='Data validation'!$B$25,'Data validation'!$D$25,IF(AC$6='Data validation'!$B$28,'Data validation'!$D$28,IF(AC$6='Data validation'!$B$27,'Data validation'!$D$27,IF(AC$6='Data validation'!$B$26,'Data validation'!$D$26))))","v":"--"},0]
[null,null,null,null,null,null,null,null,null,null,null,null,null,null,null,null,0,{"$f":"IF(O$6='Data validation'!$B$25,'Data validation'!$D$25,IF(O$6='Data validation'!$B$28,'Data validation'!$D$28,IF(O$6='Data validation'!$B$27,'Data validation'!$D$27,IF(O$6='Data validation'!$B$26,'Data validation'!$D$26))))","v":"--"},0,null,null,null,null,0,{"$f":"IF(V$6='Data validation'!$B$25,'Data validation'!$D$25,IF(V$6='Data validation'!$B$28,'Data validation'!$D$28,IF(V$6='Data validation'!$B$27,'Data validation'!$D$27,IF(V$6='Data validation'!$B$26,'Data validation'!$D$26))))","v":"--"},0,null,null,null,null,0,{"$f":"IF(AC$6='Data validation'!$B$25,'Data validation'!$D$25,IF(AC$6='Data validation'!$B$28,'Data validation'!$D$28,IF(AC$6='Data validation'!$B$27,'Data validation'!$D$27,IF(AC$6='Data validation'!$B$26,'Data validation'!$D$26))))","v":"--"},0]
[null,null,null,null,null,null,null,null,null,null,null,null,null,null,null,null,0,{"$f":"IF(O$6='Data validation'!$B$25,'Data validation'!$D$25,IF(O$6='Data validation'!$B$28,'Data validation'!$D$28,IF(O$6='Data validation'!$B$27,'Data validation'!$D$27,IF(O$6='Data validation'!$B$26,'Data validation'!$D$26))))","v":"--"},0,null,null,null,null,0,{"$f":"IF(V$6='Data validation'!$B$25,'Data validation'!$D$25,IF(V$6='Data validation'!$B$28,'Data validation'!$D$28,IF(V$6='Data validation'!$B$27,'Data validation'!$D$27,IF(V$6='Data validation'!$B$26,'Data validation'!$D$26))))","v":"--"},0,null,null,null,null,0,{"$f":"IF(AC$6='Data validation'!$B$25,'Data validation'!$D$25,IF(AC$6='Data validation'!$B$28,'Data validation'!$D$28,IF(AC$6='Data validation'!$B$27,'Data validation'!$D$27,IF(AC$6='Data validation'!$B$26,'Data validation'!$D$26))))","v":"--"},0]
[null,null,null,null,null,null,null,null,null,null,null,null,null,null,null,null,0,{"$f":"IF(O$6='Data validation'!$B$25,'Data validation'!$D$25,IF(O$6='Data validation'!$B$28,'Data validation'!$D$28,IF(O$6='Data validation'!$B$27,'Data validation'!$D$27,IF(O$6='Data validation'!$B$26,'Data validation'!$D$26))))","v":"--"},0,null,null,null,null,0,{"$f":"IF(V$6='Data validation'!$B$25,'Data validation'!$D$25,IF(V$6='Data validation'!$B$28,'Data validation'!$D$28,IF(V$6='Data validation'!$B$27,'Data validation'!$D$27,IF(V$6='Data validation'!$B$26,'Data validation'!$D$26))))","v":"--"},0,null,null,null,null,0,{"$f":"IF(AC$6='Data validation'!$B$25,'Data validation'!$D$25,IF(AC$6='Data validation'!$B$28,'Data validation'!$D$28,IF(AC$6='Data validation'!$B$27,'Data validation'!$D$27,IF(AC$6='Data validation'!$B$26,'Data validation'!$D$26))))","v":"--"},0]
[null,null,null,null,null,null,null,null,null,null,null,null,null,null,null,null,0,{"$f":"IF(O$6='Data validation'!$B$25,'Data validation'!$D$25,IF(O$6='Data validation'!$B$28,'Data validation'!$D$28,IF(O$6='Data validation'!$B$27,'Data validation'!$D$27,IF(O$6='Data validation'!$B$26,'Data validation'!$D$26))))","v":"--"},0,null,null,null,null,0,{"$f":"IF(V$6='Data validation'!$B$25,'Data validation'!$D$25,IF(V$6='Data validation'!$B$28,'Data validation'!$D$28,IF(V$6='Data validation'!$B$27,'Data validation'!$D$27,IF(V$6='Data validation'!$B$26,'Data validation'!$D$26))))","v":"--"},0,null,null,null,null,0,{"$f":"IF(AC$6='Data validation'!$B$25,'Data validation'!$D$25,IF(AC$6='Data validation'!$B$28,'Data validation'!$D$28,IF(AC$6='Data validation'!$B$27,'Data validation'!$D$27,IF(AC$6='Data validation'!$B$26,'Data validation'!$D$26))))","v":"--"},0]
[null,null,null,null,null,null,null,null,null,null,null,null,null,null,null,null,0,{"$f":"IF(O$6='Data validation'!$B$25,'Data validation'!$D$25,IF(O$6='Data validation'!$B$28,'Data validation'!$D$28,IF(O$6='Data validation'!$B$27,'Data validation'!$D$27,IF(O$6='Data validation'!$B$26,'Data validation'!$D$26))))","v":"--"},0,null,null,null,null,0,{"$f":"IF(V$6='Data validation'!$B$25,'Data validation'!$D$25,IF(V$6='Data validation'!$B$28,'Data validation'!$D$28,IF(V$6='Data validation'!$B$27,'Data validation'!$D$27,IF(V$6='Data validation'!$B$26,'Data validation'!$D$26))))","v":"--"},0,null,null,null,null,0,{"$f":"IF(AC$6='Data validation'!$B$25,'Data validation'!$D$25,IF(AC$6='Data validation'!$B$28,'Data validation'!$D$28,IF(AC$6='Data validation'!$B$27,'Data validation'!$D$27,IF(AC$6='Data validation'!$B$26,'Data validation'!$D$26))))","v":"--"},0]
[null,null,null,null,null,null,null,null,null,null,null,null,null,null,null,null,0,{"$f":"IF(O$6='Data validation'!$B$25,'Data validation'!$D$25,IF(O$6='Data validation'!$B$28,'Data validation'!$D$28,IF(O$6='Data validation'!$B$27,'Data validation'!$D$27,IF(O$6='Data validation'!$B$26,'Data validation'!$D$26))))","v":"--"},0,null,null,null,null,0,{"$f":"IF(V$6='Data validation'!$B$25,'Data validation'!$D$25,IF(V$6='Data validation'!$B$28,'Data validation'!$D$28,IF(V$6='Data validation'!$B$27,'Data validation'!$D$27,IF(V$6='Data validation'!$B$26,'Data validation'!$D$26))))","v":"--"},0,null,null,null,null,0,{"$f":"IF(AC$6='Data validation'!$B$25,'Data validation'!$D$25,IF(AC$6='Data validation'!$B$28,'Data validation'!$D$28,IF(AC$6='Data validation'!$B$27,'Data validation'!$D$27,IF(AC$6='Data validation'!$B$26,'Data validation'!$D$26))))","v":"--"},0]
[null,null,null,null,null,null,null,null,null,null,null,null,null,null,null,null,0,{"$f":"IF(O$6='Data validation'!$B$25,'Data validation'!$D$25,IF(O$6='Data validation'!$B$28,'Data validation'!$D$28,IF(O$6='Data validation'!$B$27,'Data validation'!$D$27,IF(O$6='Data validation'!$B$26,'Data validation'!$D$26))))","v":"--"},0,null,null,null,null,0,{"$f":"IF(V$6='Data validation'!$B$25,'Data validation'!$D$25,IF(V$6='Data validation'!$B$28,'Data validation'!$D$28,IF(V$6='Data validation'!$B$27,'Data validation'!$D$27,IF(V$6='Data validation'!$B$26,'Data validation'!$D$26))))","v":"--"},0,null,null,null,null,0,{"$f":"IF(AC$6='Data validation'!$B$25,'Data validation'!$D$25,IF(AC$6='Data validation'!$B$28,'Data validation'!$D$28,IF(AC$6='Data validation'!$B$27,'Data validation'!$D$27,IF(AC$6='Data validation'!$B$26,'Data validation'!$D$26))))","v":"--"},0]
[null,null,null,null,null,null,null,null,null,null,null,null,null,null,null,null,0,{"$f":"IF(O$6='Data validation'!$B$25,'Data validation'!$D$25,IF(O$6='Data validation'!$B$28,'Data validation'!$D$28,IF(O$6='Data validation'!$B$27,'Data validation'!$D$27,IF(O$6='Data validation'!$B$26,'Data validation'!$D$26))))","v":"--"},0,null,null,null,null,0,{"$f":"IF(V$6='Data validation'!$B$25,'Data validation'!$D$25,IF(V$6='Data validation'!$B$28,'Data validation'!$D$28,IF(V$6='Data validation'!$B$27,'Data validation'!$D$27,IF(V$6='Data validation'!$B$26,'Data validation'!$D$26))))","v":"--"},0,null,null,null,null,0,{"$f":"IF(AC$6='Data validation'!$B$25,'Data validation'!$D$25,IF(AC$6='Data validation'!$B$28,'Data validation'!$D$28,IF(AC$6='Data validation'!$B$27,'Data validation'!$D$27,IF(AC$6='Data validation'!$B$26,'Data validation'!$D$26))))","v":"--"},0]
[null,null,null,null,null,null,null,null,null,null,null,null,null,null,null,null,0,{"$f":"IF(O$6='Data validation'!$B$25,'Data validation'!$D$25,IF(O$6='Data validation'!$B$28,'Data validation'!$D$28,IF(O$6='Data validation'!$B$27,'Data validation'!$D$27,IF(O$6='Data validation'!$B$26,'Data validation'!$D$26))))","v":"--"},0,null,null,null,null,0,{"$f":"IF(V$6='Data validation'!$B$25,'Data validation'!$D$25,IF(V$6='Data validation'!$B$28,'Data validation'!$D$28,IF(V$6='Data validation'!$B$27,'Data validation'!$D$27,IF(V$6='Data validation'!$B$26,'Data validation'!$D$26))))","v":"--"},0,null,null,null,null,0,{"$f":"IF(AC$6='Data validation'!$B$25,'Data validation'!$D$25,IF(AC$6='Data validation'!$B$28,'Data validation'!$D$28,IF(AC$6='Data validation'!$B$27,'Data validation'!$D$27,IF(AC$6='Data validation'!$B$26,'Data validation'!$D$26))))","v":"--"},0]
[null,null,null,null,null,null,null,null,null,null,null,null,null,null,null,null,0,{"$f":"IF(O$6='Data validation'!$B$25,'Data validation'!$D$25,IF(O$6='Data validation'!$B$28,'Data validation'!$D$28,IF(O$6='Data validation'!$B$27,'Data validation'!$D$27,IF(O$6='Data validation'!$B$26,'Data validation'!$D$26))))","v":"--"},0,null,null,null,null,0,{"$f":"IF(V$6='Data validation'!$B$25,'Data validation'!$D$25,IF(V$6='Data validation'!$B$28,'Data validation'!$D$28,IF(V$6='Data validation'!$B$27,'Data validation'!$D$27,IF(V$6='Data validation'!$B$26,'Data validation'!$D$26))))","v":"--"},0,null,null,null,null,0,{"$f":"IF(AC$6='Data validation'!$B$25,'Data validation'!$D$25,IF(AC$6='Data validation'!$B$28,'Data validation'!$D$28,IF(AC$6='Data validation'!$B$27,'Data validation'!$D$27,IF(AC$6='Data validation'!$B$26,'Data validation'!$D$26))))","v":"--"},0]
[null,null,null,null,null,null,null,null,null,null,null,null,null,null,null,null,0,{"$f":"IF(O$6='Data validation'!$B$25,'Data validation'!$D$25,IF(O$6='Data validation'!$B$28,'Data validation'!$D$28,IF(O$6='Data validation'!$B$27,'Data validation'!$D$27,IF(O$6='Data validation'!$B$26,'Data validation'!$D$26))))","v":"--"},0,null,null,null,null,0,{"$f":"IF(V$6='Data validation'!$B$25,'Data validation'!$D$25,IF(V$6='Data validation'!$B$28,'Data validation'!$D$28,IF(V$6='Data validation'!$B$27,'Data validation'!$D$27,IF(V$6='Data validation'!$B$26,'Data validation'!$D$26))))","v":"--"},0,null,null,null,null,0,{"$f":"IF(AC$6='Data validation'!$B$25,'Data validation'!$D$25,IF(AC$6='Data validation'!$B$28,'Data validation'!$D$28,IF(AC$6='Data validation'!$B$27,'Data validation'!$D$27,IF(AC$6='Data validation'!$B$26,'Data validation'!$D$26))))","v":"--"},0]
[null,null,null,null,null,null,null,null,null,null,null,null,null,null,null,null,0,{"$f":"IF(O$6='Data validation'!$B$25,'Data validation'!$D$25,IF(O$6='Data validation'!$B$28,'Data validation'!$D$28,IF(O$6='Data validation'!$B$27,'Data validation'!$D$27,IF(O$6='Data validation'!$B$26,'Data validation'!$D$26))))","v":"--"},0,null,null,null,null,0,{"$f":"IF(V$6='Data validation'!$B$25,'Data validation'!$D$25,IF(V$6='Data validation'!$B$28,'Data validation'!$D$28,IF(V$6='Data validation'!$B$27,'Data validation'!$D$27,IF(V$6='Data validation'!$B$26,'Data validation'!$D$26))))","v":"--"},0,null,null,null,null,0,{"$f":"IF(AC$6='Data validation'!$B$25,'Data validation'!$D$25,IF(AC$6='Data validation'!$B$28,'Data validation'!$D$28,IF(AC$6='Data validation'!$B$27,'Data validation'!$D$27,IF(AC$6='Data validation'!$B$26,'Data validation'!$D$26))))","v":"--"},0]
[null,null,null,null,null,null,null,null,null,null,null,null,null,null,null,null,0,{"$f":"IF(O$6='Data validation'!$B$25,'Data validation'!$D$25,IF(O$6='Data validation'!$B$28,'Data validation'!$D$28,IF(O$6='Data validation'!$B$27,'Data validation'!$D$27,IF(O$6='Data validation'!$B$26,'Data validation'!$D$26))))","v":"--"},0,null,null,null,null,0,{"$f":"IF(V$6='Data validation'!$B$25,'Data validation'!$D$25,IF(V$6='Data validation'!$B$28,'Data validation'!$D$28,IF(V$6='Data validation'!$B$27,'Data validation'!$D$27,IF(V$6='Data validation'!$B$26,'Data validation'!$D$26))))","v":"--"},0,null,null,null,null,0,{"$f":"IF(AC$6='Data validation'!$B$25,'Data validation'!$D$25,IF(AC$6='Data validation'!$B$28,'Data validation'!$D$28,IF(AC$6='Data validation'!$B$27,'Data validation'!$D$27,IF(AC$6='Data validation'!$B$26,'Data validation'!$D$26))))","v":"--"},0]
[null,null,null,null,null,null,null,null,null,null,null,null,null,null,null,null,0,{"$f":"IF(O$6='Data validation'!$B$25,'Data validation'!$D$25,IF(O$6='Data validation'!$B$28,'Data validation'!$D$28,IF(O$6='Data validation'!$B$27,'Data validation'!$D$27,IF(O$6='Data validation'!$B$26,'Data validation'!$D$26))))","v":"--"},0,null,null,null,null,0,{"$f":"IF(V$6='Data validation'!$B$25,'Data validation'!$D$25,IF(V$6='Data validation'!$B$28,'Data validation'!$D$28,IF(V$6='Data validation'!$B$27,'Data validation'!$D$27,IF(V$6='Data validation'!$B$26,'Data validation'!$D$26))))","v":"--"},0,null,null,null,null,0,{"$f":"IF(AC$6='Data validation'!$B$25,'Data validation'!$D$25,IF(AC$6='Data validation'!$B$28,'Data validation'!$D$28,IF(AC$6='Data validation'!$B$27,'Data validation'!$D$27,IF(AC$6='Data validation'!$B$26,'Data validation'!$D$26))))","v":"--"},0]
[null,null,null,null,null,null,null,null,null,null,null,null,null,null,null,null,0,{"$f":"IF(O$6='Data validation'!$B$25,'Data validation'!$D$25,IF(O$6='Data validation'!$B$28,'Data validation'!$D$28,IF(O$6='Data validation'!$B$27,'Data validation'!$D$27,IF(O$6='Data validation'!$B$26,'Data validation'!$D$26))))","v":"--"},0,null,null,null,null,0,{"$f":"IF(V$6='Data validation'!$B$25,'Data validation'!$D$25,IF(V$6='Data validation'!$B$28,'Data validation'!$D$28,IF(V$6='Data validation'!$B$27,'Data validation'!$D$27,IF(V$6='Data validation'!$B$26,'Data validation'!$D$26))))","v":"--"},0,null,null,null,null,0,{"$f":"IF(AC$6='Data validation'!$B$25,'Data validation'!$D$25,IF(AC$6='Data validation'!$B$28,'Data validation'!$D$28,IF(AC$6='Data validation'!$B$27,'Data validation'!$D$27,IF(AC$6='Data validation'!$B$26,'Data validation'!$D$26))))","v":"--"},0]
[null,null,null,null,null,null,null,null,null,null,null,null,null,null,null,null,0,{"$f":"IF(O$6='Data validation'!$B$25,'Data validation'!$D$25,IF(O$6='Data validation'!$B$28,'Data validation'!$D$28,IF(O$6='Data validation'!$B$27,'Data validation'!$D$27,IF(O$6='Data validation'!$B$26,'Data validation'!$D$26))))","v":"--"},0,null,null,null,null,0,{"$f":"IF(V$6='Data validation'!$B$25,'Data validation'!$D$25,IF(V$6='Data validation'!$B$28,'Data validation'!$D$28,IF(V$6='Data validation'!$B$27,'Data validation'!$D$27,IF(V$6='Data validation'!$B$26,'Data validation'!$D$26))))","v":"--"},0,null,null,null,null,0,{"$f":"IF(AC$6='Data validation'!$B$25,'Data validation'!$D$25,IF(AC$6='Data validation'!$B$28,'Data validation'!$D$28,IF(AC$6='Data validation'!$B$27,'Data validation'!$D$27,IF(AC$6='Data validation'!$B$26,'Data validation'!$D$26))))","v":"--"},0]
[null,null,null,null,null,null,null,null,null,null,null,null,null,null,null,null,0,{"$f":"IF(O$6='Data validation'!$B$25,'Data validation'!$D$25,IF(O$6='Data validation'!$B$28,'Data validation'!$D$28,IF(O$6='Data validation'!$B$27,'Data validation'!$D$27,IF(O$6='Data validation'!$B$26,'Data validation'!$D$26))))","v":"--"},0,null,null,null,null,0,{"$f":"IF(V$6='Data validation'!$B$25,'Data validation'!$D$25,IF(V$6='Data validation'!$B$28,'Data validation'!$D$28,IF(V$6='Data validation'!$B$27,'Data validation'!$D$27,IF(V$6='Data validation'!$B$26,'Data validation'!$D$26))))","v":"--"},0,null,null,null,null,0,{"$f":"IF(AC$6='Data validation'!$B$25,'Data validation'!$D$25,IF(AC$6='Data validation'!$B$28,'Data validation'!$D$28,IF(AC$6='Data validation'!$B$27,'Data validation'!$D$27,IF(AC$6='Data validation'!$B$26,'Data validation'!$D$26))))","v":"--"},0]
[null,null,null,null,null,null,null,null,null,null,null,null,null,null,null,null,0,{"$f":"IF(O$6='Data validation'!$B$25,'Data validation'!$D$25,IF(O$6='Data validation'!$B$28,'Data validation'!$D$28,IF(O$6='Data validation'!$B$27,'Data validation'!$D$27,IF(O$6='Data validation'!$B$26,'Data validation'!$D$26))))","v":"--"},0,null,null,null,null,0,{"$f":"IF(V$6='Data validation'!$B$25,'Data validation'!$D$25,IF(V$6='Data validation'!$B$28,'Data validation'!$D$28,IF(V$6='Data validation'!$B$27,'Data validation'!$D$27,IF(V$6='Data validation'!$B$26,'Data validation'!$D$26))))","v":"--"},0,null,null,null,null,0,{"$f":"IF(AC$6='Data validation'!$B$25,'Data validation'!$D$25,IF(AC$6='Data validation'!$B$28,'Data validation'!$D$28,IF(AC$6='Data validation'!$B$27,'Data validation'!$D$27,IF(AC$6='Data validation'!$B$26,'Data validation'!$D$26))))","v":"--"},0]
[null,null,null,null,null,null,null,null,null,null,null,null,null,null,null,null,0,{"$f":"IF(O$6='Data validation'!$B$25,'Data validation'!$D$25,IF(O$6='Data validation'!$B$28,'Data validation'!$D$28,IF(O$6='Data validation'!$B$27,'Data validation'!$D$27,IF(O$6='Data validation'!$B$26,'Data validation'!$D$26))))","v":"--"},0,null,null,null,null,0,{"$f":"IF(V$6='Data validation'!$B$25,'Data validation'!$D$25,IF(V$6='Data validation'!$B$28,'Data validation'!$D$28,IF(V$6='Data validation'!$B$27,'Data validation'!$D$27,IF(V$6='Data validation'!$B$26,'Data validation'!$D$26))))","v":"--"},0,null,null,null,null,0,{"$f":"IF(AC$6='Data validation'!$B$25,'Data validation'!$D$25,IF(AC$6='Data validation'!$B$28,'Data validation'!$D$28,IF(AC$6='Data validation'!$B$27,'Data validation'!$D$27,IF(AC$6='Data validation'!$B$26,'Data validation'!$D$26))))","v":"--"},0]
[null,null,null,null,null,null,null,null,null,null,null,null,null,null,null,null,{"$f":"SUM(P48:P59)","v":0},{"$f":"IF(O$6='Data validation'!$B$25,'Data validation'!$D$25,IF(O$6='Data validation'!$B$28,'Data validation'!$D$28,IF(O$6='Data validation'!$B$27,'Data validation'!$D$27,IF(O$6='Data validation'!$B$26,'Data validation'!$D$26))))","v":"--"},{"$f":"IFERROR(Q59*R59,0)","v":0},null,null,null,null,{"$f":"SUM(W48:W59)","v":0},{"$f":"IF(V$6='Data validation'!$B$25,'Data validation'!$D$25,IF(V$6='Data validation'!$B$28,'Data validation'!$D$28,IF(V$6='Data validation'!$B$27,'Data validation'!$D$27,IF(V$6='Data validation'!$B$26,'Data validation'!$D$26))))","v":"--"},{"$f":"IFERROR(X59*Y59,0)","v":0},null,null,null,null,{"$f":"SUM(AD48:AD59)","v":0},{"$f":"IF(AC$6='Data validation'!$B$25,'Data validation'!$D$25,IF(AC$6='Data validation'!$B$28,'Data validation'!$D$28,IF(AC$6='Data validation'!$B$27,'Data validation'!$D$27,IF(AC$6='Data validation'!$B$26,'Data validation'!$D$26))))","v":"--"},{"$f":"IFERROR(AE59*AF59,0)","v":0}]
[null,null,null,null,null,null,null,null,null,null,null,null,null,null,null,null,0,{"$f":"IF(O$6='Data validation'!$B$25,'Data validation'!$D$25,IF(O$6='Data validation'!$B$28,'Data validation'!$D$28,IF(O$6='Data validation'!$B$27,'Data validation'!$D$27,IF(O$6='Data validation'!$B$26,'Data validation'!$D$26))))","v":"--"},0,null,null,null,null,0,{"$f":"IF(V$6='Data validation'!$B$25,'Data validation'!$D$25,IF(V$6='Data validation'!$B$28,'Data validation'!$D$28,IF(V$6='Data validation'!$B$27,'Data validation'!$D$27,IF(V$6='Data validation'!$B$26,'Data validation'!$D$26))))","v":"--"},0,null,null,null,null,0,{"$f":"IF(AC$6='Data validation'!$B$25,'Data validation'!$D$25,IF(AC$6='Data validation'!$B$28,'Data validation'!$D$28,IF(AC$6='Data validation'!$B$27,'Data validation'!$D$27,IF(AC$6='Data validation'!$B$26,'Data validation'!$D$26))))","v":"--"},0]
[null,null,null,null,null,null,null,null,null,null,null,null,null,null,null,null,0,{"$f":"IF(O$6='Data validation'!$B$25,'Data validation'!$D$25,IF(O$6='Data validation'!$B$28,'Data validation'!$D$28,IF(O$6='Data validation'!$B$27,'Data validation'!$D$27,IF(O$6='Data validation'!$B$26,'Data validation'!$D$26))))","v":"--"},0,null,null,null,null,0,{"$f":"IF(V$6='Data validation'!$B$25,'Data validation'!$D$25,IF(V$6='Data validation'!$B$28,'Data validation'!$D$28,IF(V$6='Data validation'!$B$27,'Data validation'!$D$27,IF(V$6='Data validation'!$B$26,'Data validation'!$D$26))))","v":"--"},0,null,null,null,null,0,{"$f":"IF(AC$6='Data validation'!$B$25,'Data validation'!$D$25,IF(AC$6='Data validation'!$B$28,'Data validation'!$D$28,IF(AC$6='Data validation'!$B$27,'Data validation'!$D$27,IF(AC$6='Data validation'!$B$26,'Data validation'!$D$26))))","v":"--"},0]
[null,null,null,null,null,null,null,null,null,null,null,null,null,null,null,null,0,{"$f":"IF(O$6='Data validation'!$B$25,'Data validation'!$D$25,IF(O$6='Data validation'!$B$28,'Data validation'!$D$28,IF(O$6='Data validation'!$B$27,'Data validation'!$D$27,IF(O$6='Data validation'!$B$26,'Data validation'!$D$26))))","v":"--"},0,null,null,null,null,0,{"$f":"IF(V$6='Data validation'!$B$25,'Data validation'!$D$25,IF(V$6='Data validation'!$B$28,'Data validation'!$D$28,IF(V$6='Data validation'!$B$27,'Data validation'!$D$27,IF(V$6='Data validation'!$B$26,'Data validation'!$D$26))))","v":"--"},0,null,null,null,null,0,{"$f":"IF(AC$6='Data validation'!$B$25,'Data validation'!$D$25,IF(AC$6='Data validation'!$B$28,'Data validation'!$D$28,IF(AC$6='Data validation'!$B$27,'Data validation'!$D$27,IF(AC$6='Data validation'!$B$26,'Data validation'!$D$26))))","v":"--"},0]
[null,null,null,null,null,null,null,null,null,null,null,null,null,null,null,null,0,{"$f":"IF(O$6='Data validation'!$B$25,'Data validation'!$D$25,IF(O$6='Data validation'!$B$28,'Data validation'!$D$28,IF(O$6='Data validation'!$B$27,'Data validation'!$D$27,IF(O$6='Data validation'!$B$26,'Data validation'!$D$26))))","v":"--"},0,null,null,null,null,0,{"$f":"IF(V$6='Data validation'!$B$25,'Data validation'!$D$25,IF(V$6='Data validation'!$B$28,'Data validation'!$D$28,IF(V$6='Data validation'!$B$27,'Data validation'!$D$27,IF(V$6='Data validation'!$B$26,'Data validation'!$D$26))))","v":"--"},0,null,null,null,null,0,{"$f":"IF(AC$6='Data validation'!$B$25,'Data validation'!$D$25,IF(AC$6='Data validation'!$B$28,'Data validation'!$D$28,IF(AC$6='Data validation'!$B$27,'Data validation'!$D$27,IF(AC$6='Data validation'!$B$26,'Data validation'!$D$26))))","v":"--"},0]
[null,null,null,null,null,null,null,null,null,null,null,null,null,null,null,null,0,{"$f":"IF(O$6='Data validation'!$B$25,'Data validation'!$D$25,IF(O$6='Data validation'!$B$28,'Data validation'!$D$28,IF(O$6='Data validation'!$B$27,'Data validation'!$D$27,IF(O$6='Data validation'!$B$26,'Data validation'!$D$26))))","v":"--"},0,null,null,null,null,0,{"$f":"IF(V$6='Data validation'!$B$25,'Data validation'!$D$25,IF(V$6='Data validation'!$B$28,'Data validation'!$D$28,IF(V$6='Data validation'!$B$27,'Data validation'!$D$27,IF(V$6='Data validation'!$B$26,'Data validation'!$D$26))))","v":"--"},0,null,null,null,null,0,{"$f":"IF(AC$6='Data validation'!$B$25,'Data validation'!$D$25,IF(AC$6='Data validation'!$B$28,'Data validation'!$D$28,IF(AC$6='Data validation'!$B$27,'Data validation'!$D$27,IF(AC$6='Data validation'!$B$26,'Data validation'!$D$26))))","v":"--"},0]
[null,null,null,null,null,null,null,null,null,null,null,null,null,null,null,null,0,{"$f":"IF(O$6='Data validation'!$B$25,'Data validation'!$D$25,IF(O$6='Data validation'!$B$28,'Data validation'!$D$28,IF(O$6='Data validation'!$B$27,'Data validation'!$D$27,IF(O$6='Data validation'!$B$26,'Data validation'!$D$26))))","v":"--"},0,null,null,null,null,0,{"$f":"IF(V$6='Data validation'!$B$25,'Data validation'!$D$25,IF(V$6='Data validation'!$B$28,'Data validation'!$D$28,IF(V$6='Data validation'!$B$27,'Data validation'!$D$27,IF(V$6='Data validation'!$B$26,'Data validation'!$D$26))))","v":"--"},0,null,null,null,null,0,{"$f":"IF(AC$6='Data validation'!$B$25,'Data validation'!$D$25,IF(AC$6='Data validation'!$B$28,'Data validation'!$D$28,IF(AC$6='Data validation'!$B$27,'Data validation'!$D$27,IF(AC$6='Data validation'!$B$26,'Data validation'!$D$26))))","v":"--"},0]
[null,null,null,null,null,null,null,null,null,null,null,null,null,null,null,null,0,{"$f":"IF(O$6='Data validation'!$B$25,'Data validation'!$D$25,IF(O$6='Data validation'!$B$28,'Data validation'!$D$28,IF(O$6='Data validation'!$B$27,'Data validation'!$D$27,IF(O$6='Data validation'!$B$26,'Data validation'!$D$26))))","v":"--"},0,null,null,null,null,0,{"$f":"IF(V$6='Data validation'!$B$25,'Data validation'!$D$25,IF(V$6='Data validation'!$B$28,'Data validation'!$D$28,IF(V$6='Data validation'!$B$27,'Data validation'!$D$27,IF(V$6='Data validation'!$B$26,'Data validation'!$D$26))))","v":"--"},0,null,null,null,null,0,{"$f":"IF(AC$6='Data validation'!$B$25,'Data validation'!$D$25,IF(AC$6='Data validation'!$B$28,'Data validation'!$D$28,IF(AC$6='Data validation'!$B$27,'Data validation'!$D$27,IF(AC$6='Data validation'!$B$26,'Data validation'!$D$26))))","v":"--"},0]
[null,null,null,null,null,null,null,null,null,null,null,null,null,null,null,null,0,{"$f":"IF(O$6='Data validation'!$B$25,'Data validation'!$D$25,IF(O$6='Data validation'!$B$28,'Data validation'!$D$28,IF(O$6='Data validation'!$B$27,'Data validation'!$D$27,IF(O$6='Data validation'!$B$26,'Data validation'!$D$26))))","v":"--"},0,null,null,null,null,0,{"$f":"IF(V$6='Data validation'!$B$25,'Data validation'!$D$25,IF(V$6='Data validation'!$B$28,'Data validation'!$D$28,IF(V$6='Data validation'!$B$27,'Data validation'!$D$27,IF(V$6='Data validation'!$B$26,'Data validation'!$D$26))))","v":"--"},0,null,null,null,null,0,{"$f":"IF(AC$6='Data validation'!$B$25,'Data validation'!$D$25,IF(AC$6='Data validation'!$B$28,'Data validation'!$D$28,IF(AC$6='Data validation'!$B$27,'Data validation'!$D$27,IF(AC$6='Data validation'!$B$26,'Data validation'!$D$26))))","v":"--"},0]
[null,null,null,null,null,null,null,null,null,null,null,null,null,null,null,null,0,{"$f":"IF(O$6='Data validation'!$B$25,'Data validation'!$D$25,IF(O$6='Data validation'!$B$28,'Data validation'!$D$28,IF(O$6='Data validation'!$B$27,'Data validation'!$D$27,IF(O$6='Data validation'!$B$26,'Data validation'!$D$26))))","v":"--"},0,null,null,null,null,0,{"$f":"IF(V$6='Data validation'!$B$25,'Data validation'!$D$25,IF(V$6='Data validation'!$B$28,'Data validation'!$D$28,IF(V$6='Data validation'!$B$27,'Data validation'!$D$27,IF(V$6='Data validation'!$B$26,'Data validation'!$D$26))))","v":"--"},0,null,null,null,null,0,{"$f":"IF(AC$6='Data validation'!$B$25,'Data validation'!$D$25,IF(AC$6='Data validation'!$B$28,'Data validation'!$D$28,IF(AC$6='Data validation'!$B$27,'Data validation'!$D$27,IF(AC$6='Data validation'!$B$26,'Data validation'!$D$26))))","v":"--"},0]
[null,null,null,null,null,null,null,null,null,null,null,null,null,null,null,null,0,{"$f":"IF(O$6='Data validation'!$B$25,'Data validation'!$D$25,IF(O$6='Data validation'!$B$28,'Data validation'!$D$28,IF(O$6='Data validation'!$B$27,'Data validation'!$D$27,IF(O$6='Data validation'!$B$26,'Data validation'!$D$26))))","v":"--"},0,null,null,null,null,0,{"$f":"IF(V$6='Data validation'!$B$25,'Data validation'!$D$25,IF(V$6='Data validation'!$B$28,'Data validation'!$D$28,IF(V$6='Data validation'!$B$27,'Data validation'!$D$27,IF(V$6='Data validation'!$B$26,'Data validation'!$D$26))))","v":"--"},0,null,null,null,null,0,{"$f":"IF(AC$6='Data validation'!$B$25,'Data validation'!$D$25,IF(AC$6='Data validation'!$B$28,'Data validation'!$D$28,IF(AC$6='Data validation'!$B$27,'Data validation'!$D$27,IF(AC$6='Data validation'!$B$26,'Data validation'!$D$26))))","v":"--"},0]
[null,null,null,null,null,null,null,null,null,null,null,null,null,null,null,null,0,{"$f":"IF(O$6='Data validation'!$B$25,'Data validation'!$D$25,IF(O$6='Data validation'!$B$28,'Data validation'!$D$28,IF(O$6='Data validation'!$B$27,'Data validation'!$D$27,IF(O$6='Data validation'!$B$26,'Data validation'!$D$26))))","v":"--"},0,null,null,null,null,0,{"$f":"IF(V$6='Data validation'!$B$25,'Data validation'!$D$25,IF(V$6='Data validation'!$B$28,'Data validation'!$D$28,IF(V$6='Data validation'!$B$27,'Data validation'!$D$27,IF(V$6='Data validation'!$B$26,'Data validation'!$D$26))))","v":"--"},0,null,null,null,null,0,{"$f":"IF(AC$6='Data validation'!$B$25,'Data validation'!$D$25,IF(AC$6='Data validation'!$B$28,'Data validation'!$D$28,IF(AC$6='Data validation'!$B$27,'Data validation'!$D$27,IF(AC$6='Data validation'!$B$26,'Data validation'!$D$26))))","v":"--"},0]
[null,null,null,null,null,null,null,null,null,null,null,null,null,null,null,null,0,{"$f":"IF(O$6='Data validation'!$B$25,'Data validation'!$D$25,IF(O$6='Data validation'!$B$28,'Data validation'!$D$28,IF(O$6='Data validation'!$B$27,'Data validation'!$D$27,IF(O$6='Data validation'!$B$26,'Data validation'!$D$26))))","v":"--"},0,null,null,null,null,0,{"$f":"IF(V$6='Data validation'!$B$25,'Data validation'!$D$25,IF(V$6='Data validation'!$B$28,'Data validation'!$D$28,IF(V$6='Data validation'!$B$27,'Data validation'!$D$27,IF(V$6='Data validation'!$B$26,'Data validation'!$D$26))))","v":"--"},0,null,null,null,null,0,{"$f":"IF(AC$6='Data validation'!$B$25,'Data validation'!$D$25,IF(AC$6='Data validation'!$B$28,'Data validation'!$D$28,IF(AC$6='Data validation'!$B$27,'Data validation'!$D$27,IF(AC$6='Data validation'!$B$26,'Data validation'!$D$26))))","v":"--"},0]
[null,null,null,null,null,null,null,null,null,null,null,null,null,null,null,null,0,{"$f":"IF(O$6='Data validation'!$B$25,'Data validation'!$D$25,IF(O$6='Data validation'!$B$28,'Data validation'!$D$28,IF(O$6='Data validation'!$B$27,'Data validation'!$D$27,IF(O$6='Data validation'!$B$26,'Data validation'!$D$26))))","v":"--"},0,null,null,null,null,0,{"$f":"IF(V$6='Data validation'!$B$25,'Data validation'!$D$25,IF(V$6='Data validation'!$B$28,'Data validation'!$D$28,IF(V$6='Data validation'!$B$27,'Data validation'!$D$27,IF(V$6='Data validation'!$B$26,'Data validation'!$D$26))))","v":"--"},0,null,null,null,null,0,{"$f":"IF(AC$6='Data validation'!$B$25,'Data validation'!$D$25,IF(AC$6='Data validation'!$B$28,'Data validation'!$D$28,IF(AC$6='Data validation'!$B$27,'Data validation'!$D$27,IF(AC$6='Data validation'!$B$26,'Data validation'!$D$26))))","v":"--"},0]

{"sheet":"Engines (hours)","index":3,"n_rows":72,"n_cols":33,"rows_kept":72,"cut":false,"hidden":false,"merged":[[15,3,15,11],[17,2,17,11],[18,3,18,11],[19,3,20,11],[9,31,10,31],[9,23,10,23],[9,13,10,13],[9,14,10,14],[9,15,10,15],[9,16,10,16],[9,32,10,32],[10,2,10,11],[12,4,12,11],[13,4,13,11],[14,4,14,11],[9,24,10,24],[9,25,10,25],[9,27,10,27],[9,28,10,28],[9,29,10,29],[9,30,10,30],[9,17,10,17],[9,18,10,18],[9,20,10,20],[9,21,10,21],[9,22,10,22],[6,21,6,23],[6,28,6,30],[7,3,7,11],[8,4,8,11],[6,14,6,16],[6,2,6,11],[1,1,1,11],[1,13,1,18],[1,20,1,25],[1,27,1,32],[2,13,3,18],[2,20,3,25],[2,27,3,32],[2,1,2,11],[3,2,4,11]]}
[null,null,null,null,null,null,null,null,null,null,null,{"$f":"Instructions!O4","v":"p-sbap5-33  •  6/6/23"}]
[null,"Engines: by operating hours and horsepower",null,null,null,null,null,null,null,null,null,null,null,"Engine 1: monthly and 12-month rolling totals",null,null,null,null,null,null,"Engine 2: monthly and 12-month rolling totals",null,null,null,null,null,null,"Engine 3: monthly and 12-month rolling totals"]
[null,"Use this tab to track emissions for engines by number of hours individual engines are operated.",null,null,null,null,null,null,null,null,null,null,null,"Each month fill in the table below. Complete one table for each engine (by operation hours). \nAdd the most recent eligibility value across all engines (by operation hours) and enter in the 'Eligibility' tab.",null,null,null,null,null,null,"Each month fill in the table below. Complete one table for each engine (by operation hours). \nAdd the most recent eligibility value across all engines (by operation hours) and enter in the 'Eligibility' tab.",null,null,null,null,null,null,"Each month fill in the table below. Complete one table for each engine (by operation hours). \nAdd the most recent eligibility value across all engines (by operation hours) and enter in the 'Eligibility' tab."]
[null,null,"If you enter the operation hours for an engine on this tab, do not enter the amount of fuel purchased or used for the same engine in the 'Engines (fuel use)' tab. Entering information in both tabs will double count your emissions."]
[]
[null,null,null,null,null,null,null,null,null,null,null,null,null,"Emission unit ID",null,null,null,null,null,null,"Emission unit ID",null,null,null,null,null,null,"Emission unit ID"]
[null,"1)","Use one table to the right for each engine being operated.",null,null,null,null,null,null,null,null,null,null,"Make & model",null,null,null,null,null,null,"Make & model",null,null,null,null,null,null,"Make & model"]
[null,null,"-","Fill in the blue boxes to identify individual engines.",null,null,null,null,null,null,null,null,null,"Horsepower",null,"(hp) max design capacity",null,null,null,null,"Horsepower",null,"(hp) max design capacity",null,null,null,null,"Horsepower",null,"(hp) max design capacity"]
[null,null,null,"•","Enter the maximum design capacity hp of the unit - this is required for the calculations"]
[null,null,null,null,null,null,null,null,null,null,null,null,null,"Date recorded","Month and year","Hours operated","12-month rolling sum","Multiplication Factor","Eligibility value",null,"Date recorded","Month and year","Hours operated","12-month rolling sum","Multiplication Factor","Eligibility value",null,"Date recorded","Month and year","Hours operated","12-month rolling sum","Multiplication Factor","Eligibility value"]
[null,"2)","By the last day of each following month, record your hours operated."]
[null,null,"-","Enter your information in the blue boxes.",null,null,null,null,null,null,null,null,null,"when data is entered","engine operated","hours","hours",null,"For engine 1",null,"when data is entered","engine operated","hours","hours",null,"For engine 2",null,"when data is entered","engine operated","hours","hours",null,"For engine 3"]
[null,null,null,"•","date you are entering the information",null,null,null,null,null,null,null,null,null,null,null,{"$f":"P13","v":0},{"$f":"'Data validation'!$D$29","v":1.22E-5},{"$f":"IFERROR(O$8*Q13*R13,0)","v":0},null,null,null,null,{"$f":"W13","v":0},{"$f":"'Data validation'!$D$29","v":1.22E-5},{"$f":"IFERROR(V$8*X13*Y13,0)","v":0},null,null,null,null,{"$f":"AD13","v":0},{"$f":"'Data validation'!$D$29","v":1.22E-5},{"$f":"IFERROR(AC$8*AE13*AF13,0)","v":0}]
[null,null,null,"•","month and year that the operating hours are being recorded for",null,null,null,null,null,null,null,null,null,null,null,{"$f":"SUM(P13:P14)","v":0},{"$f":"'Data validation'!$D$29","v":1.22E-5},{"$f":"IFERROR(O$8*Q14*R14,0)","v":0},null,null,null,null,{"$f":"SUM(W13:W14)","v":0},{"$f":"'Data validation'!$D$29","v":1.22E-5},{"$f":"IFERROR(V$8*X14*Y14,0)","v":0},null,null,null,null,{"$f":"SUM(AD13:AD14)","v":0},{"$f":"'Data validation'!$D$29","v":1.22E-5},{"$f":"IFERROR(AC$8*AE14*AF14,0)","v":0}]
[null,null,null,"•","hours of operation, rounded to the nearest hour",null,null,null,null,null,null,null,null,null,null,null,{"$f":"SUM(P13:P15)","v":0},{"$f":"'Data validation'!$D$29","v":1.22E-5},0,null,null,null,null,{"$f":"SUM(W13:W15)","v":0},{"$f":"'Data validation'!$D$29","v":1.22E-5},0,null,null,null,null,{"$f":"SUM(AD13:AD15)","v":0},{"$f":"'Data validation'!$D$29","v":1.22E-5},0]
[null,null,"-","If the engine is not operated, enter '0' for hours operated. Do not leave blank.",null,null,null,null,null,null,null,null,null,null,null,null,{"$f":"SUM(P13:P16)","v":0},{"$f":"'Data validation'!$D$29","v":1.22E-5},0,null,null,null,null,{"$f":"SUM(W13:W16)","v":0},{"$f":"'Data validation'!$D$29","v":1.22E-5},0,null,null,null,null,{"$f":"SUM(AD13:AD16)","v":0},{"$f":"'Data validation'!$D$29","v":1.22E-5},0]
[null,null,null,null,null,null,null,null,null,null,null,null,null,null,null,null,{"$f":"SUM(P13:P17)","v":0},{"$f":"'Data validation'!$D$29","v":1.22E-5},0,null,null,null,null,{"$f":"SUM(W13:W17)","v":0},{"$f":"'Data validation'!$D$29","v":1.22E-5},0,null,null,null,null,{"$f":"SUM(AD13:AD17)","v":0},{"$f":"'Data validation'!$D$29","v":1.22E-5},0]
[null,"3)","By the last day of each month, enter the most recent eligibility values in the 'Eligibility' tab. ",null,null,null,null,null,null,null,null,null,null,null,null,null,{"$f":"SUM(P13:P18)","v":0},{"$f":"'Data validation'!$D$29","v":1.22E-5},0,null,null,null,null,{"$f":"SUM(W13:W18)","v":0},{"$f":"'Data validation'!$D$29","v":1.22E-5},0,null,null,null,null,{"$f":"SUM(AD13:AD18)","v":0},{"$f":"'Data validation'!$D$29","v":1.22E-5},0]
[null,null,"-","Sum the eligibility values for all of the engine calculated with operation hours and enter on the 'Eligibility' tab.",null,null,null,null,null,null,null,null,null,null,null,null,{"$f":"SUM(P13:P19)","v":0},{"$f":"'Data validation'!$D$29","v":1.22E-5},0,null,null,null,null,{"$f":"SUM(W13:W19)","v":0},{"$f":"'Data validation'!$D$29","v":1.22E-5},0,null,null,null,null,{"$f":"SUM(AD13:AD19)","v":0},{"$f":"'Data validation'!$D$29","v":1.22E-5},0]
[null,null,"-","If your business qualifies for reduced recordkeeping, the eligibility number may be calculated on an annual basis, no later than April 1st of the following year. See more information on the 'Eligibility' tab.",null,null,null,null,null,null,null,null,null,null,null,null,{"$f":"SUM(P13:P20)","v":0},{"$f":"'Data validation'!$D$29","v":1.22E-5},0,null,null,null,null,{"$f":"SUM(W13:W20)","v":0},{"$f":"'Data validation'!$D$29","v":1.22E-5},0,null,null,null,null,{"$f":"SUM(AD13:AD20)","v":0},{"$f":"'Data validation'!$D$29","v":1.22E-5},0]
[null,null,null,null,null,null,null,null,null,null,null,null,null,null,null,null,{"$f":"SUM(P13:P21)","v":0},{"$f":"'Data validation'!$D$29","v":1.22E-5},0,null,null,null,null,{"$f":"SUM(W13:W21)","v":0},{"$f":"'Data validation'!$D$29","v":1.22E-5},0,null,null,null,null,{"$f":"SUM(AD13:AD21)","v":0},{"$f":"'Data validation'!$D$29","v":1.22E-5},0]
[null,null,null,null,null,null,null,null,null,null,null,null,null,null,null,null,{"$f":"SUM(P13:P22)","v":0},{"$f":"'Data validation'!$D$29","v":1.22E-5},0,null,null,null,null,{"$f":"SUM(W13:W22)","v":0},{"$f":"'Data validation'!$D$29","v":1.22E-5},0,null,null,null,null,{"$f":"SUM(AD13:AD22)","v":0},{"$f":"'Data validation'!$D$29","v":1.22E-5},0]
[null,null,null,null,null,null,null,null,null,null,null,null,null,null,null,null,{"$f":"SUM(P13:P23)","v":0},{"$f":"'Data validation'!$D$29","v":1.22E-5},0,null,null,null,null,{"$f":"SUM(W13:W23)","v":0},{"$f":"'Data validation'!$D$29","v":1.22E-5},0,null,null,null,null,{"$f":"SUM(AD13:AD23)","v":0},{"$f":"'Data validation'!$D$29","v":1.22E-5},0]
[null,null,null,null,null,null,null,null,null,null,null,null,null,null,null,null,{"$f":"SUM(P13:P24)","v":0},{"$f":"'Data validation'!$D$29","v":1.22E-5},0,null,null,null,null,{"$f":"SUM(W13:W24)","v":0},{"$f":"'Data validation'!$D$29","v":1.22E-5},0,null,null,null,null,{"$f":"SUM(AD13:AD24)","v":0},{"$f":"'Data validation'!$D$29","v":1.22E-5},0]
[null,null,null,null,null,null,null,null,null,null,null,null,null,null,null,null,{"$f":"SUM(P14:P25)","v":0},{"$f":"'Data validation'!$D$29","v":1.22E-5},0,null,null,null,null,{"$f":"SUM(W14:W25)","v":0},{"$f":"'Data validation'!$D$29","v":1.22E-5},0,null,null,null,null,{"$f":"SUM(AD14:AD25)","v":0},{"$f":"'Data validation'!$D$29","v":1.22E-5},0]
[null,null,null,null,null,null,null,null,null,null,null,null,null,null,null,null,0,{"$f":"'Data validation'!$D$29","v":1.22E-5},0,null,null,null,null,0,{"$f":"'Data validation'!$D$29","v":1.22E-5},0,null,null,null,null,0,{"$f":"'Data validation'!$D$29","v":1.22E-5},0]
[null,null,null,null,null,null,null,null,null,null,null,null,null,null,null,null,0,{"$f":"'Data validation'!$D$29","v":1.22E-5},0,null,null,null,null,0,{"$f":"'Data validation'!$D$29","v":1.22E-5},0,null,null,null,null,0,{"$f":"'Data validation'!$D$29","v":1.22E-5},0]
[null,null,null,null,null,null,null,null,null,null,null,null,null,null,null,null,0,{"$f":"'Data validation'!$D$29","v":1.22E-5},0,null,null,null,null,0,{"$f":"'Data validation'!$D$29","v":1.22E-5},0,null,null,null,null,0,{"$f":"'Data validation'!$D$29","v":1.22E-5},0]
[null,null,null,null,null,null,null,null,null,null,null,null,null,null,null,null,0,{"$f":"'Data validation'!$D$29","v":1.22E-5},0,null,null,null,null,0,{"$f":"'Data validation'!$D$29","v":1.22E-5},0,null,null,null,null,0,{"$f":"'Data validation'!$D$29","v":1.22E-5},0]
[null,null,null,null,null,null,null,null,null,null,null,null,null,null,null,null,0,{"$f":"'Data validation'!$D$29","v":1.22E-5},0,null,null,null,null,0,{"$f":"'Data validation'!$D$29","v":1.22E-5},0,null,null,null,null,0,{"$f":"'Data validation'!$D$29","v":1.22E-5},0]
[null,null,null,null,null,null,null,null,null,null,null,null,null,null,null,null,0,{"$f":"'Data validation'!$D$29","v":1.22E-5},0,null,null,null,null,0,{"$f":"'Data validation'!$D$29","v":1.22E-5},0,null,null,null,null,0,{"$f":"'Data validation'!$D$29","v":1.22E-5},0]
[null,null,null,null,null,null,null,null,null,null,null,null,null,null,null,null,0,{"$f":"'Data validation'!$D$29","v":1.22E-5},0,null,null,null,null,0,{"$f":"'Data validation'!$D$29","v":1.22E-5},0,null,null,null,null,0,{"$f":"'Data validation'!$D$29","v":1.22E-5},0]
[null,null,null,null,null,null,null,null,null,null,null,null,null,null,null,null,0,{"$f":"'Data validation'!$D$29","v":1.22E-5},0,null,null,null,null,0,{"$f":"'Data validation'!$D$29","v":1.22E-5},0,null,null,null,null,0,{"$f":"'Data validation'!$D$29","v":1.22E-5},0]
[null,null,null,null,null,null,null,null,null,null,null,null,null,null,null,null,0,{"$f":"'Data validation'!$D$29","v":1.22E-5},0,null,null,null,null,0,{"$f":"'Data validation'!$D$29","v":1.22E-5},0,null,null,null,null,0,{"$f":"'Data validation'!$D$29","v":1.22E-5},0]
[null,null,null,null,null,null,null,null,null,null,null,null,null,null,null,null,0,{"$f":"'Data validation'!$D$29","v":1.22E-5},0,null,null,null,null,0,{"$f":"'Data validation'!$D$29","v":1.22E-5},0,null,null,null,null,0,{"$f":"'Data validation'!$D$29","v":1.22E-5},0]
[null,null,null,null,null,null,null,null,null,null,null,null,null,null,null,null,0,{"$f":"'Data validation'!$D$29","v":1.22E-5},0,null,null,null,null,0,{"$f":"'Data validation'!$D$29","v":1.22E-5},0,null,null,null,null,0,{"$f":"'Data validation'!$D$29","v":1.22E-5},0]
[null,null,null,null,null,null,null,null,null,null,null,null,null,null,null,null,0,{"$f":"'Data validation'!$D$29","v":1.22E-5},0,null,null,null,null,0,{"$f":"'Data validation'!$D$29","v":1.22E-5},0,null,null,null,null,0,{"$f":"'Data validation'!$D$29","v":1.22E-5},0]
[null,null,null,null,null,null,null,null,null,null,null,null,null,null,null,null,0,{"$f":"'Data validation'!$D$29","v":1.22E-5},0,null,null,null,null,0,{"$f":"'Data validation'!$D$29","v":1.22E-5},0,null,null,null,null,0,{"$f":"'Data validation'!$D$29","v":1.22E-5},0]
[null,null,null,null,null,null,null,null,null,null,null,null,null,null,null,null,0,{"$f":"'Data validation'!$D$29","v":1.22E-5},0,null,null,null,null,0,{"$f":"'Data validation'!$D$29","v":1.22E-5},0,null,null,null,null,0,{"$f":"'Data validation'!$D$29","v":1.22E-5},0]
[null,null,null,null,null,null,null,null,null,null,null,null,null,null,null,null,0,{"$f":"'Data validation'!$D$29","v":1.22E-5},0,null,null,null,null,0,{"$f":"'Data validation'!$D$29","v":1.22E-5},0,null,null,null,null,0,{"$f":"'Data validation'!$D$29","v":1.22E-5},0]
[null,null,null,null,null,null,null,null,null,null,null,null,null,null,null,null,0,{"$f":"'Data validation'!$D$29","v":1.22E-5},0,null,null,null,null,0,{"$f":"'Data validation'!$D$29","v":1.22E-5},0,null,null,null,null,0,{"$f":"'Data validation'!$D$29","v":1.22E-5},0]
[null,null,null,null,null,null,null,null,null,null,null,null,null,null,null,null,0,{"$f":"'Data validation'!$D$29","v":1.22E-5},0,null,null,null,null,0,{"$f":"'Data validation'!$D$29","v":1.22E-5},0,null,null,null,null,0,{"$f":"'Data validation'!$D$29","v":1.22E-5},0]
[null,null,null,null,null,null,null,null,null,null,null,null,null,null,null,null,0,{"$f":"'Data validation'!$D$29","v":1.22E-5},0,null,null,null,null,0,{"$f":"'Data validation'!$D$29","v":1.22E-5},0,null,null,null,null,0,{"$f":"'Data validation'!$D$29","v":1.22E-5},0]
[null,null,null,null,null,null,null,null,null,null,null,null,null,null,null,null,0,{"$f":"'Data validation'!$D$29","v":1.22E-5},0,null,null,null,null,0,{"$f":"'Data validation'!$D$29","v":1.22E-5},0,null,null,null,null,0,{"$f":"'Data validation'!$D$29","v":1.22E-5},0]
[null,null,null,null,null,null,null,null,null,null,null,null,null,null,null,null,0,{"$f":"'Data validation'!$D$29","v":1.22E-5},0,null,null,null,null,0,{"$f":"'Data validation'!$D$29","v":1.22E-5},0,null,null,null,null,0,{"$f":"'Data validation'!$D$29","v":1.22E-5},0]
[null,null,null,null,null,null,null,null,null,null,null,null,null,null,null,null,0,{"$f":"'Data validation'!$D$29","v":1.22E-5},0,null,null,null,null,0,{"$f":"'Data validation'!$D$29","v":1.22E-5},0,null,null,null,null,0,{"$f":"'Data validation'!$D$29","v":1.22E-5},0]
[null,null,null,null,null,null,null,null,null,null,null,null,null,null,null,null,0,{"$f":"'Data validation'!$D$29","v":1.22E-5},0,null,null,null,null,0,{"$f":"'Data validation'!$D$29","v":1.22E-5},0,null,null,null,null,0,{"$f":"'Data validation'!$D$29","v":1.22E-5},0]
[null,null,null,null,null,null,null,null,null,null,null,null,null,null,null,null,0,{"$f":"'Data validation'!$D$29","v":1.22E-5},0,null,null,null,null,0,{"$f":"'Data validation'!$D$29","v":1.22E-5},0,null,null,null,null,0,{"$f":"'Data validation'!$D$29","v":1.22E-5},0]
[null,null,null,null,null,null,null,null,null,null,null,null,null,null,null,null,0,{"$f":"'Data validation'!$D$29","v":1.22E-5},0,null,null,null,null,0,{"$f":"'Data validation'!$D$29","v":1.22E-5},0,null,null,null,null,0,{"$f":"'Data validation'!$D$29","v":1.22E-5},0]
[null,null,null,null,null,null,null,null,null,null,null,null,null,null,null,null,0,{"$f":"'Data validation'!$D$29","v":1.22E-5},0,null,null,null,null,0,{"$f":"'Data validation'!$D$29","v":1.22E-5},0,null,null,null,null,0,{"$f":"'Data validation'!$D$29","v":1.22E-5},0]
[null,null,null,null,null,null,null,null,null,null,null,null,null,null,null,null,0,{"$f":"'Data validation'!$D$29","v":1.22E-5},0,null,null,null,null,0,{"$f":"'Data validation'!$D$29","v":1.22E-5},0,null,null,null,null,0,{"$f":"'Data validation'!$D$29","v":1.22E-5},0]
[null,null,null,null,null,null,null,null,null,null,null,null,null,null,null,null,0,{"$f":"'Data validation'!$D$29","v":1.22E-5},0,null,null,null,null,0,{"$f":"'Data validation'!$D$29","v":1.22E-5},0,null,null,null,null,0,{"$f":"'Data validation'!$D$29","v":1.22E-5},0]
[null,null,null,null,null,null,null,null,null,null,null,null,null,null,null,null,0,{"$f":"'Data validation'!$D$29","v":1.22E-5},0,null,null,null,null,0,{"$f":"'Data validation'!$D$29","v":1.22E-5},0,null,null,null,null,0,{"$f":"'Data validation'!$D$29","v":1.22E-5},0]
[null,null,null,null,null,null,null,null,null,null,null,null,null,null,null,null,0,{"$f":"'Data validation'!$D$29","v":1.22E-5},0,null,null,null,null,0,{"$f":"'Data validation'!$D$29","v":1.22E-5},0,null,null,null,null,0,{"$f":"'Data validation'!$D$29","v":1.22E-5},0]
[null,null,null,null,null,null,null,null,null,null,null,null,null,null,null,null,0,{"$f":"'Data validation'!$D$29","v":1.22E-5},0,null,null,null,null,0,{"$f":"'Data validation'!$D$29","v":1.22E-5},0,null,null,null,null,0,{"$f":"'Data validation'!$D$29","v":1.22E-5},0]
[null,null,null,null,null,null,null,null,null,null,null,null,null,null,null,null,0,{"$f":"'Data validation'!$D$29","v":1.22E-5},0,null,null,null,null,0,{"$f":"'Data validation'!$D$29","v":1.22E-5},0,null,null,null,null,0,{"$f":"'Data validation'!$D$29","v":1.22E-5},0]
[null,null,null,null,null,null,null,null,null,null,null,null,null,null,null,null,0,{"$f":"'Data validation'!$D$29","v":1.22E-5},0,null,null,null,null,0,{"$f":"'Data validation'!$D$29","v":1.22E-5},0,null,null,null,null,0,{"$f":"'Data validation'!$D$29","v":1.22E-5},0]
[null,null,null,null,null,null,null,null,null,null,null,null,null,null,null,null,0,{"$f":"'Data validation'!$D$29","v":1.22E-5},0,null,null,null,null,0,{"$f":"'Data validation'!$D$29","v":1.22E-5},0,null,null,null,null,0,{"$f":"'Data validation'!$D$29","v":1.22E-5},0]
[null,null,null,null,null,null,null,null,null,null,null,null,null,null,null,null,{"$f":"SUM(P48:P59)","v":0},{"$f":"'Data validation'!$D$29","v":1.22E-5},{"$f":"IFERROR(O$8*Q59*R59,0)","v":0},null,null,null,null,{"$f":"SUM(W48:W59)","v":0},{"$f":"'Data validation'!$D$29","v":1.22E-5},{"$f":"IFERROR(V$8*X59*Y59,0)","v":0},null,null,null,null,{"$f":"SUM(AD48:AD59)","v":0},{"$f":"'Data validation'!$D$29","v":1.22E-5},{"$f":"IFERROR(AC$8*AE59*AF59,0)","v":0}]
[null,null,null,null,null,null,null,null,null,null,null,null,null,null,null,null,0,{"$f":"'Data validation'!$D$29","v":1.22E-5},0,null,null,null,null,0,{"$f":"'Data validation'!$D$29","v":1.22E-5},0,null,null,null,null,0,{"$f":"'Data validation'!$D$29","v":1.22E-5},0]
[null,null,null,null,null,null,null,null,null,null,null,null,null,null,null,null,0,{"$f":"'Data validation'!$D$29","v":1.22E-5},0,null,null,null,null,0,{"$f":"'Data validation'!$D$29","v":1.22E-5},0,null,null,null,null,0,{"$f":"'Data validation'!$D$29","v":1.22E-5},0]
[null,null,null,null,null,null,null,null,null,null,null,null,null,null,null,null,0,{"$f":"'Data validation'!$D$29","v":1.22E-5},0,null,null,null,null,0,{"$f":"'Data validation'!$D$29","v":1.22E-5},0,null,null,null,null,0,{"$f":"'Data validation'!$D$29","v":1.22E-5},0]
[null,null,null,null,null,null,null,null,null,null,null,null,null,null,null,null,0,{"$f":"'Data validation'!$D$29","v":1.22E-5},0,null,null,null,null,0,{"$f":"'Data validation'!$D$29","v":1.22E-5},0,null,null,null,null,0,{"$f":"'Data validation'!$D$29","v":1.22E-5},0]
[null,null,null,null,null,null,null,null,null,null,null,null,null,null,null,null,0,{"$f":"'Data validation'!$D$29","v":1.22E-5},0,null,null,null,null,0,{"$f":"'Data validation'!$D$29","v":1.22E-5},0,null,null,null,null,0,{"$f":"'Data validation'!$D$29","v":1.22E-5},0]
[null,null,null,null,null,null,null,null,null,null,null,null,null,null,null,null,0,{"$f":"'Data validation'!$D$29","v":1.22E-5},0,null,null,null,null,0,{"$f":"'Data validation'!$D$29","v":1.22E-5},0,null,null,null,null,0,{"$f":"'Data validation'!$D$29","v":1.22E-5},0]
[null,null,null,null,null,null,null,null,null,null,null,null,null,null,null,null,0,{"$f":"'Data validation'!$D$29","v":1.22E-5},0,null,null,null,null,0,{"$f":"'Data validation'!$D$29","v":1.22E-5},0,null,null,null,null,0,{"$f":"'Data validation'!$D$29","v":1.22E-5},0]
[null,null,null,null,null,null,null,null,null,null,null,null,null,null,null,null,0,{"$f":"'Data validation'!$D$29","v":1.22E-5},0,null,null,null,null,0,{"$f":"'Data validation'!$D$29","v":1.22E-5},0,null,null,null,null,0,{"$f":"'Data validation'!$D$29","v":1.22E-5},0]
[null,null,null,null,null,null,null,null,null,null,null,null,null,null,null,null,0,{"$f":"'Data validation'!$D$29","v":1.22E-5},0,null,null,null,null,0,{"$f":"'Data validation'!$D$29","v":1.22E-5},0,null,null,null,null,0,{"$f":"'Data validation'!$D$29","v":1.22E-5},0]
[null,null,null,null,null,null,null,null,null,null,null,null,null,null,null,null,0,{"$f":"'Data validation'!$D$29","v":1.22E-5},0,null,null,null,null,0,{"$f":"'Data validation'!$D$29","v":1.22E-5},0,null,null,null,null,0,{"$f":"'Data validation'!$D$29","v":1.22E-5},0]
[null,null,null,null,null,null,null,null,null,null,null,null,null,null,null,null,0,{"$f":"'Data validation'!$D$29","v":1.22E-5},0,null,null,null,null,0,{"$f":"'Data validation'!$D$29","v":1.22E-5},0,null,null,null,null,0,{"$f":"'Data validation'!$D$29","v":1.22E-5},0]
[null,null,null,null,null,null,null,null,null,null,null,null,null,null,null,null,0,{"$f":"'Data validation'!$D$29","v":1.22E-5},0,null,null,null,null,0,{"$f":"'Data validation'!$D$29","v":1.22E-5},0,null,null,null,null,0,{"$f":"'Data validation'!$D$29","v":1.22E-5},0]
[null,null,null,null,null,null,null,null,null,null,null,null,null,null,null,null,{"$f":"SUM(P61:P72)","v":0},{"$f":"'Data validation'!$D$29","v":1.22E-5},{"$f":"IFERROR(O$8*Q72*R72,0)","v":0},null,null,null,null,{"$f":"SUM(W61:W72)","v":0},{"$f":"'Data validation'!$D$29","v":1.22E-5},{"$f":"IFERROR(V$8*X72*Y72,0)","v":0}]

{"sheet":"VOC-containing","index":4,"n_rows":71,"n_cols":38,"rows_kept":71,"cut":false,"hidden":false,"merged":[[8,20,9,20],[8,24,9,24],[7,4,7,11],[6,17,6,18],[6,19,6,20],[6,21,6,22],[6,23,6,24],[6,33,6,34],[8,25,9,25],[8,26,9,26],[8,27,9,27],[8,28,9,28],[8,29,9,29],[6,25,6,26],[6,27,6,28],[6,29,6,30],[6,31,6,32],[8,31,9,31],[8,32,9,32],[8,33,9,33],[8,34,9,34],[4,25,4,26],[4,27,4,28],[4,29,4,30],[4,31,4,32],[4,33,4,34],[5,25,5,26],[5,27,5,28],[5,29,5,30],[5,31,5,32],[5,33,5,34],[2,25,2,26],[2,27,2,28],[2,29,2,30],[2,31,2,32],[2,33,2,34],[3,25,3,26],[3,27,3,28],[3,29,3,30],[3,31,3,32],[3,33,3,34],[2,21,2,22],[3,21,3,22],[4,21,4,22],[5,21,5,22],[2,23,2,24],[3,23,3,24],[4,23,4,24],[5,23,5,24],[2,17,2,18],[3,17,3,18],[4,17,4,18],[5,17,5,18],[2,19,2,20],[3,19,3,20],[4,19,4,20],[5,19,5,20],[2,15,2,16],[3,15,3,16],[8,16,9,16],[4,15,4,16],[5,15,5,16],[6,15,6,16],[15,4,15,11],[21,2,21,11],[22,3,22,11],[23,3,24,11],[16,4,17,11],[18,3,19,11],[12,2,12,11],[14,4,14,11],[8,17,9,17],[8,18,9,18],[8,19,9,19],[8,5,8,11],[8,13,9,13],[8,14,9,14],[8,15,9,15],[9,5,10,11],[8,37,9,37],[8,21,9,21],[8,22,9,22],[8,23,9,23],[8,30,9,30],[8,36,9,36],[8,35,9,35],[4,3,4,11],[6,4,6,11],[5,4,5,11],[1,1,1,11],[3,2,3,11]]}
[null,null,null,null,null,null,null,null,null,null,null,{"$f":"Instructions!O4","v":"p-sbap5-33  •  6/6/23"}]
[null,"VOC-containing material use"]
[null,null,null,null,null,null,null,null,null,null,null,null,null,null,"Material name"]
[null,"1)","Enter the VOC-containing materials.",null,null,null,null,null,null,null,null,null,null,null,"SDS/product number"]
[null,null,"-","Each material can be identified along the top of the table to the right.",null,null,null,null,null,null,null,null,null,null,"% VOC (by weight)"]
[null,null,null,"•","Material name - product name or name used by the business",null,null,null,null,null,null,null,null,null,"Density (lb/gallon)"]
[null,null,null,"•","SDS/product number - helps to connect the material information to the SDS",null,null,null,null,null,null,null,null,null,"VOC (lb/gallon)",{"$f":"P5*P6","v":0},null,{"$f":"R5*R6","v":0},null,{"$f":"T5*T6","v":0},null,{"$f":"V5*V6","v":0},null,{"$f":"X5*X6","v":0},null,{"$f":"Z5*Z6","v":0},null,{"$f":"AB5*AB6","v":0},null,{"$f":"AD5*AD6","v":0},null,{"$f":"AF5*AF6","v":0},null,{"$f":"AH5*AH6","v":0}]
[null,null,null,"•","% VOC and density - listed on the SDS or signed statement from the supplier"]
[null,null,null,null,"◦","The VOC content and density are necessary for the calculations. ",null,null,null,null,null,null,null,"Date recorded","Month and year","Purchased or Used","VOC emissions","Purchased or Used","VOC emissions","Purchased or Used","VOC emissions","Purchased or Used","VOC emissions","Purchased or Used","VOC emissions","Purchased or Used","VOC emissions","Purchased or Used","VOC emissions","Purchased or Used","VOC emissions","Purchased or Used","VOC emissions","Purchased or Used","VOC emissions","Monthly sum","12-month rolling sum","Eligibility value"]
[null,null,null,null,"◦","You must maintain a record of each safety data sheet (SDS) or a signed statement from the product supplier that states the maximum VOC content for each VOC-containing material. "]
[null,null,null,null,null,null,null,null,null,null,null,null,null,"when data is entered","of purchase or use","gallons","pounds","gallons","pounds","gallons","pounds","gallons","pounds","gallons","pounds","gallons","pounds","gallons","pounds","gallons","pounds","gallons","pounds","gallons","pounds","lb VOC/month","lb VOC/12-months","For total VOC"]
[null,null,null,null,null,null,null,null,null,null,null,null,null,null,null,null,{"$f":"P12*$P$7","v":0},null,{"$f":"R12*$R$7","v":0},null,{"$f":"T12*$T$7","v":0},null,{"$f":"V12*$V$7","v":0},null,{"$f":"X12*$X$7","v":0},null,{"$f":"Z12*$Z$7","v":0},null,{"$f":"AB12*$AB$7","v":0},null,{"$f":"AD12*$AD$7","v":0},null,{"$f":"AF12*$AF$7","v":0},null,{"$f":"AH12*$AH$7","v":0},{"$f":"SUM(Q12,S12,U12,W12,Y12,AA12,AC12,AE12,AG12,AI12)","v":0},{"$f":"AJ12","v":0},{"$f":"AK12*1/2000","v":0}]
[null,"2)","By the last day of each month, record the amount VOC-containing material for the month.",null,null,null,null,null,null,null,null,null,null,null,null,null,{"$f":"P13*$P$7","v":0},null,{"$f":"R13*$R$7","v":0},null,{"$f":"T13*$T$7","v":0},null,{"$f":"V13*$V$7","v":0},null,{"$f":"X13*$X$7","v":0},null,{"$f":"Z13*$Z$7","v":0},null,{"$f":"AB13*$AB$7","v":0},null,{"$f":"AD13*$AD$7","v":0},null,{"$f":"AF13*$AF$7","v":0},null,{"$f":"AH13*$AH$7","v":0},{"$f":"SUM(Q13,S13,U13,W13,Y13,AA13,AC13,AE13,AG13,AI13)","v":0},{"$f":"SUM(AJ12:AJ13)","v":0},{"$f":"AK13*1/2000","v":0}]
[null,null,"-","Enter your information in the blue boxes.",null,null,null,null,null,null,null,null,null,null,null,null,0,null,0,null,0,null,0,null,0,null,0,null,0,null,0,null,0,null,0,0,{"$f":"SUM(AJ12:AJ14)","v":0},0]
[null,null,null,"•","date you are entering the information",null,null,null,null,null,null,null,null,null,null,null,0,null,0,null,0,null,0,null,0,null,0,null,0,null,0,null,0,null,0,0,{"$f":"SUM(AJ12:AJ15)","v":0},0]
[null,null,null,"•","month and year that the gallons of VOC-containing material is being recorded ",null,null,null,null,null,null,null,null,null,null,null,0,null,0,null,0,null,0,null,0,null,0,null,0,null,0,null,0,null,0,0,{"$f":"SUM(AJ12:AJ16)","v":0},0]
[null,null,null,"•","quantity of each VOC-containing materials that was purchased or used (whichever was stated in your Option C application). ",null,null,null,null,null,null,null,null,null,null,null,0,null,0,null,0,null,0,null,0,null,0,null,0,null,0,null,0,null,0,0,{"$f":"SUM(AJ12:AJ17)","v":0},0]
[null,null,null,null,null,null,null,null,null,null,null,null,null,null,null,null,0,null,0,null,0,null,0,null,0,null,0,null,0,null,0,null,0,null,0,0,{"$f":"SUM(AJ12:AJ18)","v":0},0]
[null,null,"-","If VOC-containing material is not used during the month, enter '0' for amount purchased or used. Do not leave blank or skip months in recordkeeping.",null,null,null,null,null,null,null,null,null,null,null,null,0,null,0,null,0,null,0,null,0,null,0,null,0,null,0,null,0,null,0,0,{"$f":"SUM(AJ12:AJ19)","v":0},0]
[null,null,null,null,null,null,null,null,null,null,null,null,null,null,null,null,0,null,0,null,0,null,0,null,0,null,0,null,0,null,0,null,0,null,0,0,{"$f":"SUM(AJ12:AJ20)","v":0},0]
[null,null,null,null,null,null,null,null,null,null,null,null,null,null,null,null,0,null,0,null,0,null,0,null,0,null,0,null,0,null,0,null,0,null,0,0,{"$f":"SUM(AJ12:AJ21)","v":0},0]
[null,"3)","By the last day of each month, enter the most recent eligibility value in the 'Eligibility' tab. ",null,null,null,null,null,null,null,null,null,null,null,null,null,0,null,0,null,0,null,0,null,0,null,0,null,0,null,0,null,0,null,0,0,{"$f":"SUM(AJ12:AJ22)","v":0},0]
[null,null,"-","Record the eligibility value for VOC-containing materials.",null,null,null,null,null,null,null,null,null,null,null,null,0,null,0,null,0,null,0,null,0,null,0,null,0,null,0,null,0,null,0,0,{"$f":"SUM(AJ12:AJ23)","v":0},0]
[null,null,"-","If your business qualifies for reduced recordkeeping, the eligibility number may be calculated on an annual basis, no later than April 1st of the following year. See more information on the 'Eligibility' tab.",null,null,null,null,null,null,null,null,null,null,null,null,0,null,0,null,0,null,0,null,0,null,0,null,0,null,0,null,0,null,0,0,{"$f":"SUM(AJ13:AJ24)","v":0},0]
[null,null,null,null,null,null,null,null,null,null,null,null,null,null,null,null,0,null,0,null,0,null,0,null,0,null,0,null,0,null,0,null,0,null,0,0,{"$f":"SUM(AJ14:AJ25)","v":0},0]
[null,null,null,null,null,null,null,null,null,null,null,null,null,null,null,null,0,null,0,null,0,null,0,null,0,null,0,null,0,null,0,null,0,null,0,0,0,0]
[null,null,null,null,null,null,null,null,null,null,null,null,null,null,null,null,0,null,0,null,0,null,0,null,0,null,0,null,0,null,0,null,0,null,0,0,0,0]
[null,null,null,null,null,null,null,null,null,null,null,null,null,null,null,null,0,null,0,null,0,null,0,null,0,null,0,null,0,null,0,null,0,null,0,0,0,0]
[null,null,null,null,null,null,null,null,null,null,null,null,null,null,null,null,0,null,0,null,0,null,0,null,0,null,0,null,0,null,0,null,0,null,0,0,0,0]
[null,null,null,null,null,null,null,null,null,null,null,null,null,null,null,null,0,null,0,null,0,null,0,null,0,null,0,null,0,null,0,null,0,null,0,0,0,0]
[null,null,null,null,null,null,null,null,null,null,null,null,null,null,null,null,0,null,0,null,0,null,0,null,0,null,0,null,0,null,0,null,0,null,0,0,0,0]
[null,null,null,null,null,null,null,null,null,null,null,null,null,null,null,null,0,null,0,null,0,null,0,null,0,null,0,null,0,null,0,null,0,null,0,0,0,0]
[null,null,null,null,null,null,null,null,null,null,null,null,null,null,null,null,0,null,0,null,0,null,0,null,0,null,0,null,0,null,0,null,0,null,0,0,0,0]
[null,null,null,null,null,null,null,null,null,null,null,null,null,null,null,null,0,null,0,null,0,null,0,null,0,null,0,null,0,null,0,null,0,null,0,0,0,0]
[null,null,null,null,null,null,null,null,null,null,null,null,null,null,null,null,0,null,0,null,0,null,0,null,0,null,0,null,0,null,0,null,0,null,0,0,0,0]
[null,null,null,null,null,null,null,null,null,null,null,null,null,null,null,null,0,null,0,null,0,null,0,null,0,null,0,null,0,null,0,null,0,null,0,0,0,0]
[null,null,null,null,null,null,null,null,null,null,null,null,null,null,null,null,0,null,0,null,0,null,0,null,0,null,0,null,0,null,0,null,0,null,0,0,0,0]
[null,null,null,null,null,null,null,null,null,null,null,null,null,null,null,null,0,null,0,null,0,null,0,null,0,null,0,null,0,null,0,null,0,null,0,0,0,0]
[null,null,null,null,null,null,null,null,null,null,null,null,null,null,null,null,0,null,0,null,0,null,0,null,0,null,0,null,0,null,0,null,0,null,0,0,0,0]
[null,null,null,null,null,null,null,null,null,null,null,null,null,null,null,null,0,null,0,null,0,null,0,null,0,null,0,null,0,null,0,null,0,null,0,0,0,0]
[null,null,null,null,null,null,null,null,null,null,null,null,null,null,null,null,0,null,0,null,0,null,0,null,0,null,0,null,0,null,0,null,0,null,0,0,0,0]
[null,null,null,null,null,null,null,null,null,null,null,null,null,null,null,null,0,null,0,null,0,null,0,null,0,null,0,null,0,null,0,null,0,null,0,0,0,0]
[null,null,null,null,null,null,null,null,null,null,null,null,null,null,null,null,0,null,0,null,0,null,0,null,0,null,0,null,0,null,0,null,0,null,0,0,0,0]
[null,null,null,null,null,null,null,null,null,null,null,null,null,null,null,null,0,null,0,null,0,null,0,null,0,null,0,null,0,null,0,null,0,null,0,0,0,0]
[null,null,null,null,null,null,null,null,null,null,null,null,null,null,null,null,0,null,0,null,0,null,0,null,0,null,0,null,0,null,0,null,0,null,0,0,0,0]
[null,null,null,null,null,null,null,null,null,null,null,null,null,null,null,null,0,null,0,null,0,null,0,null,0,null,0,null,0,null,0,null,0,null,0,0,0,0]
[null,null,null,null,null,null,null,null,null,null,null,null,null,null,null,null,0,null,0,null,0,null,0,null,0,null,0,null,0,null,0,null,0,null,0,0,0,0]
[null,null,null,null,null,null,null,null,null,null,null,null,null,null,null,null,0,null,0,null,0,null,0,null,0,null,0,null,0,null,0,null,0,null,0,0,0,0]
[null,null,null,null,null,null,null,null,null,null,null,null,null,null,null,null,0,null,0,null,0,null,0,null,0,null,0,null,0,null,0,null,0,null,0,0,0,0]
[null,null,null,null,null,null,null,null,null,null,null,null,null,null,null,null,0,null,0,null,0,null,0,null,0,null,0,null,0,null,0,null,0,null,0,0,0,0]
[null,null,null,null,null,null,null,null,null,null,null,null,null,null,null,null,0,null,0,null,0,null,0,null,0,null,0,null,0,null,0,null,0,null,0,0,0,0]
[null,null,null,null,null,null,null,null,null,null,null,null,null,null,null,null,0,null,0,null,0,null,0,null,0,null,0,null,0,null,0,null,0,null,0,0,0,0]
[null,null,null,null,null,null,null,null,null,null,null,null,null,null,null,null,0,null,0,null,0,null,0,null,0,null,0,null,0,null,0,null,0,null,0,0,0,0]
[null,null,null,null,null,null,null,null,null,null,null,null,null,null,null,null,0,null,0,null,0,null,0,null,0,null,0,null,0,null,0,null,0,null,0,0,0,0]
[null,null,null,null,null,null,null,null,null,null,null,null,null,null,null,null,0,null,0,null,0,null,0,null,0,null,0,null,0,null,0,null,0,null,0,0,0,0]
[null,null,null,null,null,null,null,null,null,null,null,null,null,null,null,null,0,null,0,null,0,null,0,null,0,null,0,null,0,null,0,null,0,null,0,0,0,0]
[null,null,null,null,null,null,null,null,null,null,null,null,null,null,null,null,0,null,0,null,0,null,0,null,0,null,0,null,0,null,0,null,0,null,0,0,0,0]
[null,null,null,null,null,null,null,null,null,null,null,null,null,null,null,null,{"$f":"P58*$P$7","v":0},null,{"$f":"R58*$R$7","v":0},null,{"$f":"T58*$T$7","v":0},null,{"$f":"V58*$V$7","v":0},null,{"$f":"X58*$X$7","v":0},null,{"$f":"Z58*$Z$7","v":0},null,{"$f":"AB58*$AB$7","v":0},null,{"$f":"AD58*$AD$7","v":0},null,{"$f":"AF58*$AF$7","v":0},null,{"$f":"AH58*$AH$7","v":0},{"$f":"SUM(Q58,S58,U58,W58,Y58,AA58,AC58,AE58,AG58,AI58)","v":0},{"$f":"SUM(AJ47:AJ58)","v":0},{"$f":"AK58*1/2000","v":0}]
[null,null,null,null,null,null,null,null,null,null,null,null,null,null,null,null,0,null,0,null,0,null,0,null,0,null,0,null,0,null,0,null,0,null,0,0,0,0]
[null,null,null,null,null,null,null,null,null,null,null,null,null,null,null,null,0,null,0,null,0,null,0,null,0,null,0,null,0,null,0,null,0,null,0,0,0,0]
[null,null,null,null,null,null,null,null,null,null,null,null,null,null,null,null,0,null,0,null,0,null,0,null,0,null,0,null,0,null,0,null,0,null,0,0,0,0]
[null,null,null,null,null,null,null,null,null,null,null,null,null,null,null,null,0,null,0,null,0,null,0,null,0,null,0,null,0,null,0,null,0,null,0,0,0,0]
[null,null,null,null,null,null,null,null,null,null,null,null,null,null,null,null,0,null,0,null,0,null,0,null,0,null,0,null,0,null,0,null,0,null,0,0,0,0]
[null,null,null,null,null,null,null,null,null,null,null,null,null,null,null,null,0,null,0,null,0,null,0,null,0,null,0,null,0,null,0,null,0,null,0,0,0,0]
[null,null,null,null,null,null,null,null,null,null,null,null,null,null,null,null,0,null,0,null,0,null,0,null,0,null,0,null,0,null,0,null,0,null,0,0,0,0]
[null,null,null,null,null,null,null,null,null,null,null,null,null,null,null,null,0,null,0,null,0,null,0,null,0,null,0,null,0,null,0,null,0,null,0,0,0,0]
[null,null,null,null,null,null,null,null,null,null,null,null,null,null,null,null,0,null,0,null,0,null,0,null,0,null,0,null,0,null,0,null,0,null,0,0,0,0]
[null,null,null,null,null,null,null,null,null,null,null,null,null,null,null,null,0,null,0,null,0,null,0,null,0,null,0,null,0,null,0,null,0,null,0,0,0,0]
[null,null,null,null,null,null,null,null,null,null,null,null,null,null,null,null,0,null,0,null,0,null,0,null,0,null,0,null,0,null,0,null,0,null,0,0,0,0]
[null,null,null,null,null,null,null,null,null,null,null,null,null,null,null,null,0,null,0,null,0,null,0,null,0,null,0,null,0,null,0,null,0,null,0,0,0,0]
[null,null,null,null,null,null,null,null,null,null,null,null,null,null,null,null,0,null,0,null,0,null,0,null,0,null,0,null,0,null,0,null,0,null,0,0,0,0]

{"sheet":"Eligibility","index":5,"n_rows":68,"n_cols":21,"rows_kept":68,"cut":false,"hidden":false,"merged":[[2,13,2,20],[2,1,2,11],[4,18,6,18],[4,19,6,19],[4,20,6,20],[5,3,6,11],[1,13,1,20],[30,4,31,11],[4,13,6,13],[4,14,6,14],[4,15,6,16],[4,17,6,17],[24,3,24,11],[25,4,26,11],[27,4,27,11],[28,3,28,11],[29,4,29,11],[19,3,19,11],[20,4,20,11],[1,1,1,11],[21,4,23,11],[4,2,4,11],[7,4,8,11],[11,3,11,11],[10,2,10,11],[12,3,13,11],[18,2,18,11],[14,4,15,11],[16,3,16,11]]}
[null,null,null,null,null,null,null,null,null,null,null,{"$f":"Instructions!O4","v":"p-sbap5-33  •  6/6/23"}]
[null,"Eligibility tracking",null,null,null,null,null,null,null,null,null,null,null,"Eligibility number summary"]
[null,"Complete the following steps monthly unless the facility qualifies for reduced recordkeeping.",null,null,null,null,null,null,null,null,null,null,null,"Content is based on the information entered into this calculator and is not an official MPCA permit determination."]
[]
[null,"1)","Complete the blue tabs before entering information here.",null,null,null,null,null,null,null,null,null,null,"Month and year","Boiler \neligibility value","Engine eligibility value\ndo not enter fuel and hours for the same engine(s)",null,"VOC \neligibility value","Eligibility number","Option C\nlimit","Option C reduced record-keeping"]
[null,null,"-","Each month, enter the amount, purchased or used, of boiler fuel (indirect heating units), engine fuel or engine operation hours (reciprocating internal combustion engines), and VOC-containing material in the blue tabs."]
[]
[null,null,null,"•","The blue tabs will calculate an eligibility value which is the amount that each boiler fuel, engine fuel, engine (if entering operation hours), and total VOC-containing material contributes to the eligibility number.",null,null,null,null,null,null,null,null,"(of record)",null,"(by fuel) ","(by hours)",null,"12-month rolling"]
[null,null,null,null,null,null,null,null,null,null,null,null,null,null,null,null,null,null,{"$f":"SUM(O9:R9)","v":0},50,25]
[null,null,null,null,null,null,null,null,null,null,null,null,null,null,null,null,null,null,{"$f":"SUM(O10:R10)","v":0},50,25]
[null,"2)","Calculate your 'Eligibility number' monthly. ",null,null,null,null,null,null,null,null,null,null,null,null,null,null,null,0,50,25]
[null,null,"-","From the blue tabs, identify the most recent and corresponding eligibility values by month and year. ",null,null,null,null,null,null,null,null,null,null,null,null,null,null,0,50,25]
[null,null,"-","Enter the eligibility value from the blue tabs (in green cells) and enter it in the blue cells to the right, for the current month and year.   ",null,null,null,null,null,null,null,null,null,null,null,null,null,null,0,50,25]
[null,null,null,null,null,null,null,null,null,null,null,null,null,null,null,null,null,null,0,50,25]
[null,null,null,"•","You must sum the eligibility values on the blue tabs if you have more than one boiler fuel, engine fuel, or engine (based on operation hours).",null,null,null,null,null,null,null,null,null,null,null,null,null,0,50,25]
[null,null,null,null,null,null,null,null,null,null,null,null,null,null,null,null,null,null,0,50,25]
[null,null,"-","The 12-month rolling eligibility number will calculate automatically in the green \"Eligibility number: column.",null,null,null,null,null,null,null,null,null,null,null,null,null,null,0,50,25]
[null,null,null,null,null,null,null,null,null,null,null,null,null,null,null,null,null,null,0,50,25]
[null,"3)","The 'Eligibility number' for all activities must be less than 50.",null,null,null,null,null,null,null,null,null,null,null,null,null,null,null,0,50,25]
[null,null,"-","The eligibility number is based on ",null,null,null,null,null,null,null,null,null,null,null,null,null,null,0,50,25]
[null,null,null,"◦","the amount purchased or used of fuel, VOC-containing material, or engine operation hours",null,null,null,null,null,null,null,null,null,null,null,null,null,0,50,25]
[null,null,null,"◦","a multiplication factor which is identified in the permit based on the fuel type used in a boiler or engine or the operation hours of an engine. VOC-containing material use or purchase does not use a multiplication factor.",null,null,null,null,null,null,null,null,null,null,null,null,null,0,50,25]
[null,null,null,null,null,null,null,null,null,null,null,null,null,null,null,null,null,null,0,50,25]
[null,null,null,null,null,null,null,null,null,null,null,null,null,null,null,null,null,null,0,50,25]
[null,null,"-","If your eligibility number in the previous year was less than 25",null,null,null,null,null,null,null,null,null,null,null,null,null,null,0,50,25]
[null,null,null,"◦","continue maintaining records of purchase or use through out the year, material safety data sheets (SDS), and fuel sulfur content. ",null,null,null,null,null,null,null,null,null,null,null,null,null,0,50,25]
[null,null,null,null,null,null,null,null,null,null,null,null,null,null,null,null,null,null,0,50,25]
[null,null,null,"◦","calculate and report the eligibility number every year by April 1st. ",null,null,null,null,null,null,null,null,null,null,null,null,null,0,50,25]
[null,null,"-","If your eligibility number was less than 25 and then exceeds 25,",null,null,null,null,null,null,null,null,null,null,null,null,null,null,0,50,25]
[null,null,null,"◦","you must return to keeping all records and calculating the eligibility number on a monthly basis. ",null,null,null,null,null,null,null,null,null,null,null,null,null,0,50,25]
[null,null,null,"◦","you can return to the reduced record keeping if you demonstrate for two consecutive years that your eligibility number has dropped below 25.",null,null,null,null,null,null,null,null,null,null,null,null,null,0,50,25]
[null,null,null,null,null,null,null,null,null,null,null,null,null,null,null,null,null,null,0,50,25]
[null,null,null,null,null,null,null,null,null,null,null,null,null,null,null,null,null,null,0,50,25]
[null,null,null,null,null,null,null,null,null,null,null,null,null,null,null,null,null,null,0,50,25]
[null,null,null,null,null,null,null,null,null,null,null,null,null,null,null,null,null,null,0,50,25]
[null,null,null,null,null,null,null,null,null,null,null,null,null,null,null,null,null,null,0,50,25]
[null,null,null,null,null,null,null,null,null,null,null,null,null,null,null,null,null,null,0,50,25]
[null,null,null,null,null,null,null,null,null,null,null,null,null,null,null,null,null,null,0,50,25]
[null,null,null,null,null,null,null,null,null,null,null,null,null,null,null,null,null,null,0,50,25]
[null,null,null,null,null,null,null,null,null,null,null,null,null,null,null,null,null,null,0,50,25]
[null,null,null,null,null,null,null,null,null,null,null,null,null,null,null,null,null,null,0,50,25]
[null,null,null,null,null,null,null,null,null,null,null,null,null,null,null,null,null,null,0,50,25]
[null,null,null,null,null,null,null,null,null,null,null,null,null,null,null,null,null,null,0,50,25]
[null,null,null,null,null,null,null,null,null,null,null,null,null,null,null,null,null,null,0,50,25]
[null,null,null,null,null,null,null,null,null,null,null,null,null,null,null,null,null,null,0,50,25]
[null,null,null,null,null,null,null,null,null,null,null,null,null,null,null,null,null,null,0,50,25]
[null,null,null,null,null,null,null,null,null,null,null,null,null,null,null,null,null,null,0,50,25]
[null,null,null,null,null,null,null,null,null,null,null,null,null,null,null,null,null,null,0,50,25]
[null,null,null,null,null,null,null,null,null,null,null,null,null,null,null,null,null,null,0,50,25]
[null,null,null,null,null,null,null,null,null,null,null,null,null,null,null,null,null,null,0,50,25]
[null,null,null,null,null,null,null,null,null,null,null,null,null,null,null,null,null,null,0,50,25]
[null,null,null,null,null,null,null,null,null,null,null,null,null,null,null,null,null,null,0,50,25]
[null,null,null,null,null,null,null,null,null,null,null,null,null,null,null,null,null,null,0,50,25]
[null,null,null,null,null,null,null,null,null,null,null,null,null,null,null,null,null,null,0,50,25]
[null,null,null,null,null,null,null,null,null,null,null,null,null,null,null,null,null,null,{"$f":"SUM(O55:R55)","v":0},50,25]
[null,null,null,null,null,null,null,null,null,null,null,null,null,null,null,null,null,null,0,50,25]
[null,null,null,null,null,null,null,null,null,null,null,null,null,null,null,null,null,null,0,50,25]
[null,null,null,null,null,null,null,null,null,null,null,null,null,null,null,null,null,null,0,50,25]
[null,null,null,null,null,null,null,null,null,null,null,null,null,null,null,null,null,null,0,50,25]
[null,null,null,null,null,null,null,null,null,null,null,null,null,null,null,null,null,null,0,50,25]
[null,null,null,null,null,null,null,null,null,null,null,null,null,null,null,null,null,null,0,50,25]
[null,null,null,null,null,null,null,null,null,null,null,null,null,null,null,null,null,null,0,50,25]
[null,null,null,null,null,null,null,null,null,null,null,null,null,null,null,null,null,null,0,50,25]
[null,null,null,null,null,null,null,null,null,null,null,null,null,null,null,null,null,null,0,50,25]
[null,null,null,null,null,null,null,null,null,null,null,null,null,null,null,null,null,null,{"$f":"SUM(O65:R65)","v":0},50,25]
[null,null,null,null,null,null,null,null,null,null,null,null,null,null,null,null,null,null,0,50,25]
[null,null,null,null,null,null,null,null,null,null,null,null,null,null,null,null,null,null,0,50,25]
[null,null,null,null,null,null,null,null,null,null,null,null,null,null,null,null,null,null,0,50,25]

{"sheet":"Sulfur tracking","index":6,"n_rows":83,"n_cols":12,"rows_kept":83,"cut":false,"hidden":false,"merged":[[79,10,79,11],[80,10,80,11],[81,10,81,11],[82,10,82,11],[1,1,1,11],[74,10,74,11],[75,10,75,11],[76,10,76,11],[77,10,77,11],[78,10,78,11],[69,10,69,11],[70,10,70,11],[71,10,71,11],[72,10,72,11],[73,10,73,11],[64,10,64,11],[65,10,65,11],[66,10,66,11],[67,10,67,11],[68,10,68,11],[59,10,59,11],[60,10,60,11],[61,10,61,11],[62,10,62,11],[63,10,63,11],[54,10,54,11],[55,10,55,11],[56,10,56,11],[57,10,57,11],[58,10,58,11],[49,10,49,11],[50,10,50,11],[51,10,51,11],[52,10,52,11],[53,10,53,11],[44,10,44,11],[45,10,45,11],[46,10,46,11],[47,10,47,11],[48,10,48,11],[39,10,39,11],[40,10,40,11],[41,10,41,11],[42,10,42,11],[43,10,43,11],[34,10,34,11],[35,10,35,11],[36,10,36,11],[37,10,37,11],[38,10,38,11],[29,10,29,11],[30,10,30,11],[31,10,31,11],[32,10,32,11],[33,10,33,11],[24,10,24,11],[25,10,25,11],[26,10,26,11],[27,10,27,11],[28,10,28,11],[19,10,19,11],[20,10,20,11],[21,10,21,11],[22,10,22,11],[23,10,23,11],[78,5,78,7],[79,5,79,7],[80,5,80,7],[81,5,81,7],[82,5,82,7],[73,5,73,7],[74,5,74,7],[75,5,75,7],[76,5,76,7],[77,5,77,7],[68,5,68,7],[69,5,69,7],[70,5,70,7],[71,5,71,7],[72,5,72,7],[63,5,63,7],[64,5,64,7],[65,5,65,7],[66,5,66,7],[67,5,67,7],[58,5,58,7],[59,5,59,7],[60,5,60,7],[61,5,61,7],[62,5,62,7],[53,5,53,7],[54,5,54,7],[55,5,55,7],[56,5,56,7],[57,5,57,7],[48,5,48,7],[49,5,49,7],[50,5,50,7],[51,5,51,7],[52,5,52,7],[43,5,43,7],[44,5,44,7],[45,5,45,7],[46,5,46,7],[47,5,47,7],[39,5,39,7],[40,5,40,7],[41,5,41,7],[42,5,42,7],[33,5,33,7],[34,5,34,7],[35,5,35,7],[36,5,36,7],[37,5,37,7],[38,5,38,7],[3,10,3,11],[3,8,3,9],[4,2,5,6],[3,1,3,6],[8,2,9,6],[6,2,7,6],[10,2,13,6],[18,10,18,11],[15,10,17,11],[8,10,8,11],[4,10,4,11],[18,1,18,4],[15,9,16,9],[12,8,12,9],[11,8,11,9],[10,8,10,9],[9,8,9,9],[8,8,8,9],[6,8,6,9],[7,8,7,9],[5,8,5,9],[4,8,4,9],[15,8,16,8],[9,10,12,11],[53,1,53,4],[42,1,42,4],[43,1,43,4],[44,1,44,4],[33,1,33,4],[34,1,34,4],[35,1,35,4],[36,1,36,4],[37,1,37,4],[39,1,39,4],[40,1,40,4],[41,1,41,4],[15,5,17,7],[19,5,19,7],[20,5,20,7],[21,5,21,7],[22,5,22,7],[23,5,23,7],[21,1,21,4],[22,1,22,4],[23,1,23,4],[15,1,17,4],[24,1,24,4],[25,1,25,4],[26,1,26,4],[30,1,30,4],[26,5,26,7],[27,5,27,7],[19,1,19,4],[20,1,20,4],[18,5,18,7],[68,1,68,4],[69,1,69,4],[70,1,70,4],[71,1,71,4],[72,1,72,4],[73,1,73,4],[67,1,67,4],[56,1,56,4],[57,1,57,4],[58,1,58,4],[59,1,59,4],[60,1,60,4],[61,1,61,4],[62,1,62,4],[63,1,63,4],[64,1,64,4],[65,1,65,4],[66,1,66,4],[80,1,80,4],[81,1,81,4],[82,1,82,4],[74,1,74,4],[75,1,75,4],[76,1,76,4],[77,1,77,4],[78,1,78,4],[79,1,79,4],[5,10,7,11],[55,1,55,4],[54,1,54,4],[38,1,38,4],[51,1,51,4],[52,1,52,4],[45,1,45,4],[46,1,46,4],[47,1,47,4],[48,1,48,4],[49,1,49,4],[50,1,50,4],[28,5,28,7],[29,5,29,7],[30,5,30,7],[31,5,31,7],[32,5,32,7],[27,1,27,4],[28,1,28,4],[29,1,29,4],[24,5,24,7],[25,5,25,7],[31,1,31,4],[32,1,32,4]]}
[null,null,null,null,null,null,null,null,null,null,null,{"$f":"Instructions!O4","v":"p-sbap5-33  •  6/6/23"}]
[null,"Sulfur tracking: by fuel delivery"]
[]
[null,"For each fuel listed on the right, ",null,null,null,null,null,null,"Fuel Type",null,"Specification method"]
[null,"•","enter the date of fuel delivery and choose the type of fuel from the drop-down box.",null,null,null,null,null,"Kerosene",null,"ASTM D 3699 (Vol 05.03)"]
[null,null,null,null,null,null,null,null,"No. 1 and No. 2 distillate",null,"ASTM D 396 (Vol 05.01)"]
[null,"•","the max sulfur content allowed will appear in the white sulfur limit box. ",null,null,null,null,null,"No. 4 distillate"]
[null,null,null,null,null,null,null,null,"No. 5 and No. 6 residual"]
[null,"•","enter the actual sulfur content of the fuel delivered.",null,null,null,null,null,"Petroleum coke",null,"ASTM C 1160 (Vol 04.05)"]
[null,null,null,null,null,null,null,null,"Lignite A coal",null,"ASTM D 388 (Vol 05.05)"]
[null,"•","keep a record of the vendor certification or by independent lab test results confirming the sulfur content of the fuel using the ASTM method listed.",null,null,null,null,null,"Sub-bituminous coal"]
[null,null,null,null,null,null,null,null,"Bituminous coal"]
[null,null,null,null,null,null,null,null,"Anthracite coal"]
[null,null,null,null,null,null,null,null,null,null,null,"American Society for Testing & Materials (ASTM)"]
[]
[null,"Date of fuel delivery",null,null,null,"Fuel Type",null,null,"Sulfur limit","Actual sulfur content","Identify the records confirming the sulfur content of this batch"]
[]
[null,null,null,null,null,null,null,null,"(%)","(%)"]
[null,null,null,null,null,"Choose one",null,null,{"$f":"IF(F19='Data validation'!$B$34,'Data validation'!$C$34,IF(F19='Data validation'!$B$43,'Data validation'!$C$43,IF(F19='Data validation'!$B$42,'Data validation'!$C$42,IF(F19='Data validation'!$B$41,'Data validation'!$C$41,IF(F19='Data validation'!$B$40,'Data validation'!$C$40,IF(F19='Data validation'!$B$39,'Data validation'!$C$39,IF(F19='Data validation'!$B$37,'Data validation'!$C$37,IF(F19='Data validation'!$B$38,'Data validation'!$C$38,IF(F19='Data validation'!$B$36,'Data validation'!$C$36,IF(F19='Data validation'!$B$35,'Data validation'!$C$35))))))))))","v":"--"}]
[null,null,null,null,null,"Choose one",null,null,{"$f":"IF(F20='Data validation'!$B$34,'Data validation'!$C$34,IF(F20='Data validation'!$B$43,'Data validation'!$C$43,IF(F20='Data validation'!$B$42,'Data validation'!$C$42,IF(F20='Data validation'!$B$41,'Data validation'!$C$41,IF(F20='Data validation'!$B$40,'Data validation'!$C$40,IF(F20='Data validation'!$B$39,'Data validation'!$C$39,IF(F20='Data validation'!$B$37,'Data validation'!$C$37,IF(F20='Data validation'!$B$38,'Data validation'!$C$38,IF(F20='Data validation'!$B$36,'Data validation'!$C$36,IF(F20='Data validation'!$B$35,'Data validation'!$C$35))))))))))","v":"--"}]
[null,null,null,null,null,"Choose one",null,null,{"$f":"IF(F21='Data validation'!$B$34,'Data validation'!$C$34,IF(F21='Data validation'!$B$43,'Data validation'!$C$43,IF(F21='Data validation'!$B$42,'Data validation'!$C$42,IF(F21='Data validation'!$B$41,'Data validation'!$C$41,IF(F21='Data validation'!$B$40,'Data validation'!$C$40,IF(F21='Data validation'!$B$39,'Data validation'!$C$39,IF(F21='Data validation'!$B$37,'Data validation'!$C$37,IF(F21='Data validation'!$B$38,'Data validation'!$C$38,IF(F21='Data validation'!$B$36,'Data validation'!$C$36,IF(F21='Data validation'!$B$35,'Data validation'!$C$35))))))))))","v":"--"}]
[null,null,null,null,null,"Choose one",null,null,{"$f":"IF(F22='Data validation'!$B$34,'Data validation'!$C$34,IF(F22='Data validation'!$B$43,'Data validation'!$C$43,IF(F22='Data validation'!$B$42,'Data validation'!$C$42,IF(F22='Data validation'!$B$41,'Data validation'!$C$41,IF(F22='Data validation'!$B$40,'Data validation'!$C$40,IF(F22='Data validation'!$B$39,'Data validation'!$C$39,IF(F22='Data validation'!$B$37,'Data validation'!$C$37,IF(F22='Data validation'!$B$38,'Data validation'!$C$38,IF(F22='Data validation'!$B$36,'Data validation'!$C$36,IF(F22='Data validation'!$B$35,'Data validation'!$C$35))))))))))","v":"--"}]
[null,null,null,null,null,"Choose one",null,null,{"$f":"IF(F23='Data validation'!$B$34,'Data validation'!$C$34,IF(F23='Data validation'!$B$43,'Data validation'!$C$43,IF(F23='Data validation'!$B$42,'Data validation'!$C$42,IF(F23='Data validation'!$B$41,'Data validation'!$C$41,IF(F23='Data validation'!$B$40,'Data validation'!$C$40,IF(F23='Data validation'!$B$39,'Data validation'!$C$39,IF(F23='Data validation'!$B$37,'Data validation'!$C$37,IF(F23='Data validation'!$B$38,'Data validation'!$C$38,IF(F23='Data validation'!$B$36,'Data validation'!$C$36,IF(F23='Data validation'!$B$35,'Data validation'!$C$35))))))))))","v":"--"}]
[null,null,null,null,null,"Choose one",null,null,{"$f":"IF(F24='Data validation'!$B$34,'Data validation'!$C$34,IF(F24='Data validation'!$B$43,'Data validation'!$C$43,IF(F24='Data validation'!$B$42,'Data validation'!$C$42,IF(F24='Data validation'!$B$41,'Data validation'!$C$41,IF(F24='Data validation'!$B$40,'Data validation'!$C$40,IF(F24='Data validation'!$B$39,'Data validation'!$C$39,IF(F24='Data validation'!$B$37,'Data validation'!$C$37,IF(F24='Data validation'!$B$38,'Data validation'!$C$38,IF(F24='Data validation'!$B$36,'Data validation'!$C$36,IF(F24='Data validation'!$B$35,'Data validation'!$C$35))))))))))","v":"--"}]
[null,null,null,null,null,"Choose one",null,null,{"$f":"IF(F25='Data validation'!$B$34,'Data validation'!$C$34,IF(F25='Data validation'!$B$43,'Data validation'!$C$43,IF(F25='Data validation'!$B$42,'Data validation'!$C$42,IF(F25='Data validation'!$B$41,'Data validation'!$C$41,IF(F25='Data validation'!$B$40,'Data validation'!$C$40,IF(F25='Data validation'!$B$39,'Data validation'!$C$39,IF(F25='Data validation'!$B$37,'Data validation'!$C$37,IF(F25='Data validation'!$B$38,'Data validation'!$C$38,IF(F25='Data validation'!$B$36,'Data validation'!$C$36,IF(F25='Data validation'!$B$35,'Data validation'!$C$35))))))))))","v":"--"}]
[null,null,null,null,null,"Choose one",null,null,{"$f":"IF(F26='Data validation'!$B$34,'Data validation'!$C$34,IF(F26='Data validation'!$B$43,'Data validation'!$C$43,IF(F26='Data validation'!$B$42,'Data validation'!$C$42,IF(F26='Data validation'!$B$41,'Data validation'!$C$41,IF(F26='Data validation'!$B$40,'Data validation'!$C$40,IF(F26='Data validation'!$B$39,'Data validation'!$C$39,IF(F26='Data validation'!$B$37,'Data validation'!$C$37,IF(F26='Data validation'!$B$38,'Data validation'!$C$38,IF(F26='Data validation'!$B$36,'Data validation'!$C$36,IF(F26='Data validation'!$B$35,'Data validation'!$C$35))))))))))","v":"--"}]
[null,null,null,null,null,"Choose one",null,null,{"$f":"IF(F27='Data validation'!$B$34,'Data validation'!$C$34,IF(F27='Data validation'!$B$43,'Data validation'!$C$43,IF(F27='Data validation'!$B$42,'Data validation'!$C$42,IF(F27='Data validation'!$B$41,'Data validation'!$C$41,IF(F27='Data validation'!$B$40,'Data validation'!$C$40,IF(F27='Data validation'!$B$39,'Data validation'!$C$39,IF(F27='Data validation'!$B$37,'Data validation'!$C$37,IF(F27='Data validation'!$B$38,'Data validation'!$C$38,IF(F27='Data validation'!$B$36,'Data validation'!$C$36,IF(F27='Data validation'!$B$35,'Data validation'!$C$35))))))))))","v":"--"}]
[null,null,null,null,null,"Choose one",null,null,{"$f":"IF(F28='Data validation'!$B$34,'Data validation'!$C$34,IF(F28='Data validation'!$B$43,'Data validation'!$C$43,IF(F28='Data validation'!$B$42,'Data validation'!$C$42,IF(F28='Data validation'!$B$41,'Data validation'!$C$41,IF(F28='Data validation'!$B$40,'Data validation'!$C$40,IF(F28='Data validation'!$B$39,'Data validation'!$C$39,IF(F28='Data validation'!$B$37,'Data validation'!$C$37,IF(F28='Data validation'!$B$38,'Data validation'!$C$38,IF(F28='Data validation'!$B$36,'Data validation'!$C$36,IF(F28='Data validation'!$B$35,'Data validation'!$C$35))))))))))","v":"--"}]
[null,null,null,null,null,"Choose one",null,null,{"$f":"IF(F29='Data validation'!$B$34,'Data validation'!$C$34,IF(F29='Data validation'!$B$43,'Data validation'!$C$43,IF(F29='Data validation'!$B$42,'Data validation'!$C$42,IF(F29='Data validation'!$B$41,'Data validation'!$C$41,IF(F29='Data validation'!$B$40,'Data validation'!$C$40,IF(F29='Data validation'!$B$39,'Data validation'!$C$39,IF(F29='Data validation'!$B$37,'Data validation'!$C$37,IF(F29='Data validation'!$B$38,'Data validation'!$C$38,IF(F29='Data validation'!$B$36,'Data validation'!$C$36,IF(F29='Data validation'!$B$35,'Data validation'!$C$35))))))))))","v":"--"}]
[null,null,null,null,null,"Choose one",null,null,{"$f":"IF(F30='Data validation'!$B$34,'Data validation'!$C$34,IF(F30='Data validation'!$B$43,'Data validation'!$C$43,IF(F30='Data validation'!$B$42,'Data validation'!$C$42,IF(F30='Data validation'!$B$41,'Data validation'!$C$41,IF(F30='Data validation'!$B$40,'Data validation'!$C$40,IF(F30='Data validation'!$B$39,'Data validation'!$C$39,IF(F30='Data validation'!$B$37,'Data validation'!$C$37,IF(F30='Data validation'!$B$38,'Data validation'!$C$38,IF(F30='Data validation'!$B$36,'Data validation'!$C$36,IF(F30='Data validation'!$B$35,'Data validation'!$C$35))))))))))","v":"--"}]
[null,null,null,null,null,"Choose one",null,null,{"$f":"IF(F31='Data validation'!$B$34,'Data validation'!$C$34,IF(F31='Data validation'!$B$43,'Data validation'!$C$43,IF(F31='Data validation'!$B$42,'Data validation'!$C$42,IF(F31='Data validation'!$B$41,'Data validation'!$C$41,IF(F31='Data validation'!$B$40,'Data validation'!$C$40,IF(F31='Data validation'!$B$39,'Data validation'!$C$39,IF(F31='Data validation'!$B$37,'Data validation'!$C$37,IF(F31='Data validation'!$B$38,'Data validation'!$C$38,IF(F31='Data validation'!$B$36,'Data validation'!$C$36,IF(F31='Data validation'!$B$35,'Data validation'!$C$35))))))))))","v":"--"}]
[null,null,null,null,null,"Choose one",null,null,{"$f":"IF(F32='Data validation'!$B$34,'Data validation'!$C$34,IF(F32='Data validation'!$B$43,'Data validation'!$C$43,IF(F32='Data validation'!$B$42,'Data validation'!$C$42,IF(F32='Data validation'!$B$41,'Data validation'!$C$41,IF(F32='Data validation'!$B$40,'Data validation'!$C$40,IF(F32='Data validation'!$B$39,'Data validation'!$C$39,IF(F32='Data validation'!$B$37,'Data validation'!$C$37,IF(F32='Data validation'!$B$38,'Data validation'!$C$38,IF(F32='Data validation'!$B$36,'Data validation'!$C$36,IF(F32='Data validation'!$B$35,'Data validation'!$C$35))))))))))","v":"--"}]
[null,null,null,null,null,"Choose one",null,null,{"$f":"IF(F33='Data validation'!$B$34,'Data validation'!$C$34,IF(F33='Data validation'!$B$43,'Data validation'!$C$43,IF(F33='Data validation'!$B$42,'Data validation'!$C$42,IF(F33='Data validation'!$B$41,'Data validation'!$C$41,IF(F33='Data validation'!$B$40,'Data validation'!$C$40,IF(F33='Data validation'!$B$39,'Data validation'!$C$39,IF(F33='Data validation'!$B$37,'Data validation'!$C$37,IF(F33='Data validation'!$B$38,'Data validation'!$C$38,IF(F33='Data validation'!$B$36,'Data validation'!$C$36,IF(F33='Data validation'!$B$35,'Data validation'!$C$35))))))))))","v":"--"}]
[null,null,null,null,null,"Choose one",null,null,{"$f":"IF(F34='Data validation'!$B$34,'Data validation'!$C$34,IF(F34='Data validation'!$B$43,'Data validation'!$C$43,IF(F34='Data validation'!$B$42,'Data validation'!$C$42,IF(F34='Data validation'!$B$41,'Data validation'!$C$41,IF(F34='Data validation'!$B$40,'Data validation'!$C$40,IF(F34='Data validation'!$B$39,'Data validation'!$C$39,IF(F34='Data validation'!$B$37,'Data validation'!$C$37,IF(F34='Data validation'!$B$38,'Data validation'!$C$38,IF(F34='Data validation'!$B$36,'Data validation'!$C$36,IF(F34='Data validation'!$B$35,'Data validation'!$C$35))))))))))","v":"--"}]
[null,null,null,null,null,"Choose one",null,null,{"$f":"IF(F35='Data validation'!$B$34,'Data validation'!$C$34,IF(F35='Data validation'!$B$43,'Data validation'!$C$43,IF(F35='Data validation'!$B$42,'Data validation'!$C$42,IF(F35='Data validation'!$B$41,'Data validation'!$C$41,IF(F35='Data validation'!$B$40,'Data validation'!$C$40,IF(F35='Data validation'!$B$39,'Data validation'!$C$39,IF(F35='Data validation'!$B$37,'Data validation'!$C$37,IF(F35='Data validation'!$B$38,'Data validation'!$C$38,IF(F35='Data validation'!$B$36,'Data validation'!$C$36,IF(F35='Data validation'!$B$35,'Data validation'!$C$35))))))))))","v":"--"}]
[null,null,null,null,null,"Choose one",null,null,{"$f":"IF(F36='Data validation'!$B$34,'Data validation'!$C$34,IF(F36='Data validation'!$B$43,'Data validation'!$C$43,IF(F36='Data validation'!$B$42,'Data validation'!$C$42,IF(F36='Data validation'!$B$41,'Data validation'!$C$41,IF(F36='Data validation'!$B$40,'Data validation'!$C$40,IF(F36='Data validation'!$B$39,'Data validation'!$C$39,IF(F36='Data validation'!$B$37,'Data validation'!$C$37,IF(F36='Data validation'!$B$38,'Data validation'!$C$38,IF(F36='Data validation'!$B$36,'Data validation'!$C$36,IF(F36='Data validation'!$B$35,'Data validation'!$C$35))))))))))","v":"--"}]
[null,null,null,null,null,"Choose one",null,null,{"$f":"IF(F37='Data validation'!$B$34,'Data validation'!$C$34,IF(F37='Data validation'!$B$43,'Data validation'!$C$43,IF(F37='Data validation'!$B$42,'Data validation'!$C$42,IF(F37='Data validation'!$B$41,'Data validation'!$C$41,IF(F37='Data validation'!$B$40,'Data validation'!$C$40,IF(F37='Data validation'!$B$39,'Data validation'!$C$39,IF(F37='Data validation'!$B$37,'Data validation'!$C$37,IF(F37='Data validation'!$B$38,'Data validation'!$C$38,IF(F37='Data validation'!$B$36,'Data validation'!$C$36,IF(F37='Data validation'!$B$35,'Data validation'!$C$35))))))))))","v":"--"}]
[null,null,null,null,null,"Choose one",null,null,{"$f":"IF(F38='Data validation'!$B$34,'Data validation'!$C$34,IF(F38='Data validation'!$B$43,'Data validation'!$C$43,IF(F38='Data validation'!$B$42,'Data validation'!$C$42,IF(F38='Data validation'!$B$41,'Data validation'!$C$41,IF(F38='Data validation'!$B$40,'Data validation'!$C$40,IF(F38='Data validation'!$B$39,'Data validation'!$C$39,IF(F38='Data validation'!$B$37,'Data validation'!$C$37,IF(F38='Data validation'!$B$38,'Data validation'!$C$38,IF(F38='Data validation'!$B$36,'Data validation'!$C$36,IF(F38='Data validation'!$B$35,'Data validation'!$C$35))))))))))","v":"--"}]
[null,null,null,null,null,"Choose one",null,null,{"$f":"IF(F39='Data validation'!$B$34,'Data validation'!$C$34,IF(F39='Data validation'!$B$43,'Data validation'!$C$43,IF(F39='Data validation'!$B$42,'Data validation'!$C$42,IF(F39='Data validation'!$B$41,'Data validation'!$C$41,IF(F39='Data validation'!$B$40,'Data validation'!$C$40,IF(F39='Data validation'!$B$39,'Data validation'!$C$39,IF(F39='Data validation'!$B$37,'Data validation'!$C$37,IF(F39='Data validation'!$B$38,'Data validation'!$C$38,IF(F39='Data validation'!$B$36,'Data validation'!$C$36,IF(F39='Data validation'!$B$35,'Data validation'!$C$35))))))))))","v":"--"}]
[null,null,null,null,null,"Choose one",null,null,{"$f":"IF(F40='Data validation'!$B$34,'Data validation'!$C$34,IF(F40='Data validation'!$B$43,'Data validation'!$C$43,IF(F40='Data validation'!$B$42,'Data validation'!$C$42,IF(F40='Data validation'!$B$41,'Data validation'!$C$41,IF(F40='Data validation'!$B$40,'Data validation'!$C$40,IF(F40='Data validation'!$B$39,'Data validation'!$C$39,IF(F40='Data validation'!$B$37,'Data validation'!$C$37,IF(F40='Data validation'!$B$38,'Data validation'!$C$38,IF(F40='Data validation'!$B$36,'Data validation'!$C$36,IF(F40='Data validation'!$B$35,'Data validation'!$C$35))))))))))","v":"--"}]
[null,null,null,null,null,"Choose one",null,null,{"$f":"IF(F41='Data validation'!$B$34,'Data validation'!$C$34,IF(F41='Data validation'!$B$43,'Data validation'!$C$43,IF(F41='Data validation'!$B$42,'Data validation'!$C$42,IF(F41='Data validation'!$B$41,'Data validation'!$C$41,IF(F41='Data validation'!$B$40,'Data validation'!$C$40,IF(F41='Data validation'!$B$39,'Data validation'!$C$39,IF(F41='Data validation'!$B$37,'Data validation'!$C$37,IF(F41='Data validation'!$B$38,'Data validation'!$C$38,IF(F41='Data validation'!$B$36,'Data validation'!$C$36,IF(F41='Data validation'!$B$35,'Data validation'!$C$35))))))))))","v":"--"}]
[null,null,null,null,null,"Choose one",null,null,{"$f":"IF(F42='Data validation'!$B$34,'Data validation'!$C$34,IF(F42='Data validation'!$B$43,'Data validation'!$C$43,IF(F42='Data validation'!$B$42,'Data validation'!$C$42,IF(F42='Data validation'!$B$41,'Data validation'!$C$41,IF(F42='Data validation'!$B$40,'Data validation'!$C$40,IF(F42='Data validation'!$B$39,'Data validation'!$C$39,IF(F42='Data validation'!$B$37,'Data validation'!$C$37,IF(F42='Data validation'!$B$38,'Data validation'!$C$38,IF(F42='Data validation'!$B$36,'Data validation'!$C$36,IF(F42='Data validation'!$B$35,'Data validation'!$C$35))))))))))","v":"--"}]
[null,null,null,null,null,"Choose one",null,null,{"$f":"IF(F43='Data validation'!$B$34,'Data validation'!$C$34,IF(F43='Data validation'!$B$43,'Data validation'!$C$43,IF(F43='Data validation'!$B$42,'Data validation'!$C$42,IF(F43='Data validation'!$B$41,'Data validation'!$C$41,IF(F43='Data validation'!$B$40,'Data validation'!$C$40,IF(F43='Data validation'!$B$39,'Data validation'!$C$39,IF(F43='Data validation'!$B$37,'Data validation'!$C$37,IF(F43='Data validation'!$B$38,'Data validation'!$C$38,IF(F43='Data validation'!$B$36,'Data validation'!$C$36,IF(F43='Data validation'!$B$35,'Data validation'!$C$35))))))))))","v":"--"}]
[null,null,null,null,null,"Choose one",null,null,{"$f":"IF(F44='Data validation'!$B$34,'Data validation'!$C$34,IF(F44='Data validation'!$B$43,'Data validation'!$C$43,IF(F44='Data validation'!$B$42,'Data validation'!$C$42,IF(F44='Data validation'!$B$41,'Data validation'!$C$41,IF(F44='Data validation'!$B$40,'Data validation'!$C$40,IF(F44='Data validation'!$B$39,'Data validation'!$C$39,IF(F44='Data validation'!$B$37,'Data validation'!$C$37,IF(F44='Data validation'!$B$38,'Data validation'!$C$38,IF(F44='Data validation'!$B$36,'Data validation'!$C$36,IF(F44='Data validation'!$B$35,'Data validation'!$C$35))))))))))","v":"--"}]
[null,null,null,null,null,"Choose one",null,null,{"$f":"IF(F45='Data validation'!$B$34,'Data validation'!$C$34,IF(F45='Data validation'!$B$43,'Data validation'!$C$43,IF(F45='Data validation'!$B$42,'Data validation'!$C$42,IF(F45='Data validation'!$B$41,'Data validation'!$C$41,IF(F45='Data validation'!$B$40,'Data validation'!$C$40,IF(F45='Data validation'!$B$39,'Data validation'!$C$39,IF(F45='Data validation'!$B$37,'Data validation'!$C$37,IF(F45='Data validation'!$B$38,'Data validation'!$C$38,IF(F45='Data validation'!$B$36,'Data validation'!$C$36,IF(F45='Data validation'!$B$35,'Data validation'!$C$35))))))))))","v":"--"}]
[null,null,null,null,null,"Choose one",null,null,{"$f":"IF(F46='Data validation'!$B$34,'Data validation'!$C$34,IF(F46='Data validation'!$B$43,'Data validation'!$C$43,IF(F46='Data validation'!$B$42,'Data validation'!$C$42,IF(F46='Data validation'!$B$41,'Data validation'!$C$41,IF(F46='Data validation'!$B$40,'Data validation'!$C$40,IF(F46='Data validation'!$B$39,'Data validation'!$C$39,IF(F46='Data validation'!$B$37,'Data validation'!$C$37,IF(F46='Data validation'!$B$38,'Data validation'!$C$38,IF(F46='Data validation'!$B$36,'Data validation'!$C$36,IF(F46='Data validation'!$B$35,'Data validation'!$C$35))))))))))","v":"--"}]
[null,null,null,null,null,"Choose one",null,null,{"$f":"IF(F47='Data validation'!$B$34,'Data validation'!$C$34,IF(F47='Data validation'!$B$43,'Data validation'!$C$43,IF(F47='Data validation'!$B$42,'Data validation'!$C$42,IF(F47='Data validation'!$B$41,'Data validation'!$C$41,IF(F47='Data validation'!$B$40,'Data validation'!$C$40,IF(F47='Data validation'!$B$39,'Data validation'!$C$39,IF(F47='Data validation'!$B$37,'Data validation'!$C$37,IF(F47='Data validation'!$B$38,'Data validation'!$C$38,IF(F47='Data validation'!$B$36,'Data validation'!$C$36,IF(F47='Data validation'!$B$35,'Data validation'!$C$35))))))))))","v":"--"}]
[null,null,null,null,null,"Choose one",null,null,{"$f":"IF(F48='Data validation'!$B$34,'Data validation'!$C$34,IF(F48='Data validation'!$B$43,'Data validation'!$C$43,IF(F48='Data validation'!$B$42,'Data validation'!$C$42,IF(F48='Data validation'!$B$41,'Data validation'!$C$41,IF(F48='Data validation'!$B$40,'Data validation'!$C$40,IF(F48='Data validation'!$B$39,'Data validation'!$C$39,IF(F48='Data validation'!$B$37,'Data validation'!$C$37,IF(F48='Data validation'!$B$38,'Data validation'!$C$38,IF(F48='Data validation'!$B$36,'Data validation'!$C$36,IF(F48='Data validation'!$B$35,'Data validation'!$C$35))))))))))","v":"--"}]
[null,null,null,null,null,"Choose one",null,null,{"$f":"IF(F49='Data validation'!$B$34,'Data validation'!$C$34,IF(F49='Data validation'!$B$43,'Data validation'!$C$43,IF(F49='Data validation'!$B$42,'Data validation'!$C$42,IF(F49='Data validation'!$B$41,'Data validation'!$C$41,IF(F49='Data validation'!$B$40,'Data validation'!$C$40,IF(F49='Data validation'!$B$39,'Data validation'!$C$39,IF(F49='Data validation'!$B$37,'Data validation'!$C$37,IF(F49='Data validation'!$B$38,'Data validation'!$C$38,IF(F49='Data validation'!$B$36,'Data validation'!$C$36,IF(F49='Data validation'!$B$35,'Data validation'!$C$35))))))))))","v":"--"}]
[null,null,null,null,null,"Choose one",null,null,{"$f":"IF(F50='Data validation'!$B$34,'Data validation'!$C$34,IF(F50='Data validation'!$B$43,'Data validation'!$C$43,IF(F50='Data validation'!$B$42,'Data validation'!$C$42,IF(F50='Data validation'!$B$41,'Data validation'!$C$41,IF(F50='Data validation'!$B$40,'Data validation'!$C$40,IF(F50='Data validation'!$B$39,'Data validation'!$C$39,IF(F50='Data validation'!$B$37,'Data validation'!$C$37,IF(F50='Data validation'!$B$38,'Data validation'!$C$38,IF(F50='Data validation'!$B$36,'Data validation'!$C$36,IF(F50='Data validation'!$B$35,'Data validation'!$C$35))))))))))","v":"--"}]
[null,null,null,null,null,"Choose one",null,null,{"$f":"IF(F51='Data validation'!$B$34,'Data validation'!$C$34,IF(F51='Data validation'!$B$43,'Data validation'!$C$43,IF(F51='Data validation'!$B$42,'Data validation'!$C$42,IF(F51='Data validation'!$B$41,'Data validation'!$C$41,IF(F51='Data validation'!$B$40,'Data validation'!$C$40,IF(F51='Data validation'!$B$39,'Data validation'!$C$39,IF(F51='Data validation'!$B$37,'Data validation'!$C$37,IF(F51='Data validation'!$B$38,'Data validation'!$C$38,IF(F51='Data validation'!$B$36,'Data validation'!$C$36,IF(F51='Data validation'!$B$35,'Data validation'!$C$35))))))))))","v":"--"}]
[null,null,null,null,null,"Choose one",null,null,{"$f":"IF(F52='Data validation'!$B$34,'Data validation'!$C$34,IF(F52='Data validation'!$B$43,'Data validation'!$C$43,IF(F52='Data validation'!$B$42,'Data validation'!$C$42,IF(F52='Data validation'!$B$41,'Data validation'!$C$41,IF(F52='Data validation'!$B$40,'Data validation'!$C$40,IF(F52='Data validation'!$B$39,'Data validation'!$C$39,IF(F52='Data validation'!$B$37,'Data validation'!$C$37,IF(F52='Data validation'!$B$38,'Data validation'!$C$38,IF(F52='Data validation'!$B$36,'Data validation'!$C$36,IF(F52='Data validation'!$B$35,'Data validation'!$C$35))))))))))","v":"--"}]
[null,null,null,null,null,"Choose one",null,null,{"$f":"IF(F53='Data validation'!$B$34,'Data validation'!$C$34,IF(F53='Data validation'!$B$43,'Data validation'!$C$43,IF(F53='Data validation'!$B$42,'Data validation'!$C$42,IF(F53='Data validation'!$B$41,'Data validation'!$C$41,IF(F53='Data validation'!$B$40,'Data validation'!$C$40,IF(F53='Data validation'!$B$39,'Data validation'!$C$39,IF(F53='Data validation'!$B$37,'Data validation'!$C$37,IF(F53='Data validation'!$B$38,'Data validation'!$C$38,IF(F53='Data validation'!$B$36,'Data validation'!$C$36,IF(F53='Data validation'!$B$35,'Data validation'!$C$35))))))))))","v":"--"}]
[null,null,null,null,null,"Choose one",null,null,{"$f":"IF(F54='Data validation'!$B$34,'Data validation'!$C$34,IF(F54='Data validation'!$B$43,'Data validation'!$C$43,IF(F54='Data validation'!$B$42,'Data validation'!$C$42,IF(F54='Data validation'!$B$41,'Data validation'!$C$41,IF(F54='Data validation'!$B$40,'Data validation'!$C$40,IF(F54='Data validation'!$B$39,'Data validation'!$C$39,IF(F54='Data validation'!$B$37,'Data validation'!$C$37,IF(F54='Data validation'!$B$38,'Data validation'!$C$38,IF(F54='Data validation'!$B$36,'Data validation'!$C$36,IF(F54='Data validation'!$B$35,'Data validation'!$C$35))))))))))","v":"--"}]
[null,null,null,null,null,"Choose one",null,null,{"$f":"IF(F55='Data validation'!$B$34,'Data validation'!$C$34,IF(F55='Data validation'!$B$43,'Data validation'!$C$43,IF(F55='Data validation'!$B$42,'Data validation'!$C$42,IF(F55='Data validation'!$B$41,'Data validation'!$C$41,IF(F55='Data validation'!$B$40,'Data validation'!$C$40,IF(F55='Data validation'!$B$39,'Data validation'!$C$39,IF(F55='Data validation'!$B$37,'Data validation'!$C$37,IF(F55='Data validation'!$B$38,'Data validation'!$C$38,IF(F55='Data validation'!$B$36,'Data validation'!$C$36,IF(F55='Data validation'!$B$35,'Data validation'!$C$35))))))))))","v":"--"}]
[null,null,null,null,null,"Choose one",null,null,{"$f":"IF(F56='Data validation'!$B$34,'Data validation'!$C$34,IF(F56='Data validation'!$B$43,'Data validation'!$C$43,IF(F56='Data validation'!$B$42,'Data validation'!$C$42,IF(F56='Data validation'!$B$41,'Data validation'!$C$41,IF(F56='Data validation'!$B$40,'Data validation'!$C$40,IF(F56='Data validation'!$B$39,'Data validation'!$C$39,IF(F56='Data validation'!$B$37,'Data validation'!$C$37,IF(F56='Data validation'!$B$38,'Data validation'!$C$38,IF(F56='Data validation'!$B$36,'Data validation'!$C$36,IF(F56='Data validation'!$B$35,'Data validation'!$C$35))))))))))","v":"--"}]
[null,null,null,null,null,"Choose one",null,null,{"$f":"IF(F57='Data validation'!$B$34,'Data validation'!$C$34,IF(F57='Data validation'!$B$43,'Data validation'!$C$43,IF(F57='Data validation'!$B$42,'Data validation'!$C$42,IF(F57='Data validation'!$B$41,'Data validation'!$C$41,IF(F57='Data validation'!$B$40,'Data validation'!$C$40,IF(F57='Data validation'!$B$39,'Data validation'!$C$39,IF(F57='Data validation'!$B$37,'Data validation'!$C$37,IF(F57='Data validation'!$B$38,'Data validation'!$C$38,IF(F57='Data validation'!$B$36,'Data validation'!$C$36,IF(F57='Data validation'!$B$35,'Data validation'!$C$35))))))))))","v":"--"}]
[null,null,null,null,null,"Choose one",null,null,{"$f":"IF(F58='Data validation'!$B$34,'Data validation'!$C$34,IF(F58='Data validation'!$B$43,'Data validation'!$C$43,IF(F58='Data validation'!$B$42,'Data validation'!$C$42,IF(F58='Data validation'!$B$41,'Data validation'!$C$41,IF(F58='Data validation'!$B$40,'Data validation'!$C$40,IF(F58='Data validation'!$B$39,'Data validation'!$C$39,IF(F58='Data validation'!$B$37,'Data validation'!$C$37,IF(F58='Data validation'!$B$38,'Data validation'!$C$38,IF(F58='Data validation'!$B$36,'Data validation'!$C$36,IF(F58='Data validation'!$B$35,'Data validation'!$C$35))))))))))","v":"--"}]
[null,null,null,null,null,"Choose one",null,null,{"$f":"IF(F59='Data validation'!$B$34,'Data validation'!$C$34,IF(F59='Data validation'!$B$43,'Data validation'!$C$43,IF(F59='Data validation'!$B$42,'Data validation'!$C$42,IF(F59='Data validation'!$B$41,'Data validation'!$C$41,IF(F59='Data validation'!$B$40,'Data validation'!$C$40,IF(F59='Data validation'!$B$39,'Data validation'!$C$39,IF(F59='Data validation'!$B$37,'Data validation'!$C$37,IF(F59='Data validation'!$B$38,'Data validation'!$C$38,IF(F59='Data validation'!$B$36,'Data validation'!$C$36,IF(F59='Data validation'!$B$35,'Data validation'!$C$35))))))))))","v":"--"}]
[null,null,null,null,null,"Choose one",null,null,{"$f":"IF(F60='Data validation'!$B$34,'Data validation'!$C$34,IF(F60='Data validation'!$B$43,'Data validation'!$C$43,IF(F60='Data validation'!$B$42,'Data validation'!$C$42,IF(F60='Data validation'!$B$41,'Data validation'!$C$41,IF(F60='Data validation'!$B$40,'Data validation'!$C$40,IF(F60='Data validation'!$B$39,'Data validation'!$C$39,IF(F60='Data validation'!$B$37,'Data validation'!$C$37,IF(F60='Data validation'!$B$38,'Data validation'!$C$38,IF(F60='Data validation'!$B$36,'Data validation'!$C$36,IF(F60='Data validation'!$B$35,'Data validation'!$C$35))))))))))","v":"--"}]
[null,null,null,null,null,"Choose one",null,null,{"$f":"IF(F61='Data validation'!$B$34,'Data validation'!$C$34,IF(F61='Data validation'!$B$43,'Data validation'!$C$43,IF(F61='Data validation'!$B$42,'Data validation'!$C$42,IF(F61='Data validation'!$B$41,'Data validation'!$C$41,IF(F61='Data validation'!$B$40,'Data validation'!$C$40,IF(F61='Data validation'!$B$39,'Data validation'!$C$39,IF(F61='Data validation'!$B$37,'Data validation'!$C$37,IF(F61='Data validation'!$B$38,'Data validation'!$C$38,IF(F61='Data validation'!$B$36,'Data validation'!$C$36,IF(F61='Data validation'!$B$35,'Data validation'!$C$35))))))))))","v":"--"}]
[null,null,null,null,null,"Choose one",null,null,{"$f":"IF(F62='Data validation'!$B$34,'Data validation'!$C$34,IF(F62='Data validation'!$B$43,'Data validation'!$C$43,IF(F62='Data validation'!$B$42,'Data validation'!$C$42,IF(F62='Data validation'!$B$41,'Data validation'!$C$41,IF(F62='Data validation'!$B$40,'Data validation'!$C$40,IF(F62='Data validation'!$B$39,'Data validation'!$C$39,IF(F62='Data validation'!$B$37,'Data validation'!$C$37,IF(F62='Data validation'!$B$38,'Data validation'!$C$38,IF(F62='Data validation'!$B$36,'Data validation'!$C$36,IF(F62='Data validation'!$B$35,'Data validation'!$C$35))))))))))","v":"--"}]
[null,null,null,null,null,"Choose one",null,null,{"$f":"IF(F63='Data validation'!$B$34,'Data validation'!$C$34,IF(F63='Data validation'!$B$43,'Data validation'!$C$43,IF(F63='Data validation'!$B$42,'Data validation'!$C$42,IF(F63='Data validation'!$B$41,'Data validation'!$C$41,IF(F63='Data validation'!$B$40,'Data validation'!$C$40,IF(F63='Data validation'!$B$39,'Data validation'!$C$39,IF(F63='Data validation'!$B$37,'Data validation'!$C$37,IF(F63='Data validation'!$B$38,'Data validation'!$C$38,IF(F63='Data validation'!$B$36,'Data validation'!$C$36,IF(F63='Data validation'!$B$35,'Data validation'!$C$35))))))))))","v":"--"}]
[null,null,null,null,null,"Choose one",null,null,{"$f":"IF(F64='Data validation'!$B$34,'Data validation'!$C$34,IF(F64='Data validation'!$B$43,'Data validation'!$C$43,IF(F64='Data validation'!$B$42,'Data validation'!$C$42,IF(F64='Data validation'!$B$41,'Data validation'!$C$41,IF(F64='Data validation'!$B$40,'Data validation'!$C$40,IF(F64='Data validation'!$B$39,'Data validation'!$C$39,IF(F64='Data validation'!$B$37,'Data validation'!$C$37,IF(F64='Data validation'!$B$38,'Data validation'!$C$38,IF(F64='Data validation'!$B$36,'Data validation'!$C$36,IF(F64='Data validation'!$B$35,'Data validation'!$C$35))))))))))","v":"--"}]
[null,null,null,null,null,"Choose one",null,null,{"$f":"IF(F65='Data validation'!$B$34,'Data validation'!$C$34,IF(F65='Data validation'!$B$43,'Data validation'!$C$43,IF(F65='Data validation'!$B$42,'Data validation'!$C$42,IF(F65='Data validation'!$B$41,'Data validation'!$C$41,IF(F65='Data validation'!$B$40,'Data validation'!$C$40,IF(F65='Data validation'!$B$39,'Data validation'!$C$39,IF(F65='Data validation'!$B$37,'Data validation'!$C$37,IF(F65='Data validation'!$B$38,'Data validation'!$C$38,IF(F65='Data validation'!$B$36,'Data validation'!$C$36,IF(F65='Data validation'!$B$35,'Data validation'!$C$35))))))))))","v":"--"}]
[null,null,null,null,null,"Choose one",null,null,{"$f":"IF(F66='Data validation'!$B$34,'Data validation'!$C$34,IF(F66='Data validation'!$B$43,'Data validation'!$C$43,IF(F66='Data validation'!$B$42,'Data validation'!$C$42,IF(F66='Data validation'!$B$41,'Data validation'!$C$41,IF(F66='Data validation'!$B$40,'Data validation'!$C$40,IF(F66='Data validation'!$B$39,'Data validation'!$C$39,IF(F66='Data validation'!$B$37,'Data validation'!$C$37,IF(F66='Data validation'!$B$38,'Data validation'!$C$38,IF(F66='Data validation'!$B$36,'Data validation'!$C$36,IF(F66='Data validation'!$B$35,'Data validation'!$C$35))))))))))","v":"--"}]
[null,null,null,null,null,"Choose one",null,null,{"$f":"IF(F67='Data validation'!$B$34,'Data validation'!$C$34,IF(F67='Data validation'!$B$43,'Data validation'!$C$43,IF(F67='Data validation'!$B$42,'Data validation'!$C$42,IF(F67='Data validation'!$B$41,'Data validation'!$C$41,IF(F67='Data validation'!$B$40,'Data validation'!$C$40,IF(F67='Data validation'!$B$39,'Data validation'!$C$39,IF(F67='Data validation'!$B$37,'Data validation'!$C$37,IF(F67='Data validation'!$B$38,'Data validation'!$C$38,IF(F67='Data validation'!$B$36,'Data validation'!$C$36,IF(F67='Data validation'!$B$35,'Data validation'!$C$35))))))))))","v":"--"}]
[null,null,null,null,null,"Choose one",null,null,{"$f":"IF(F68='Data validation'!$B$34,'Data validation'!$C$34,IF(F68='Data validation'!$B$43,'Data validation'!$C$43,IF(F68='Data validation'!$B$42,'Data validation'!$C$42,IF(F68='Data validation'!$B$41,'Data validation'!$C$41,IF(F68='Data validation'!$B$40,'Data validation'!$C$40,IF(F68='Data validation'!$B$39,'Data validation'!$C$39,IF(F68='Data validation'!$B$37,'Data validation'!$C$37,IF(F68='Data validation'!$B$38,'Data validation'!$C$38,IF(F68='Data validation'!$B$36,'Data validation'!$C$36,IF(F68='Data validation'!$B$35,'Data validation'!$C$35))))))))))","v":"--"}]
[null,null,null,null,null,"Choose one",null,null,{"$f":"IF(F69='Data validation'!$B$34,'Data validation'!$C$34,IF(F69='Data validation'!$B$43,'Data validation'!$C$43,IF(F69='Data validation'!$B$42,'Data validation'!$C$42,IF(F69='Data validation'!$B$41,'Data validation'!$C$41,IF(F69='Data validation'!$B$40,'Data validation'!$C$40,IF(F69='Data validation'!$B$39,'Data validation'!$C$39,IF(F69='Data validation'!$B$37,'Data validation'!$C$37,IF(F69='Data validation'!$B$38,'Data validation'!$C$38,IF(F69='Data validation'!$B$36,'Data validation'!$C$36,IF(F69='Data validation'!$B$35,'Data validation'!$C$35))))))))))","v":"--"}]
[null,null,null,null,null,"Choose one",null,null,{"$f":"IF(F70='Data validation'!$B$34,'Data validation'!$C$34,IF(F70='Data validation'!$B$43,'Data validation'!$C$43,IF(F70='Data validation'!$B$42,'Data validation'!$C$42,IF(F70='Data validation'!$B$41,'Data validation'!$C$41,IF(F70='Data validation'!$B$40,'Data validation'!$C$40,IF(F70='Data validation'!$B$39,'Data validation'!$C$39,IF(F70='Data validation'!$B$37,'Data validation'!$C$37,IF(F70='Data validation'!$B$38,'Data validation'!$C$38,IF(F70='Data validation'!$B$36,'Data validation'!$C$36,IF(F70='Data validation'!$B$35,'Data validation'!$C$35))))))))))","v":"--"}]
[null,null,null,null,null,"Choose one",null,null,{"$f":"IF(F71='Data validation'!$B$34,'Data validation'!$C$34,IF(F71='Data validation'!$B$43,'Data validation'!$C$43,IF(F71='Data validation'!$B$42,'Data validation'!$C$42,IF(F71='Data validation'!$B$41,'Data validation'!$C$41,IF(F71='Data validation'!$B$40,'Data validation'!$C$40,IF(F71='Data validation'!$B$39,'Data validation'!$C$39,IF(F71='Data validation'!$B$37,'Data validation'!$C$37,IF(F71='Data validation'!$B$38,'Data validation'!$C$38,IF(F71='Data validation'!$B$36,'Data validation'!$C$36,IF(F71='Data validation'!$B$35,'Data validation'!$C$35))))))))))","v":"--"}]
[null,null,null,null,null,"Choose one",null,null,{"$f":"IF(F72='Data validation'!$B$34,'Data validation'!$C$34,IF(F72='Data validation'!$B$43,'Data validation'!$C$43,IF(F72='Data validation'!$B$42,'Data validation'!$C$42,IF(F72='Data validation'!$B$41,'Data validation'!$C$41,IF(F72='Data validation'!$B$40,'Data validation'!$C$40,IF(F72='Data validation'!$B$39,'Data validation'!$C$39,IF(F72='Data validation'!$B$37,'Data validation'!$C$37,IF(F72='Data validation'!$B$38,'Data validation'!$C$38,IF(F72='Data validation'!$B$36,'Data validation'!$C$36,IF(F72='Data validation'!$B$35,'Data validation'!$C$35))))))))))","v":"--"}]
[null,null,null,null,null,"Choose one",null,null,{"$f":"IF(F73='Data validation'!$B$34,'Data validation'!$C$34,IF(F73='Data validation'!$B$43,'Data validation'!$C$43,IF(F73='Data validation'!$B$42,'Data validation'!$C$42,IF(F73='Data validation'!$B$41,'Data validation'!$C$41,IF(F73='Data validation'!$B$40,'Data validation'!$C$40,IF(F73='Data validation'!$B$39,'Data validation'!$C$39,IF(F73='Data validation'!$B$37,'Data validation'!$C$37,IF(F73='Data validation'!$B$38,'Data validation'!$C$38,IF(F73='Data validation'!$B$36,'Data validation'!$C$36,IF(F73='Data validation'!$B$35,'Data validation'!$C$35))))))))))","v":"--"}]
[null,null,null,null,null,"Choose one",null,null,{"$f":"IF(F74='Data validation'!$B$34,'Data validation'!$C$34,IF(F74='Data validation'!$B$43,'Data validation'!$C$43,IF(F74='Data validation'!$B$42,'Data validation'!$C$42,IF(F74='Data validation'!$B$41,'Data validation'!$C$41,IF(F74='Data validation'!$B$40,'Data validation'!$C$40,IF(F74='Data validation'!$B$39,'Data validation'!$C$39,IF(F74='Data validation'!$B$37,'Data validation'!$C$37,IF(F74='Data validation'!$B$38,'Data validation'!$C$38,IF(F74='Data validation'!$B$36,'Data validation'!$C$36,IF(F74='Data validation'!$B$35,'Data validation'!$C$35))))))))))","v":"--"}]
[null,null,null,null,null,"Choose one",null,null,{"$f":"IF(F75='Data validation'!$B$34,'Data validation'!$C$34,IF(F75='Data validation'!$B$43,'Data validation'!$C$43,IF(F75='Data validation'!$B$42,'Data validation'!$C$42,IF(F75='Data validation'!$B$41,'Data validation'!$C$41,IF(F75='Data validation'!$B$40,'Data validation'!$C$40,IF(F75='Data validation'!$B$39,'Data validation'!$C$39,IF(F75='Data validation'!$B$37,'Data validation'!$C$37,IF(F75='Data validation'!$B$38,'Data validation'!$C$38,IF(F75='Data validation'!$B$36,'Data validation'!$C$36,IF(F75='Data validation'!$B$35,'Data validation'!$C$35))))))))))","v":"--"}]
[null,null,null,null,null,"Choose one",null,null,{"$f":"IF(F76='Data validation'!$B$34,'Data validation'!$C$34,IF(F76='Data validation'!$B$43,'Data validation'!$C$43,IF(F76='Data validation'!$B$42,'Data validation'!$C$42,IF(F76='Data validation'!$B$41,'Data validation'!$C$41,IF(F76='Data validation'!$B$40,'Data validation'!$C$40,IF(F76='Data validation'!$B$39,'Data validation'!$C$39,IF(F76='Data validation'!$B$37,'Data validation'!$C$37,IF(F76='Data validation'!$B$38,'Data validation'!$C$38,IF(F76='Data validation'!$B$36,'Data validation'!$C$36,IF(F76='Data validation'!$B$35,'Data validation'!$C$35))))))))))","v":"--"}]
[null,null,null,null,null,"Choose one",null,null,{"$f":"IF(F77='Data validation'!$B$34,'Data validation'!$C$34,IF(F77='Data validation'!$B$43,'Data validation'!$C$43,IF(F77='Data validation'!$B$42,'Data validation'!$C$42,IF(F77='Data validation'!$B$41,'Data validation'!$C$41,IF(F77='Data validation'!$B$40,'Data validation'!$C$40,IF(F77='Data validation'!$B$39,'Data validation'!$C$39,IF(F77='Data validation'!$B$37,'Data validation'!$C$37,IF(F77='Data validation'!$B$38,'Data validation'!$C$38,IF(F77='Data validation'!$B$36,'Data validation'!$C$36,IF(F77='Data validation'!$B$35,'Data validation'!$C$35))))))))))","v":"--"}]
[null,null,null,null,null,"Choose one",null,null,{"$f":"IF(F78='Data validation'!$B$34,'Data validation'!$C$34,IF(F78='Data validation'!$B$43,'Data validation'!$C$43,IF(F78='Data validation'!$B$42,'Data validation'!$C$42,IF(F78='Data validation'!$B$41,'Data validation'!$C$41,IF(F78='Data validation'!$B$40,'Data validation'!$C$40,IF(F78='Data validation'!$B$39,'Data validation'!$C$39,IF(F78='Data validation'!$B$37,'Data validation'!$C$37,IF(F78='Data validation'!$B$38,'Data validation'!$C$38,IF(F78='Data validation'!$B$36,'Data validation'!$C$36,IF(F78='Data validation'!$B$35,'Data validation'!$C$35))))))))))","v":"--"}]
[null,null,null,null,null,"Choose one",null,null,{"$f":"IF(F79='Data validation'!$B$34,'Data validation'!$C$34,IF(F79='Data validation'!$B$43,'Data validation'!$C$43,IF(F79='Data validation'!$B$42,'Data validation'!$C$42,IF(F79='Data validation'!$B$41,'Data validation'!$C$41,IF(F79='Data validation'!$B$40,'Data validation'!$C$40,IF(F79='Data validation'!$B$39,'Data validation'!$C$39,IF(F79='Data validation'!$B$37,'Data validation'!$C$37,IF(F79='Data validation'!$B$38,'Data validation'!$C$38,IF(F79='Data validation'!$B$36,'Data validation'!$C$36,IF(F79='Data validation'!$B$35,'Data validation'!$C$35))))))))))","v":"--"}]
[null,null,null,null,null,"Choose one",null,null,{"$f":"IF(F80='Data validation'!$B$34,'Data validation'!$C$34,IF(F80='Data validation'!$B$43,'Data validation'!$C$43,IF(F80='Data validation'!$B$42,'Data validation'!$C$42,IF(F80='Data validation'!$B$41,'Data validation'!$C$41,IF(F80='Data validation'!$B$40,'Data validation'!$C$40,IF(F80='Data validation'!$B$39,'Data validation'!$C$39,IF(F80='Data validation'!$B$37,'Data validation'!$C$37,IF(F80='Data validation'!$B$38,'Data validation'!$C$38,IF(F80='Data validation'!$B$36,'Data validation'!$C$36,IF(F80='Data validation'!$B$35,'Data validation'!$C$35))))))))))","v":"--"}]
[null,null,null,null,null,"Choose one",null,null,{"$f":"IF(F81='Data validation'!$B$34,'Data validation'!$C$34,IF(F81='Data validation'!$B$43,'Data validation'!$C$43,IF(F81='Data validation'!$B$42,'Data validation'!$C$42,IF(F81='Data validation'!$B$41,'Data validation'!$C$41,IF(F81='Data validation'!$B$40,'Data validation'!$C$40,IF(F81='Data validation'!$B$39,'Data validation'!$C$39,IF(F81='Data validation'!$B$37,'Data validation'!$C$37,IF(F81='Data validation'!$B$38,'Data validation'!$C$38,IF(F81='Data validation'!$B$36,'Data validation'!$C$36,IF(F81='Data validation'!$B$35,'Data validation'!$C$35))))))))))","v":"--"}]
[null,null,null,null,null,"Choose one",null,null,{"$f":"IF(F82='Data validation'!$B$34,'Data validation'!$C$34,IF(F82='Data validation'!$B$43,'Data validation'!$C$43,IF(F82='Data validation'!$B$42,'Data validation'!$C$42,IF(F82='Data validation'!$B$41,'Data validation'!$C$41,IF(F82='Data validation'!$B$40,'Data validation'!$C$40,IF(F82='Data validation'!$B$39,'Data validation'!$C$39,IF(F82='Data validation'!$B$37,'Data validation'!$C$37,IF(F82='Data validation'!$B$38,'Data validation'!$C$38,IF(F82='Data validation'!$B$36,'Data validation'!$C$36,IF(F82='Data validation'!$B$35,'Data validation'!$C$35))))))))))","v":"--"}]
[null,null,null,null,null,"Choose one",null,null,{"$f":"IF(F83='Data validation'!$B$34,'Data validation'!$C$34,IF(F83='Data validation'!$B$43,'Data validation'!$C$43,IF(F83='Data validation'!$B$42,'Data validation'!$C$42,IF(F83='Data validation'!$B$41,'Data validation'!$C$41,IF(F83='Data validation'!$B$40,'Data validation'!$C$40,IF(F83='Data validation'!$B$39,'Data validation'!$C$39,IF(F83='Data validation'!$B$37,'Data validation'!$C$37,IF(F83='Data validation'!$B$38,'Data validation'!$C$38,IF(F83='Data validation'!$B$36,'Data validation'!$C$36,IF(F83='Data validation'!$B$35,'Data validation'!$C$35))))))))))","v":"--"}]

{"sheet":"Boilers unit info","index":7,"n_rows":15,"n_cols":14,"rows_kept":15,"cut":false,"hidden":false,"merged":[[6,12,6,13],[12,10,14,10],[8,2,8,8],[7,2,7,8],[12,6,13,6],[12,7,13,7],[12,8,13,8],[12,9,13,9],[9,3,9,8],[10,3,10,8],[28,1,28,3],[29,1,29,3],[25,1,25,3],[1,1,1,13],[4,1,4,8],[5,2,6,8],[2,1,2,13],[12,11,14,11],[12,12,13,12],[12,13,13,13],[12,5,14,5],[5,10,5,11],[6,10,6,11],[7,10,7,11],[8,10,8,11],[5,12,5,13],[22,1,22,3],[23,1,23,3],[24,1,24,3],[26,1,26,3],[27,1,27,3],[30,1,30,3],[31,1,31,3],[33,1,33,3],[34,1,34,3],[7,12,7,13],[8,12,8,13],[12,4,14,4],[32,1,32,3],[12,1,14,3],[15,1,15,3],[16,1,16,3],[17,1,17,3],[18,1,18,3],[19,1,19,3],[20,1,20,3],[21,1,21,3]]}
[null,null,null,null,null,null,null,null,null,null,null,null,null,{"$f":"Instructions!O4","v":"p-sbap5-33  •  6/6/23"}]
[null,"Boilers: emission points"]
[null,"Record the following information (unless the facility qualifies for reduced recordkeeping)."]
[]
[null,"For every emission point from boiler(s) using the fuels on the right, keep a record of:",null,null,null,null,null,null,null,null,"Required for boilers using:"]
[null,"● ","the location of all emission points. For example, a facility layout labelled with each unit and stack, GPS coordinates, etc.",null,null,null,null,null,null,null,"No. 4 distillate",null,"Lignite A coal"]
[null,null,null,null,null,null,null,null,null,null,"No. 5 and No. 6 residual",null,"Sub-bituminous coal"]
[null,"● ","gas flow rate, temperature, stack height, and stack diameter for each emission point",null,null,null,null,null,null,null,"Untreated, domestic wood & bark",null,"Bituminous coal"]
[null,"● ","the potential emissions, in lbs/hr, of SO2 and PM10. ",null,null,null,null,null,null,null,"Petroleum coke",null,"Anthracite coal"]
[null,null,null,"Use the boiler air emissions calculator for help with potential emissions"]
[null,null,null,"https://www.pca.state.mn.us/business-with-us/air-emissions-calculators"]
[]
[null,"Emission point ID ",null,null,"Emission unit identification","Location","Gas flow rate","Temperature","Stack height","Stack Diameter","Max throughput","Units\n(gallons or tons)","SO2 potential emissions","PM10 potential emissions"]
[]
[null,null,null,null,null,null,"(scfm)","(F)","(feet)","(inches)",null,null,"(lb/hr)","(lb/hr)"]

{"sheet":"Data validation","index":8,"n_rows":43,"n_cols":8,"rows_kept":43,"cut":false,"hidden":true,"merged":[[4,7,5,7],[11,6,18,6],[7,7,10,7],[4,6,5,6],[22,5,23,5],[7,6,10,6],[4,1,5,1],[4,2,5,2],[4,3,5,3],[4,4,5,4],[15,5,18,5],[10,5,12,5],[4,5,5,5],[22,1,23,1],[22,2,23,2],[22,3,23,3],[22,4,23,4],[31,1,32,1],[31,2,32,2]]}
[null,null,null,null,null,null,null,{"$f":"Instructions!O4","v":"p-sbap5-33  •  6/6/23"}]
[null,"Data validation"]
[]
[null,"Boilers"]
[null,"Fuel Type","Units","Multiplication factor","Sulfur limit","Specification method\n(American Society for Testing & Materials)","Additional recordkeeping","Max. throughput units"]
[]
[null,"Choose one","--","--","--",null,"   ","--"]
[null,"Natural gas, dry or commercial pipeline ","cubic feet",1.4000000000000001E-7,"does not apply","per Minn. R. 7007.1125, Table 1","No","does not apply"]
[null,"Liquefied petroleum gas (LPG)","gallons",1.0499999999999999E-5,"does not apply","ASTM D 1835 (Vol 05.01, 05.05)"]
[null,"Kerosene","gallons",3.5899999999999998E-5,5.0000000000000001E-3,"ASTM D 3699 (Vol 05.03)"]
[null,"No. 1 and No. 2 distillate","gallons",3.5899999999999998E-5,5.0000000000000001E-3,"ASTM D 396 (Vol 05.01)"]
[null,"No. 4 distillate","gallons",1.3999999999999999E-4,1.7999999999999999E-2,null,"Yes","gallon/hr"]
[null,"No. 5 and No. 6 residual","gallons",1.46E-4,1.7999999999999999E-2,null,null,"gallon/hr"]
[null,"Untreated, domestic wood and bark","tons",8.3999999999999995E-3,"does not apply","ASTM D 1165 (Vol 04.09)",null,"ton/hr"]
[null,"Petroleum coke","tons",4.5499999999999999E-2,2.3300000000000001E-2,"ASTM C 1160 (Vol 04.05)",null,"scf/hr"]
[null,"Lignite A coal","tons",1.89E-2,1.26E-2,"ASTM D 388 (Vol 05.05)",null,"ton/hr"]
[null,"Sub-bituminous coal","tons",2.9100000000000001E-2,1.66E-2,null,null,"ton/hr"]
[null,"Bituminous coal","tons",4.1000000000000002E-2,2.1000000000000001E-2,null,null,"ton/hr"]
[null,"Anthracite coal","tons",4.6399999999999997E-2,2.3800000000000002E-2,null,null,"ton/hr"]
[]
[]
[null,"Engines"]
[null,"Fuel Type","Units","Multiplication factor","Sulfur limit","Specification method\n(American Society for Testing & Materials)"]
[]
[null,"Choose one","--","--","--"]
[null,"Natural gas, dry or commercial pipeline","cubic feet",1.7E-6,"does not apply","per Minn. R. 7007.1125, Table 1"]
[null,"Liquefied petroleum gas (LPG)","gallons",6.9499999999999995E-5,"does not apply","ASTM D 1835 (Vol 05.01 and 05.05)"]
[null,"No. 1 and No. 2 diesel, and kerosene","gallons",3.0899999999999998E-4,5.0000000000000001E-3,"ASTM D 975 (Vol 05.01)"]
[null,null,"hours",1.22E-5]
[]
[null,"Sulfur tracking"]
[null,"Fuel Type","Sulfur limit"]
[]
[null,"Choose one","--"]
[null,"Kerosene",5.0000000000000001E-3]
[null,"No. 1 and No. 2 distillate",5.0000000000000001E-3]
[null,"No. 4 distillate",1.7999999999999999E-2]
[null,"No. 5 and No. 6 residual",1.7999999999999999E-2]
[null,"Petroleum coke",2.3300000000000001E-2]
[null,"Lignite A coal",1.26E-2]
[null,"Sub-bituminous coal",1.66E-2]
[null,"Bituminous coal",2.1000000000000001E-2]
[null,"Anthracite coal",2.3800000000000002E-2]